{"text_format":"1","workbook":"xlsx","n_sheets":4,"sheets":["Лист1","Лист2","Лист3","Лист4"],"not_rendered":{"charts":0,"images":0,"macros":1,"external_links":0,"defined_names":0,"comments":1,"pivot_tables":0},"unopened":[],"bounds":{"document_bytes":16777216,"sheet_cells":100000,"rows_first":2000,"rows_last":500,"rows_between":2000,"halvings":0,"cell_chars":16384,"cell_head_chars":4096},"cells_cut":0,"cells_raw":0,"read":"whole","date_system":"1900"}

{"sheet":"Лист1","index":0,"n_rows":27,"n_cols":21,"rows_kept":27,"cut":false,"hidden":false,"merged":[]}
["Показания от","Показания до","Аппарат","ключ провeрки",null,null,"Аппарат","смена от","смена до",null,"должно быть","смена от","смена до",null,null,"t1","t2","-","t3","t4","разниц"]
["2016-12-03T01:00:00","2016-12-03T09:00:00",123,"+",null,null,123,"18:00:00","10:20:00",null,123,"10:00:00","10:20:00",{"$f":"IF(M2<L2:L2,M2+1,M2)-L2","v":"00:20:00"},null,{"$f":"A2-TRUNC(A2)","v":"01:00:00"},{"$f":"B2-TRUNC(B2)","v":"09:00:00"},{"$f":"база_исход[[#This Row],[Аппарат]]","v":123},{"$f":"IF(Таблица4[[#This Row],[-]]=OFFSET(Таблица4[[#This Row],[-]],-1,),\nIF(AND(OFFSET(Таблица4[[#This Row],[t2]],-1,)>OFFSET(Таблица4[[#This Row],[t3]],-1,),OFFSET(Таблица4[[#This Row],[t2]],-1,)<IF(OFFSET(Таблица4[[#This Row],[t3]],-1,)>=OFFSET(Таблица4[[#This Row],[t4]],-1,),OFFSET(Таблица4[[#This Row],[t4]],-1,)+1,OFFSET(Таблица4[[#This Row],[t4]],-1,))),OFFSET(Таблица4[[#This Row],[t2]],-1,),OFFSET(Таблица4[[#This Row],[t3]],-1,)),Таблица4[[#This Row],[t2]])","v":"09:00:00"},{"$f":"IF(\n     Таблица4[[#This Row],[-]]=OFFSET(Таблица4[[#This Row],[-]],-1,),\n     IF(\n               AND(IF(OFFSET(Таблица4[[#This Row],[t3]],-1,)>OFFSET(Таблица4[[#This Row],[t4]],-1,),Таблица4[[#This Row],[t1]]+1,Таблица4[[#This Row],[t1]])>OFFSET(Таблица4[[#This Row],[t3]],-1,),Таблица4[[#This Row],[t1]]<IF(\n                                                                                             OFFSET(Таблица4[[#This Row],[t3]],-1,)>=OFFSET(Таблица4[[#This Row],[t4]],-1,),\n                                                                                             OFFSET(Таблица4[[#This Row],[t4]],-1,)+1,\n                                                                                             OFFSET(Таблица4[[#This Row],[t4]],-1,))),\n               Таблица4[[#This Row],[t1]],\n               OFFSET(Таблица4[[#This Row],[t4]],-1,)),\n     Таблица4[[#This Row],[t1]])","v":"01:00:00"},{"$f":"IF(T2<S2:S2,T2+1,T2)-S2","v":"16:00:00"}]
["2016-12-03T13:00:00","2016-12-03T18:00:00",123,"+",null,null,"#1","21:55:22","22:18:17",null,"#1","21:55:22","22:04:59",{"$f":"IF(M3<L3:L3,M3+1,M3)-L3","v":"00:09:37"},null,{"$f":"A3-TRUNC(A3)","v":"13:00:00"},"18:00:00",{"$f":"база_исход[[#This Row],[Аппарат]]","v":123},{"$f":"IF(Таблица4[[#This Row],[-]]=OFFSET(Таблица4[[#This Row],[-]],-1,),\nIF(AND(OFFSET(Таблица4[[#This Row],[t2]],-1,)>OFFSET(Таблица4[[#This Row],[t3]],-1,),OFFSET(Таблица4[[#This Row],[t2]],-1,)<IF(OFFSET(Таблица4[[#This Row],[t3]],-1,)>=OFFSET(Таблица4[[#This Row],[t4]],-1,),OFFSET(Таблица4[[#This Row],[t4]],-1,)+1,OFFSET(Таблица4[[#This Row],[t4]],-1,))),OFFSET(Таблица4[[#This Row],[t2]],-1,),OFFSET(Таблица4[[#This Row],[t3]],-1,)),Таблица4[[#This Row],[t2]])","v":"09:00:00"},{"$f":"IF(\n     Таблица4[[#This Row],[-]]=OFFSET(Таблица4[[#This Row],[-]],-1,),\n     IF(\n               AND(IF(OFFSET(Таблица4[[#This Row],[t3]],-1,)>OFFSET(Таблица4[[#This Row],[t4]],-1,),Таблица4[[#This Row],[t1]]+1,Таблица4[[#This Row],[t1]])>OFFSET(Таблица4[[#This Row],[t3]],-1,),Таблица4[[#This Row],[t1]]<IF(\n                                                                                             OFFSET(Таблица4[[#This Row],[t3]],-1,)>=OFFSET(Таблица4[[#This Row],[t4]],-1,),\n                                                                                             OFFSET(Таблица4[[#This Row],[t4]],-1,)+1,\n                                                                                             OFFSET(Таблица4[[#This Row],[t4]],-1,))),\n               Таблица4[[#This Row],[t1]],\n               OFFSET(Таблица4[[#This Row],[t4]],-1,)),\n     Таблица4[[#This Row],[t1]])","v":"13:00:00"},{"$f":"IF(T3<S3:S3,T3+1,T3)-S3","v":"04:00:00"}]
["2016-12-04T11:00:00","2016-12-05T09:30:00",123,"+",null,null,"#2","23:00:58","18:44:02",null,"#2","16:10:48","18:44:02","02:33:14",null,"11:00:00","09:30:00",{"$f":"база_исход[[#This Row],[Аппарат]]","v":123},{"$f":"IF(Таблица4[[#This Row],[-]]=OFFSET(Таблица4[[#This Row],[-]],-1,),\nIF(AND(OFFSET(Таблица4[[#This Row],[t2]],-1,)>OFFSET(Таблица4[[#This Row],[t3]],-1,),OFFSET(Таблица4[[#This Row],[t2]],-1,)<IF(OFFSET(Таблица4[[#This Row],[t3]],-1,)>=OFFSET(Таблица4[[#This Row],[t4]],-1,),OFFSET(Таблица4[[#This Row],[t4]],-1,)+1,OFFSET(Таблица4[[#This Row],[t4]],-1,))),OFFSET(Таблица4[[#This Row],[t2]],-1,),OFFSET(Таблица4[[#This Row],[t3]],-1,)),Таблица4[[#This Row],[t2]])","v":"09:00:00"},{"$f":"IF(\n     Таблица4[[#This Row],[-]]=OFFSET(Таблица4[[#This Row],[-]],-1,),\n     IF(\n               AND(IF(OFFSET(Таблица4[[#This Row],[t3]],-1,)>OFFSET(Таблица4[[#This Row],[t4]],-1,),Таблица4[[#This Row],[t1]]+1,Таблица4[[#This Row],[t1]])>OFFSET(Таблица4[[#This Row],[t3]],-1,),Таблица4[[#This Row],[t1]]<IF(\n                                                                                             OFFSET(Таблица4[[#This Row],[t3]],-1,)>=OFFSET(Таблица4[[#This Row],[t4]],-1,),\n                                                                                             OFFSET(Таблица4[[#This Row],[t4]],-1,)+1,\n                                                                                             OFFSET(Таблица4[[#This Row],[t4]],-1,))),\n               Таблица4[[#This Row],[t1]],\n               OFFSET(Таблица4[[#This Row],[t4]],-1,)),\n     Таблица4[[#This Row],[t1]])","v":"11:00:00"},"02:00:00"]
["2016-12-05T10:30:00","2016-12-06T10:00:00",123,"+",null,null,"#3","20:12:28","21:02:15",null,"#3","20:12:28","20:45:03","00:32:35",null,"10:30:00","10:00:00",{"$f":"база_исход[[#This Row],[Аппарат]]","v":123},{"$f":"IF(Таблица4[[#This Row],[-]]=OFFSET(Таблица4[[#This Row],[-]],-1,),\nIF(AND(OFFSET(Таблица4[[#This Row],[t2]],-1,)>OFFSET(Таблица4[[#This Row],[t3]],-1,),OFFSET(Таблица4[[#This Row],[t2]],-1,)<IF(OFFSET(Таблица4[[#This Row],[t3]],-1,)>=OFFSET(Таблица4[[#This Row],[t4]],-1,),OFFSET(Таблица4[[#This Row],[t4]],-1,)+1,OFFSET(Таблица4[[#This Row],[t4]],-1,))),OFFSET(Таблица4[[#This Row],[t2]],-1,),OFFSET(Таблица4[[#This Row],[t3]],-1,)),Таблица4[[#This Row],[t2]])","v":"09:30:00"},{"$f":"IF(\n     Таблица4[[#This Row],[-]]=OFFSET(Таблица4[[#This Row],[-]],-1,),\n     IF(\n               AND(IF(OFFSET(Таблица4[[#This Row],[t3]],-1,)>OFFSET(Таблица4[[#This Row],[t4]],-1,),Таблица4[[#This Row],[t1]]+1,Таблица4[[#This Row],[t1]])>OFFSET(Таблица4[[#This Row],[t3]],-1,),Таблица4[[#This Row],[t1]]<IF(\n                                                                                             OFFSET(Таблица4[[#This Row],[t3]],-1,)>=OFFSET(Таблица4[[#This Row],[t4]],-1,),\n                                                                                             OFFSET(Таблица4[[#This Row],[t4]],-1,)+1,\n                                                                                             OFFSET(Таблица4[[#This Row],[t4]],-1,))),\n               Таблица4[[#This Row],[t1]],\n               OFFSET(Таблица4[[#This Row],[t4]],-1,)),\n     Таблица4[[#This Row],[t1]])","v":"10:30:00"},{"$f":"IF(T5<S5:S5,T5+1,T5)-S5","v":"01:00:00"}]
["2016-12-06T10:20:00","2016-12-06T11:20:00",123,"+",null,null,"#4","23:29:42","00:18:34",null,"#4","23:29:42","00:18:34","00:48:52",null,"10:20:00","11:20:00",{"$f":"база_исход[[#This Row],[Аппарат]]","v":123},{"$f":"IF(Таблица4[[#This Row],[-]]=OFFSET(Таблица4[[#This Row],[-]],-1,),\nIF(AND(OFFSET(Таблица4[[#This Row],[t2]],-1,)>OFFSET(Таблица4[[#This Row],[t3]],-1,),OFFSET(Таблица4[[#This Row],[t2]],-1,)<IF(OFFSET(Таблица4[[#This Row],[t3]],-1,)>=OFFSET(Таблица4[[#This Row],[t4]],-1,),OFFSET(Таблица4[[#This Row],[t4]],-1,)+1,OFFSET(Таблица4[[#This Row],[t4]],-1,))),OFFSET(Таблица4[[#This Row],[t2]],-1,),OFFSET(Таблица4[[#This Row],[t3]],-1,)),Таблица4[[#This Row],[t2]])","v":"10:00:00"},{"$f":"IF(\n     Таблица4[[#This Row],[-]]=OFFSET(Таблица4[[#This Row],[-]],-1,),\n     IF(\n               AND(IF(OFFSET(Таблица4[[#This Row],[t3]],-1,)>OFFSET(Таблица4[[#This Row],[t4]],-1,),Таблица4[[#This Row],[t1]]+1,Таблица4[[#This Row],[t1]])>OFFSET(Таблица4[[#This Row],[t3]],-1,),Таблица4[[#This Row],[t1]]<IF(\n                                                                                             OFFSET(Таблица4[[#This Row],[t3]],-1,)>=OFFSET(Таблица4[[#This Row],[t4]],-1,),\n                                                                                             OFFSET(Таблица4[[#This Row],[t4]],-1,)+1,\n                                                                                             OFFSET(Таблица4[[#This Row],[t4]],-1,))),\n               Таблица4[[#This Row],[t1]],\n               OFFSET(Таблица4[[#This Row],[t4]],-1,)),\n     Таблица4[[#This Row],[t1]])","v":"10:20:00"},"00:20:00"]
["2016-12-03T17:58:01","2016-12-03T21:55:22","#1","+",null,null,"#5","19:40:33","19:56:51",null,"#5","19:40:33","19:50:43","00:10:10",null,"17:58:01","21:55:22",{"$f":"база_исход[[#This Row],[Аппарат]]","v":"#1"},{"$f":"IF(Таблица4[[#This Row],[-]]=OFFSET(Таблица4[[#This Row],[-]],-1,),\nIF(AND(OFFSET(Таблица4[[#This Row],[t2]],-1,)>OFFSET(Таблица4[[#This Row],[t3]],-1,),OFFSET(Таблица4[[#This Row],[t2]],-1,)<IF(OFFSET(Таблица4[[#This Row],[t3]],-1,)>=OFFSET(Таблица4[[#This Row],[t4]],-1,),OFFSET(Таблица4[[#This Row],[t4]],-1,)+1,OFFSET(Таблица4[[#This Row],[t4]],-1,))),OFFSET(Таблица4[[#This Row],[t2]],-1,),OFFSET(Таблица4[[#This Row],[t3]],-1,)),Таблица4[[#This Row],[t2]])","v":"21:55:22"},{"$f":"IF(\n     Таблица4[[#This Row],[-]]=OFFSET(Таблица4[[#This Row],[-]],-1,),\n     IF(\n               AND(IF(OFFSET(Таблица4[[#This Row],[t3]],-1,)>OFFSET(Таблица4[[#This Row],[t4]],-1,),Таблица4[[#This Row],[t1]]+1,Таблица4[[#This Row],[t1]])>OFFSET(Таблица4[[#This Row],[t3]],-1,),Таблица4[[#This Row],[t1]]<IF(\n                                                                                             OFFSET(Таблица4[[#This Row],[t3]],-1,)>=OFFSET(Таблица4[[#This Row],[t4]],-1,),\n                                                                                             OFFSET(Таблица4[[#This Row],[t4]],-1,)+1,\n                                                                                             OFFSET(Таблица4[[#This Row],[t4]],-1,))),\n               Таблица4[[#This Row],[t1]],\n               OFFSET(Таблица4[[#This Row],[t4]],-1,)),\n     Таблица4[[#This Row],[t1]])","v":"17:58:01"},{"$f":"IF(T7<S7:S7,T7+1,T7)-S7","v":"20:02:39"}]
["2016-12-03T22:18:17","2016-12-04T21:41:10","#1","+",null,null,"#6","20:36:05","21:32:00",null,"#6","20:36:05","21:16:06","00:40:01",null,"22:18:17","21:41:10",{"$f":"база_исход[[#This Row],[Аппарат]]","v":"#1"},{"$f":"IF(Таблица4[[#This Row],[-]]=OFFSET(Таблица4[[#This Row],[-]],-1,),\nIF(AND(OFFSET(Таблица4[[#This Row],[t2]],-1,)>OFFSET(Таблица4[[#This Row],[t3]],-1,),OFFSET(Таблица4[[#This Row],[t2]],-1,)<IF(OFFSET(Таблица4[[#This Row],[t3]],-1,)>=OFFSET(Таблица4[[#This Row],[t4]],-1,),OFFSET(Таблица4[[#This Row],[t4]],-1,)+1,OFFSET(Таблица4[[#This Row],[t4]],-1,))),OFFSET(Таблица4[[#This Row],[t2]],-1,),OFFSET(Таблица4[[#This Row],[t3]],-1,)),Таблица4[[#This Row],[t2]])","v":"21:55:22"},{"$f":"IF(\n     Таблица4[[#This Row],[-]]=OFFSET(Таблица4[[#This Row],[-]],-1,),\n     IF(\n               AND(IF(OFFSET(Таблица4[[#This Row],[t3]],-1,)>OFFSET(Таблица4[[#This Row],[t4]],-1,),Таблица4[[#This Row],[t1]]+1,Таблица4[[#This Row],[t1]])>OFFSET(Таблица4[[#This Row],[t3]],-1,),Таблица4[[#This Row],[t1]]<IF(\n                                                                                             OFFSET(Таблица4[[#This Row],[t3]],-1,)>=OFFSET(Таблица4[[#This Row],[t4]],-1,),\n                                                                                             OFFSET(Таблица4[[#This Row],[t4]],-1,)+1,\n                                                                                             OFFSET(Таблица4[[#This Row],[t4]],-1,))),\n               Таблица4[[#This Row],[t1]],\n               OFFSET(Таблица4[[#This Row],[t4]],-1,)),\n     Таблица4[[#This Row],[t1]])","v":"22:18:17"},"00:22:55"]
["2016-12-04T22:04:59","2016-12-05T00:35:47","#1","+",null,null,"#7","21:36:24","22:31:46",null,"#7","21:36:24","22:19:13","00:42:49",null,"22:04:59","00:35:47",{"$f":"база_исход[[#This Row],[Аппарат]]","v":"#1"},{"$f":"IF(Таблица4[[#This Row],[-]]=OFFSET(Таблица4[[#This Row],[-]],-1,),\nIF(AND(OFFSET(Таблица4[[#This Row],[t2]],-1,)>OFFSET(Таблица4[[#This Row],[t3]],-1,),OFFSET(Таблица4[[#This Row],[t2]],-1,)<IF(OFFSET(Таблица4[[#This Row],[t3]],-1,)>=OFFSET(Таблица4[[#This Row],[t4]],-1,),OFFSET(Таблица4[[#This Row],[t4]],-1,)+1,OFFSET(Таблица4[[#This Row],[t4]],-1,))),OFFSET(Таблица4[[#This Row],[t2]],-1,),OFFSET(Таблица4[[#This Row],[t3]],-1,)),Таблица4[[#This Row],[t2]])","v":"21:55:22"},{"$f":"IF(\n     Таблица4[[#This Row],[-]]=OFFSET(Таблица4[[#This Row],[-]],-1,),\n     IF(\n               AND(IF(OFFSET(Таблица4[[#This Row],[t3]],-1,)>OFFSET(Таблица4[[#This Row],[t4]],-1,),Таблица4[[#This Row],[t1]]+1,Таблица4[[#This Row],[t1]])>OFFSET(Таблица4[[#This Row],[t3]],-1,),Таблица4[[#This Row],[t1]]<IF(\n                                                                                             OFFSET(Таблица4[[#This Row],[t3]],-1,)>=OFFSET(Таблица4[[#This Row],[t4]],-1,),\n                                                                                             OFFSET(Таблица4[[#This Row],[t4]],-1,)+1,\n                                                                                             OFFSET(Таблица4[[#This Row],[t4]],-1,))),\n               Таблица4[[#This Row],[t1]],\n               OFFSET(Таблица4[[#This Row],[t4]],-1,)),\n     Таблица4[[#This Row],[t1]])","v":"22:04:59"},"00:09:37"]
["2016-12-02T16:10:48","2016-12-03T16:10:48","#2","+",null,null,null,null,null,null,null,null,null,null,null,"16:10:48","16:10:48",{"$f":"база_исход[[#This Row],[Аппарат]]","v":"#2"},{"$f":"IF(Таблица4[[#This Row],[-]]=OFFSET(Таблица4[[#This Row],[-]],-1,),\nIF(AND(OFFSET(Таблица4[[#This Row],[t2]],-1,)>OFFSET(Таблица4[[#This Row],[t3]],-1,),OFFSET(Таблица4[[#This Row],[t2]],-1,)<IF(OFFSET(Таблица4[[#This Row],[t3]],-1,)>=OFFSET(Таблица4[[#This Row],[t4]],-1,),OFFSET(Таблица4[[#This Row],[t4]],-1,)+1,OFFSET(Таблица4[[#This Row],[t4]],-1,))),OFFSET(Таблица4[[#This Row],[t2]],-1,),OFFSET(Таблица4[[#This Row],[t3]],-1,)),Таблица4[[#This Row],[t2]])","v":"16:10:48"},{"$f":"IF(\n     Таблица4[[#This Row],[-]]=OFFSET(Таблица4[[#This Row],[-]],-1,),\n     IF(\n               AND(IF(OFFSET(Таблица4[[#This Row],[t3]],-1,)>OFFSET(Таблица4[[#This Row],[t4]],-1,),Таблица4[[#This Row],[t1]]+1,Таблица4[[#This Row],[t1]])>OFFSET(Таблица4[[#This Row],[t3]],-1,),Таблица4[[#This Row],[t1]]<IF(\n                                                                                             OFFSET(Таблица4[[#This Row],[t3]],-1,)>=OFFSET(Таблица4[[#This Row],[t4]],-1,),\n                                                                                             OFFSET(Таблица4[[#This Row],[t4]],-1,)+1,\n                                                                                             OFFSET(Таблица4[[#This Row],[t4]],-1,))),\n               Таблица4[[#This Row],[t1]],\n               OFFSET(Таблица4[[#This Row],[t4]],-1,)),\n     Таблица4[[#This Row],[t1]])","v":"16:10:48"},"00:00:00"]
["2016-12-03T20:01:49","2016-12-03T23:00:58","#2","+",null,null,null,null,null,null,null,null,null,null,null,"20:01:49","23:00:58",{"$f":"база_исход[[#This Row],[Аппарат]]","v":"#2"},{"$f":"IF(Таблица4[[#This Row],[-]]=OFFSET(Таблица4[[#This Row],[-]],-1,),\nIF(AND(OFFSET(Таблица4[[#This Row],[t2]],-1,)>OFFSET(Таблица4[[#This Row],[t3]],-1,),OFFSET(Таблица4[[#This Row],[t2]],-1,)<IF(OFFSET(Таблица4[[#This Row],[t3]],-1,)>=OFFSET(Таблица4[[#This Row],[t4]],-1,),OFFSET(Таблица4[[#This Row],[t4]],-1,)+1,OFFSET(Таблица4[[#This Row],[t4]],-1,))),OFFSET(Таблица4[[#This Row],[t2]],-1,),OFFSET(Таблица4[[#This Row],[t3]],-1,)),Таблица4[[#This Row],[t2]])","v":"16:10:48"},{"$f":"IF(\n     Таблица4[[#This Row],[-]]=OFFSET(Таблица4[[#This Row],[-]],-1,),\n     IF(\n               AND(IF(OFFSET(Таблица4[[#This Row],[t3]],-1,)>OFFSET(Таблица4[[#This Row],[t4]],-1,),Таблица4[[#This Row],[t1]]+1,Таблица4[[#This Row],[t1]])>OFFSET(Таблица4[[#This Row],[t3]],-1,),Таблица4[[#This Row],[t1]]<IF(\n                                                                                             OFFSET(Таблица4[[#This Row],[t3]],-1,)>=OFFSET(Таблица4[[#This Row],[t4]],-1,),\n                                                                                             OFFSET(Таблица4[[#This Row],[t4]],-1,)+1,\n                                                                                             OFFSET(Таблица4[[#This Row],[t4]],-1,))),\n               Таблица4[[#This Row],[t1]],\n               OFFSET(Таблица4[[#This Row],[t4]],-1,)),\n     Таблица4[[#This Row],[t1]])","v":"20:01:49"},"03:51:01"]
["2016-12-04T18:44:02","2016-12-05T00:43:42","#2","+",null,null,null,null,null,null,null,null,null,null,null,"18:44:02","00:43:42",{"$f":"база_исход[[#This Row],[Аппарат]]","v":"#2"},{"$f":"IF(Таблица4[[#This Row],[-]]=OFFSET(Таблица4[[#This Row],[-]],-1,),\nIF(AND(OFFSET(Таблица4[[#This Row],[t2]],-1,)>OFFSET(Таблица4[[#This Row],[t3]],-1,),OFFSET(Таблица4[[#This Row],[t2]],-1,)<IF(OFFSET(Таблица4[[#This Row],[t3]],-1,)>=OFFSET(Таблица4[[#This Row],[t4]],-1,),OFFSET(Таблица4[[#This Row],[t4]],-1,)+1,OFFSET(Таблица4[[#This Row],[t4]],-1,))),OFFSET(Таблица4[[#This Row],[t2]],-1,),OFFSET(Таблица4[[#This Row],[t3]],-1,)),Таблица4[[#This Row],[t2]])","v":"16:10:48"},{"$f":"IF(\n     Таблица4[[#This Row],[-]]=OFFSET(Таблица4[[#This Row],[-]],-1,),\n     IF(\n               AND(IF(OFFSET(Таблица4[[#This Row],[t3]],-1,)>OFFSET(Таблица4[[#This Row],[t4]],-1,),Таблица4[[#This Row],[t1]]+1,Таблица4[[#This Row],[t1]])>OFFSET(Таблица4[[#This Row],[t3]],-1,),Таблица4[[#This Row],[t1]]<IF(\n                                                                                             OFFSET(Таблица4[[#This Row],[t3]],-1,)>=OFFSET(Таблица4[[#This Row],[t4]],-1,),\n                                                                                             OFFSET(Таблица4[[#This Row],[t4]],-1,)+1,\n                                                                                             OFFSET(Таблица4[[#This Row],[t4]],-1,))),\n               Таблица4[[#This Row],[t1]],\n               OFFSET(Таблица4[[#This Row],[t4]],-1,)),\n     Таблица4[[#This Row],[t1]])","v":"18:44:02"},"02:33:14"]
["2016-12-03T18:29:29","2016-12-03T20:00:30","#3","+",null,null,null,null,null,null,null,null,null,null,null,"18:29:29","20:00:30",{"$f":"база_исход[[#This Row],[Аппарат]]","v":"#3"},{"$f":"IF(Таблица4[[#This Row],[-]]=OFFSET(Таблица4[[#This Row],[-]],-1,),\nIF(AND(OFFSET(Таблица4[[#This Row],[t2]],-1,)>OFFSET(Таблица4[[#This Row],[t3]],-1,),OFFSET(Таблица4[[#This Row],[t2]],-1,)<IF(OFFSET(Таблица4[[#This Row],[t3]],-1,)>=OFFSET(Таблица4[[#This Row],[t4]],-1,),OFFSET(Таблица4[[#This Row],[t4]],-1,)+1,OFFSET(Таблица4[[#This Row],[t4]],-1,))),OFFSET(Таблица4[[#This Row],[t2]],-1,),OFFSET(Таблица4[[#This Row],[t3]],-1,)),Таблица4[[#This Row],[t2]])","v":"20:00:30"},{"$f":"IF(\n     Таблица4[[#This Row],[-]]=OFFSET(Таблица4[[#This Row],[-]],-1,),\n     IF(\n               AND(IF(OFFSET(Таблица4[[#This Row],[t3]],-1,)>OFFSET(Таблица4[[#This Row],[t4]],-1,),Таблица4[[#This Row],[t1]]+1,Таблица4[[#This Row],[t1]])>OFFSET(Таблица4[[#This Row],[t3]],-1,),Таблица4[[#This Row],[t1]]<IF(\n                                                                                             OFFSET(Таблица4[[#This Row],[t3]],-1,)>=OFFSET(Таблица4[[#This Row],[t4]],-1,),\n                                                                                             OFFSET(Таблица4[[#This Row],[t4]],-1,)+1,\n                                                                                             OFFSET(Таблица4[[#This Row],[t4]],-1,))),\n               Таблица4[[#This Row],[t1]],\n               OFFSET(Таблица4[[#This Row],[t4]],-1,)),\n     Таблица4[[#This Row],[t1]])","v":"18:29:29"},"22:28:59"]
["2016-12-03T21:02:15","2016-12-04T20:12:28","#3","+",null,null,null,null,null,null,null,null,null,null,null,"21:02:15","20:12:28",{"$f":"база_исход[[#This Row],[Аппарат]]","v":"#3"},{"$f":"IF(Таблица4[[#This Row],[-]]=OFFSET(Таблица4[[#This Row],[-]],-1,),\nIF(AND(OFFSET(Таблица4[[#This Row],[t2]],-1,)>OFFSET(Таблица4[[#This Row],[t3]],-1,),OFFSET(Таблица4[[#This Row],[t2]],-1,)<IF(OFFSET(Таблица4[[#This Row],[t3]],-1,)>=OFFSET(Таблица4[[#This Row],[t4]],-1,),OFFSET(Таблица4[[#This Row],[t4]],-1,)+1,OFFSET(Таблица4[[#This Row],[t4]],-1,))),OFFSET(Таблица4[[#This Row],[t2]],-1,),OFFSET(Таблица4[[#This Row],[t3]],-1,)),Таблица4[[#This Row],[t2]])","v":"20:00:30"},{"$f":"IF(\n     Таблица4[[#This Row],[-]]=OFFSET(Таблица4[[#This Row],[-]],-1,),\n     IF(\n               AND(IF(OFFSET(Таблица4[[#This Row],[t3]],-1,)>OFFSET(Таблица4[[#This Row],[t4]],-1,),Таблица4[[#This Row],[t1]]+1,Таблица4[[#This Row],[t1]])>OFFSET(Таблица4[[#This Row],[t3]],-1,),Таблица4[[#This Row],[t1]]<IF(\n                                                                                             OFFSET(Таблица4[[#This Row],[t3]],-1,)>=OFFSET(Таблица4[[#This Row],[t4]],-1,),\n                                                                                             OFFSET(Таблица4[[#This Row],[t4]],-1,)+1,\n                                                                                             OFFSET(Таблица4[[#This Row],[t4]],-1,))),\n               Таблица4[[#This Row],[t1]],\n               OFFSET(Таблица4[[#This Row],[t4]],-1,)),\n     Таблица4[[#This Row],[t1]])","v":"21:02:15"},"01:01:45"]
["2016-12-04T20:45:03","2016-12-05T00:38:32","#3","+",null,null,null,null,null,null,null,null,null,null,null,"20:45:03","00:38:32",{"$f":"база_исход[[#This Row],[Аппарат]]","v":"#3"},{"$f":"IF(Таблица4[[#This Row],[-]]=OFFSET(Таблица4[[#This Row],[-]],-1,),\nIF(AND(OFFSET(Таблица4[[#This Row],[t2]],-1,)>OFFSET(Таблица4[[#This Row],[t3]],-1,),OFFSET(Таблица4[[#This Row],[t2]],-1,)<IF(OFFSET(Таблица4[[#This Row],[t3]],-1,)>=OFFSET(Таблица4[[#This Row],[t4]],-1,),OFFSET(Таблица4[[#This Row],[t4]],-1,)+1,OFFSET(Таблица4[[#This Row],[t4]],-1,))),OFFSET(Таблица4[[#This Row],[t2]],-1,),OFFSET(Таблица4[[#This Row],[t3]],-1,)),Таблица4[[#This Row],[t2]])","v":"20:12:28"},{"$f":"IF(\n     Таблица4[[#This Row],[-]]=OFFSET(Таблица4[[#This Row],[-]],-1,),\n     IF(\n               AND(IF(OFFSET(Таблица4[[#This Row],[t3]],-1,)>OFFSET(Таблица4[[#This Row],[t4]],-1,),Таблица4[[#This Row],[t1]]+1,Таблица4[[#This Row],[t1]])>OFFSET(Таблица4[[#This Row],[t3]],-1,),Таблица4[[#This Row],[t1]]<IF(\n                                                                                             OFFSET(Таблица4[[#This Row],[t3]],-1,)>=OFFSET(Таблица4[[#This Row],[t4]],-1,),\n                                                                                             OFFSET(Таблица4[[#This Row],[t4]],-1,)+1,\n                                                                                             OFFSET(Таблица4[[#This Row],[t4]],-1,))),\n               Таблица4[[#This Row],[t1]],\n               OFFSET(Таблица4[[#This Row],[t4]],-1,)),\n     Таблица4[[#This Row],[t1]])","v":"20:45:03"},"00:32:35"]
["2016-12-03T19:00:43","2016-12-03T22:44:06","#4","+",null,null,null,null,null,null,null,null,null,null,null,"19:00:43","22:44:06",{"$f":"база_исход[[#This Row],[Аппарат]]","v":"#4"},{"$f":"IF(Таблица4[[#This Row],[-]]=OFFSET(Таблица4[[#This Row],[-]],-1,),\nIF(AND(OFFSET(Таблица4[[#This Row],[t2]],-1,)>OFFSET(Таблица4[[#This Row],[t3]],-1,),OFFSET(Таблица4[[#This Row],[t2]],-1,)<IF(OFFSET(Таблица4[[#This Row],[t3]],-1,)>=OFFSET(Таблица4[[#This Row],[t4]],-1,),OFFSET(Таблица4[[#This Row],[t4]],-1,)+1,OFFSET(Таблица4[[#This Row],[t4]],-1,))),OFFSET(Таблица4[[#This Row],[t2]],-1,),OFFSET(Таблица4[[#This Row],[t3]],-1,)),Таблица4[[#This Row],[t2]])","v":"22:44:06"},{"$f":"IF(\n     Таблица4[[#This Row],[-]]=OFFSET(Таблица4[[#This Row],[-]],-1,),\n     IF(\n               AND(IF(OFFSET(Таблица4[[#This Row],[t3]],-1,)>OFFSET(Таблица4[[#This Row],[t4]],-1,),Таблица4[[#This Row],[t1]]+1,Таблица4[[#This Row],[t1]])>OFFSET(Таблица4[[#This Row],[t3]],-1,),Таблица4[[#This Row],[t1]]<IF(\n                                                                                             OFFSET(Таблица4[[#This Row],[t3]],-1,)>=OFFSET(Таблица4[[#This Row],[t4]],-1,),\n                                                                                             OFFSET(Таблица4[[#This Row],[t4]],-1,)+1,\n                                                                                             OFFSET(Таблица4[[#This Row],[t4]],-1,))),\n               Таблица4[[#This Row],[t1]],\n               OFFSET(Таблица4[[#This Row],[t4]],-1,)),\n     Таблица4[[#This Row],[t1]])","v":"19:00:43"},"20:16:37"]
["2016-12-04T17:52:28","2016-12-04T23:29:42","#4","+",null,null,null,null,null,null,null,null,null,null,null,"17:52:28","23:29:42",{"$f":"база_исход[[#This Row],[Аппарат]]","v":"#4"},{"$f":"IF(Таблица4[[#This Row],[-]]=OFFSET(Таблица4[[#This Row],[-]],-1,),\nIF(AND(OFFSET(Таблица4[[#This Row],[t2]],-1,)>OFFSET(Таблица4[[#This Row],[t3]],-1,),OFFSET(Таблица4[[#This Row],[t2]],-1,)<IF(OFFSET(Таблица4[[#This Row],[t3]],-1,)>=OFFSET(Таблица4[[#This Row],[t4]],-1,),OFFSET(Таблица4[[#This Row],[t4]],-1,)+1,OFFSET(Таблица4[[#This Row],[t4]],-1,))),OFFSET(Таблица4[[#This Row],[t2]],-1,),OFFSET(Таблица4[[#This Row],[t3]],-1,)),Таблица4[[#This Row],[t2]])","v":"22:44:06"},{"$f":"IF(\n     Таблица4[[#This Row],[-]]=OFFSET(Таблица4[[#This Row],[-]],-1,),\n     IF(\n               AND(IF(OFFSET(Таблица4[[#This Row],[t3]],-1,)>OFFSET(Таблица4[[#This Row],[t4]],-1,),Таблица4[[#This Row],[t1]]+1,Таблица4[[#This Row],[t1]])>OFFSET(Таблица4[[#This Row],[t3]],-1,),Таблица4[[#This Row],[t1]]<IF(\n                                                                                             OFFSET(Таблица4[[#This Row],[t3]],-1,)>=OFFSET(Таблица4[[#This Row],[t4]],-1,),\n                                                                                             OFFSET(Таблица4[[#This Row],[t4]],-1,)+1,\n                                                                                             OFFSET(Таблица4[[#This Row],[t4]],-1,))),\n               Таблица4[[#This Row],[t1]],\n               OFFSET(Таблица4[[#This Row],[t4]],-1,)),\n     Таблица4[[#This Row],[t1]])","v":"17:52:28"},"19:08:22"]
["2016-12-05T00:18:34","2016-12-05T00:30:34","#4","+",null,null,null,null,null,null,null,null,null,null,null,"00:18:34","00:30:34",{"$f":"база_исход[[#This Row],[Аппарат]]","v":"#4"},{"$f":"IF(Таблица4[[#This Row],[-]]=OFFSET(Таблица4[[#This Row],[-]],-1,),\nIF(AND(OFFSET(Таблица4[[#This Row],[t2]],-1,)>OFFSET(Таблица4[[#This Row],[t3]],-1,),OFFSET(Таблица4[[#This Row],[t2]],-1,)<IF(OFFSET(Таблица4[[#This Row],[t3]],-1,)>=OFFSET(Таблица4[[#This Row],[t4]],-1,),OFFSET(Таблица4[[#This Row],[t4]],-1,)+1,OFFSET(Таблица4[[#This Row],[t4]],-1,))),OFFSET(Таблица4[[#This Row],[t2]],-1,),OFFSET(Таблица4[[#This Row],[t3]],-1,)),Таблица4[[#This Row],[t2]])","v":"23:29:42"},{"$f":"IF(\n     Таблица4[[#This Row],[-]]=OFFSET(Таблица4[[#This Row],[-]],-1,),\n     IF(\n               AND(IF(OFFSET(Таблица4[[#This Row],[t3]],-1,)>OFFSET(Таблица4[[#This Row],[t4]],-1,),Таблица4[[#This Row],[t1]]+1,Таблица4[[#This Row],[t1]])>OFFSET(Таблица4[[#This Row],[t3]],-1,),Таблица4[[#This Row],[t1]]<IF(\n                                                                                             OFFSET(Таблица4[[#This Row],[t3]],-1,)>=OFFSET(Таблица4[[#This Row],[t4]],-1,),\n                                                                                             OFFSET(Таблица4[[#This Row],[t4]],-1,)+1,\n                                                                                             OFFSET(Таблица4[[#This Row],[t4]],-1,))),\n               Таблица4[[#This Row],[t1]],\n               OFFSET(Таблица4[[#This Row],[t4]],-1,)),\n     Таблица4[[#This Row],[t1]])","v":"00:18:34"},"00:48:52"]
["2016-12-03T16:04:48","2016-12-03T16:04:48","#5","+",null,null,null,null,null,null,null,null,null,null,null,"16:04:48","16:04:48",{"$f":"база_исход[[#This Row],[Аппарат]]","v":"#5"},{"$f":"IF(Таблица4[[#This Row],[-]]=OFFSET(Таблица4[[#This Row],[-]],-1,),\nIF(AND(OFFSET(Таблица4[[#This Row],[t2]],-1,)>OFFSET(Таблица4[[#This Row],[t3]],-1,),OFFSET(Таблица4[[#This Row],[t2]],-1,)<IF(OFFSET(Таблица4[[#This Row],[t3]],-1,)>=OFFSET(Таблица4[[#This Row],[t4]],-1,),OFFSET(Таблица4[[#This Row],[t4]],-1,)+1,OFFSET(Таблица4[[#This Row],[t4]],-1,))),OFFSET(Таблица4[[#This Row],[t2]],-1,),OFFSET(Таблица4[[#This Row],[t3]],-1,)),Таблица4[[#This Row],[t2]])","v":"16:04:48"},{"$f":"IF(\n     Таблица4[[#This Row],[-]]=OFFSET(Таблица4[[#This Row],[-]],-1,),\n     IF(\n               AND(IF(OFFSET(Таблица4[[#This Row],[t3]],-1,)>OFFSET(Таблица4[[#This Row],[t4]],-1,),Таблица4[[#This Row],[t1]]+1,Таблица4[[#This Row],[t1]])>OFFSET(Таблица4[[#This Row],[t3]],-1,),Таблица4[[#This Row],[t1]]<IF(\n                                                                                             OFFSET(Таблица4[[#This Row],[t3]],-1,)>=OFFSET(Таблица4[[#This Row],[t4]],-1,),\n                                                                                             OFFSET(Таблица4[[#This Row],[t4]],-1,)+1,\n                                                                                             OFFSET(Таблица4[[#This Row],[t4]],-1,))),\n               Таблица4[[#This Row],[t1]],\n               OFFSET(Таблица4[[#This Row],[t4]],-1,)),\n     Таблица4[[#This Row],[t1]])","v":"16:04:48"},"00:00:00"]
["2016-12-03T19:56:51","2016-12-04T19:40:33","#5","+",null,null,null,null,null,null,null,null,null,null,null,"19:56:51","19:40:33",{"$f":"база_исход[[#This Row],[Аппарат]]","v":"#5"},{"$f":"IF(Таблица4[[#This Row],[-]]=OFFSET(Таблица4[[#This Row],[-]],-1,),\nIF(AND(OFFSET(Таблица4[[#This Row],[t2]],-1,)>OFFSET(Таблица4[[#This Row],[t3]],-1,),OFFSET(Таблица4[[#This Row],[t2]],-1,)<IF(OFFSET(Таблица4[[#This Row],[t3]],-1,)>=OFFSET(Таблица4[[#This Row],[t4]],-1,),OFFSET(Таблица4[[#This Row],[t4]],-1,)+1,OFFSET(Таблица4[[#This Row],[t4]],-1,))),OFFSET(Таблица4[[#This Row],[t2]],-1,),OFFSET(Таблица4[[#This Row],[t3]],-1,)),Таблица4[[#This Row],[t2]])","v":"16:04:48"},{"$f":"IF(\n     Таблица4[[#This Row],[-]]=OFFSET(Таблица4[[#This Row],[-]],-1,),\n     IF(\n               AND(IF(OFFSET(Таблица4[[#This Row],[t3]],-1,)>OFFSET(Таблица4[[#This Row],[t4]],-1,),Таблица4[[#This Row],[t1]]+1,Таблица4[[#This Row],[t1]])>OFFSET(Таблица4[[#This Row],[t3]],-1,),Таблица4[[#This Row],[t1]]<IF(\n                                                                                             OFFSET(Таблица4[[#This Row],[t3]],-1,)>=OFFSET(Таблица4[[#This Row],[t4]],-1,),\n                                                                                             OFFSET(Таблица4[[#This Row],[t4]],-1,)+1,\n                                                                                             OFFSET(Таблица4[[#This Row],[t4]],-1,))),\n               Таблица4[[#This Row],[t1]],\n               OFFSET(Таблица4[[#This Row],[t4]],-1,)),\n     Таблица4[[#This Row],[t1]])","v":"19:56:51"},"03:52:03"]
["2016-12-04T19:50:43","2016-12-05T00:42:49","#5","+",null,null,null,null,null,null,null,null,null,null,null,"19:50:43","00:42:49",{"$f":"база_исход[[#This Row],[Аппарат]]","v":"#5"},{"$f":"IF(Таблица4[[#This Row],[-]]=OFFSET(Таблица4[[#This Row],[-]],-1,),\nIF(AND(OFFSET(Таблица4[[#This Row],[t2]],-1,)>OFFSET(Таблица4[[#This Row],[t3]],-1,),OFFSET(Таблица4[[#This Row],[t2]],-1,)<IF(OFFSET(Таблица4[[#This Row],[t3]],-1,)>=OFFSET(Таблица4[[#This Row],[t4]],-1,),OFFSET(Таблица4[[#This Row],[t4]],-1,)+1,OFFSET(Таблица4[[#This Row],[t4]],-1,))),OFFSET(Таблица4[[#This Row],[t2]],-1,),OFFSET(Таблица4[[#This Row],[t3]],-1,)),Таблица4[[#This Row],[t2]])","v":"19:40:33"},{"$f":"IF(\n     Таблица4[[#This Row],[-]]=OFFSET(Таблица4[[#This Row],[-]],-1,),\n     IF(\n               AND(IF(OFFSET(Таблица4[[#This Row],[t3]],-1,)>OFFSET(Таблица4[[#This Row],[t4]],-1,),Таблица4[[#This Row],[t1]]+1,Таблица4[[#This Row],[t1]])>OFFSET(Таблица4[[#This Row],[t3]],-1,),Таблица4[[#This Row],[t1]]<IF(\n                                                                                             OFFSET(Таблица4[[#This Row],[t3]],-1,)>=OFFSET(Таблица4[[#This Row],[t4]],-1,),\n                                                                                             OFFSET(Таблица4[[#This Row],[t4]],-1,)+1,\n                                                                                             OFFSET(Таблица4[[#This Row],[t4]],-1,))),\n               Таблица4[[#This Row],[t1]],\n               OFFSET(Таблица4[[#This Row],[t4]],-1,)),\n     Таблица4[[#This Row],[t1]])","v":"19:50:43"},"00:10:10"]
["2016-12-03T18:41:44","2016-12-03T20:36:05","#6","+",null,null,null,null,null,null,null,null,null,null,null,"18:41:44","20:36:05",{"$f":"база_исход[[#This Row],[Аппарат]]","v":"#6"},{"$f":"IF(Таблица4[[#This Row],[-]]=OFFSET(Таблица4[[#This Row],[-]],-1,),\nIF(AND(OFFSET(Таблица4[[#This Row],[t2]],-1,)>OFFSET(Таблица4[[#This Row],[t3]],-1,),OFFSET(Таблица4[[#This Row],[t2]],-1,)<IF(OFFSET(Таблица4[[#This Row],[t3]],-1,)>=OFFSET(Таблица4[[#This Row],[t4]],-1,),OFFSET(Таблица4[[#This Row],[t4]],-1,)+1,OFFSET(Таблица4[[#This Row],[t4]],-1,))),OFFSET(Таблица4[[#This Row],[t2]],-1,),OFFSET(Таблица4[[#This Row],[t3]],-1,)),Таблица4[[#This Row],[t2]])","v":"20:36:05"},{"$f":"IF(\n     Таблица4[[#This Row],[-]]=OFFSET(Таблица4[[#This Row],[-]],-1,),\n     IF(\n               AND(IF(OFFSET(Таблица4[[#This Row],[t3]],-1,)>OFFSET(Таблица4[[#This Row],[t4]],-1,),Таблица4[[#This Row],[t1]]+1,Таблица4[[#This Row],[t1]])>OFFSET(Таблица4[[#This Row],[t3]],-1,),Таблица4[[#This Row],[t1]]<IF(\n                                                                                             OFFSET(Таблица4[[#This Row],[t3]],-1,)>=OFFSET(Таблица4[[#This Row],[t4]],-1,),\n                                                                                             OFFSET(Таблица4[[#This Row],[t4]],-1,)+1,\n                                                                                             OFFSET(Таблица4[[#This Row],[t4]],-1,))),\n               Таблица4[[#This Row],[t1]],\n               OFFSET(Таблица4[[#This Row],[t4]],-1,)),\n     Таблица4[[#This Row],[t1]])","v":"18:41:44"},"22:05:39"]
["2016-12-03T21:32:00","2016-12-04T20:17:44","#6","+",null,null,null,null,null,null,null,null,null,null,null,"21:32:00","20:17:44",{"$f":"база_исход[[#This Row],[Аппарат]]","v":"#6"},{"$f":"IF(Таблица4[[#This Row],[-]]=OFFSET(Таблица4[[#This Row],[-]],-1,),\nIF(AND(OFFSET(Таблица4[[#This Row],[t2]],-1,)>OFFSET(Таблица4[[#This Row],[t3]],-1,),OFFSET(Таблица4[[#This Row],[t2]],-1,)<IF(OFFSET(Таблица4[[#This Row],[t3]],-1,)>=OFFSET(Таблица4[[#This Row],[t4]],-1,),OFFSET(Таблица4[[#This Row],[t4]],-1,)+1,OFFSET(Таблица4[[#This Row],[t4]],-1,))),OFFSET(Таблица4[[#This Row],[t2]],-1,),OFFSET(Таблица4[[#This Row],[t3]],-1,)),Таблица4[[#This Row],[t2]])","v":"20:36:05"},{"$f":"IF(\n     Таблица4[[#This Row],[-]]=OFFSET(Таблица4[[#This Row],[-]],-1,),\n     IF(\n               AND(IF(OFFSET(Таблица4[[#This Row],[t3]],-1,)>OFFSET(Таблица4[[#This Row],[t4]],-1,),Таблица4[[#This Row],[t1]]+1,Таблица4[[#This Row],[t1]])>OFFSET(Таблица4[[#This Row],[t3]],-1,),Таблица4[[#This Row],[t1]]<IF(\n                                                                                             OFFSET(Таблица4[[#This Row],[t3]],-1,)>=OFFSET(Таблица4[[#This Row],[t4]],-1,),\n                                                                                             OFFSET(Таблица4[[#This Row],[t4]],-1,)+1,\n                                                                                             OFFSET(Таблица4[[#This Row],[t4]],-1,))),\n               Таблица4[[#This Row],[t1]],\n               OFFSET(Таблица4[[#This Row],[t4]],-1,)),\n     Таблица4[[#This Row],[t1]])","v":"21:32:00"},"00:55:55"]
["2016-12-04T21:16:06","2016-12-05T00:11:16","#6","+",null,null,null,null,null,null,null,null,null,null,null,"21:16:06","00:11:16",{"$f":"база_исход[[#This Row],[Аппарат]]","v":"#6"},{"$f":"IF(Таблица4[[#This Row],[-]]=OFFSET(Таблица4[[#This Row],[-]],-1,),\nIF(AND(OFFSET(Таблица4[[#This Row],[t2]],-1,)>OFFSET(Таблица4[[#This Row],[t3]],-1,),OFFSET(Таблица4[[#This Row],[t2]],-1,)<IF(OFFSET(Таблица4[[#This Row],[t3]],-1,)>=OFFSET(Таблица4[[#This Row],[t4]],-1,),OFFSET(Таблица4[[#This Row],[t4]],-1,)+1,OFFSET(Таблица4[[#This Row],[t4]],-1,))),OFFSET(Таблица4[[#This Row],[t2]],-1,),OFFSET(Таблица4[[#This Row],[t3]],-1,)),Таблица4[[#This Row],[t2]])","v":"20:36:05"},{"$f":"IF(\n     Таблица4[[#This Row],[-]]=OFFSET(Таблица4[[#This Row],[-]],-1,),\n     IF(\n               AND(IF(OFFSET(Таблица4[[#This Row],[t3]],-1,)>OFFSET(Таблица4[[#This Row],[t4]],-1,),Таблица4[[#This Row],[t1]]+1,Таблица4[[#This Row],[t1]])>OFFSET(Таблица4[[#This Row],[t3]],-1,),Таблица4[[#This Row],[t1]]<IF(\n                                                                                             OFFSET(Таблица4[[#This Row],[t3]],-1,)>=OFFSET(Таблица4[[#This Row],[t4]],-1,),\n                                                                                             OFFSET(Таблица4[[#This Row],[t4]],-1,)+1,\n                                                                                             OFFSET(Таблица4[[#This Row],[t4]],-1,))),\n               Таблица4[[#This Row],[t1]],\n               OFFSET(Таблица4[[#This Row],[t4]],-1,)),\n     Таблица4[[#This Row],[t1]])","v":"21:16:06"},"00:40:01"]
["2016-12-03T18:55:18","2016-12-03T21:36:24","#7","+",null,null,null,null,null,null,null,null,null,null,null,"18:55:18","21:36:24",{"$f":"база_исход[[#This Row],[Аппарат]]","v":"#7"},{"$f":"IF(Таблица4[[#This Row],[-]]=OFFSET(Таблица4[[#This Row],[-]],-1,),\nIF(AND(OFFSET(Таблица4[[#This Row],[t2]],-1,)>OFFSET(Таблица4[[#This Row],[t3]],-1,),OFFSET(Таблица4[[#This Row],[t2]],-1,)<IF(OFFSET(Таблица4[[#This Row],[t3]],-1,)>=OFFSET(Таблица4[[#This Row],[t4]],-1,),OFFSET(Таблица4[[#This Row],[t4]],-1,)+1,OFFSET(Таблица4[[#This Row],[t4]],-1,))),OFFSET(Таблица4[[#This Row],[t2]],-1,),OFFSET(Таблица4[[#This Row],[t3]],-1,)),Таблица4[[#This Row],[t2]])","v":"21:36:24"},{"$f":"IF(\n     Таблица4[[#This Row],[-]]=OFFSET(Таблица4[[#This Row],[-]],-1,),\n     IF(\n               AND(IF(OFFSET(Таблица4[[#This Row],[t3]],-1,)>OFFSET(Таблица4[[#This Row],[t4]],-1,),Таблица4[[#This Row],[t1]]+1,Таблица4[[#This Row],[t1]])>OFFSET(Таблица4[[#This Row],[t3]],-1,),Таблица4[[#This Row],[t1]]<IF(\n                                                                                             OFFSET(Таблица4[[#This Row],[t3]],-1,)>=OFFSET(Таблица4[[#This Row],[t4]],-1,),\n                                                                                             OFFSET(Таблица4[[#This Row],[t4]],-1,)+1,\n                                                                                             OFFSET(Таблица4[[#This Row],[t4]],-1,))),\n               Таблица4[[#This Row],[t1]],\n               OFFSET(Таблица4[[#This Row],[t4]],-1,)),\n     Таблица4[[#This Row],[t1]])","v":"18:55:18"},"21:18:54"]
["2016-12-03T22:31:46","2016-12-04T21:20:28","#7","+",null,null,null,null,null,null,null,null,null,null,null,"22:31:46","21:20:28",{"$f":"база_исход[[#This Row],[Аппарат]]","v":"#7"},{"$f":"IF(Таблица4[[#This Row],[-]]=OFFSET(Таблица4[[#This Row],[-]],-1,),\nIF(AND(OFFSET(Таблица4[[#This Row],[t2]],-1,)>OFFSET(Таблица4[[#This Row],[t3]],-1,),OFFSET(Таблица4[[#This Row],[t2]],-1,)<IF(OFFSET(Таблица4[[#This Row],[t3]],-1,)>=OFFSET(Таблица4[[#This Row],[t4]],-1,),OFFSET(Таблица4[[#This Row],[t4]],-1,)+1,OFFSET(Таблица4[[#This Row],[t4]],-1,))),OFFSET(Таблица4[[#This Row],[t2]],-1,),OFFSET(Таблица4[[#This Row],[t3]],-1,)),Таблица4[[#This Row],[t2]])","v":"21:36:24"},{"$f":"IF(\n     Таблица4[[#This Row],[-]]=OFFSET(Таблица4[[#This Row],[-]],-1,),\n     IF(\n               AND(IF(OFFSET(Таблица4[[#This Row],[t3]],-1,)>OFFSET(Таблица4[[#This Row],[t4]],-1,),Таблица4[[#This Row],[t1]]+1,Таблица4[[#This Row],[t1]])>OFFSET(Таблица4[[#This Row],[t3]],-1,),Таблица4[[#This Row],[t1]]<IF(\n                                                                                             OFFSET(Таблица4[[#This Row],[t3]],-1,)>=OFFSET(Таблица4[[#This Row],[t4]],-1,),\n                                                                                             OFFSET(Таблица4[[#This Row],[t4]],-1,)+1,\n                                                                                             OFFSET(Таблица4[[#This Row],[t4]],-1,))),\n               Таблица4[[#This Row],[t1]],\n               OFFSET(Таблица4[[#This Row],[t4]],-1,)),\n     Таблица4[[#This Row],[t1]])","v":"22:31:46"},"00:55:22"]
["2016-12-04T22:19:13","2016-12-05T00:15:39","#7","+",null,null,null,null,null,null,null,null,null,null,null,"22:19:13","00:15:39",{"$f":"база_исход[[#This Row],[Аппарат]]","v":"#7"},{"$f":"IF(Таблица4[[#This Row],[-]]=OFFSET(Таблица4[[#This Row],[-]],-1,),\nIF(AND(OFFSET(Таблица4[[#This Row],[t2]],-1,)>OFFSET(Таблица4[[#This Row],[t3]],-1,),OFFSET(Таблица4[[#This Row],[t2]],-1,)<IF(OFFSET(Таблица4[[#This Row],[t3]],-1,)>=OFFSET(Таблица4[[#This Row],[t4]],-1,),OFFSET(Таблица4[[#This Row],[t4]],-1,)+1,OFFSET(Таблица4[[#This Row],[t4]],-1,))),OFFSET(Таблица4[[#This Row],[t2]],-1,),OFFSET(Таблица4[[#This Row],[t3]],-1,)),Таблица4[[#This Row],[t2]])","v":"21:36:24"},{"$f":"IF(\n     Таблица4[[#This Row],[-]]=OFFSET(Таблица4[[#This Row],[-]],-1,),\n     IF(\n               AND(IF(OFFSET(Таблица4[[#This Row],[t3]],-1,)>OFFSET(Таблица4[[#This Row],[t4]],-1,),Таблица4[[#This Row],[t1]]+1,Таблица4[[#This Row],[t1]])>OFFSET(Таблица4[[#This Row],[t3]],-1,),Таблица4[[#This Row],[t1]]<IF(\n                                                                                             OFFSET(Таблица4[[#This Row],[t3]],-1,)>=OFFSET(Таблица4[[#This Row],[t4]],-1,),\n                                                                                             OFFSET(Таблица4[[#This Row],[t4]],-1,)+1,\n                                                                                             OFFSET(Таблица4[[#This Row],[t4]],-1,))),\n               Таблица4[[#This Row],[t1]],\n               OFFSET(Таблица4[[#This Row],[t4]],-1,)),\n     Таблица4[[#This Row],[t1]])","v":"22:19:13"},"00:42:49"]

{"sheet":"Лист2","index":1,"n_rows":4,"n_cols":8,"rows_kept":4,"cut":false,"hidden":false,"merged":[]}
["База",null,null,"Новые данные",null,null,"Должно"]
["От ","до",null,"От ","до",null,"От ","до"]
["13:16:00","00:10:00",null,"17:10:00","17:19:00",null,{"$f":"IF(AND(D3>A3,D3<IF(B3<A3,B3+1,B3)),D3,A3)","v":"17:10:00"},{"$f":"IF(AND(E3>A3,E3<IF(B3<A3,B3+1,B3)),E3,B3)","v":"17:19:00"}]
["13:16:00","17:30:00",null,"17:10:00","17:19:00",null,{"$f":"IF(AND(D4>A4,D4<IF(B4<A4,B4+1,B4)),D4,A4)","v":"17:10:00"},{"$f":"IF(AND(E4>A4,E4<IF(B4<A4,B4+1,B4)),E4,B4)","v":"17:19:00"}]

{"sheet":"Лист3","index":2,"n_rows":265,"n_cols":15,"rows_kept":265,"cut":false,"hidden":false,"merged":[]}
["Столбец1","Столбец2","Столбец3","Столбец4","Столбец5","Столбец6","Столбец7","Столбец8","Столбец9","Столбец10","Столбец11","Столбец12","Столбец13","Столбец14","Столбец15"]
["2016-12-10T16:38:16","\\/","2016-12-10T23:50:42","/\\","остатки РАЯ","№3","Валерия","1 ринг","Перекупалась (2)",0.6,20,"обычная","не продается",{"$f":"Таблица3[[#This Row],[Столбец5]]&Таблица3[[#This Row],[Столбец6]]&Таблица3[[#This Row],[Столбец7]]&Таблица3[[#This Row],[Столбец8]]&Таблица3[[#This Row],[Столбец9]]&Таблица3[[#This Row],[Столбец12]]","v":"остатки РАЯ№3Валерия1 рингПерекупалась (2)обычная"},{"$f":"COUNTIF(Таблица3[Столбец14],Таблица3[[#This Row],[Столбец14]])","v":2}]
["2016-12-10T17:05:00","\\/","2016-12-11T13:16:05","/\\","DeAdLy AnD InViNcIbLeS","№1","Аля","1 ринг","Перекупалась (2)",0.5,16,"обычная","не продается",{"$f":"Таблица3[[#This Row],[Столбец5]]&Таблица3[[#This Row],[Столбец6]]&Таблица3[[#This Row],[Столбец7]]&Таблица3[[#This Row],[Столбец8]]&Таблица3[[#This Row],[Столбец9]]&Таблица3[[#This Row],[Столбец12]]","v":"DeAdLy AnD InViNcIbLeS№1Аля1 рингПерекупалась (2)обычная"},{"$f":"COUNTIF(Таблица3[Столбец14],Таблица3[[#This Row],[Столбец14]])","v":3}]
["2016-12-10T17:05:53","\\/","2016-12-10T23:57:36","/\\","Монстры на Каникулах","№2","Олеся","1 ринг","Перекупалась (2)",0.46,18,"обычная","не продается",{"$f":"Таблица3[[#This Row],[Столбец5]]&Таблица3[[#This Row],[Столбец6]]&Таблица3[[#This Row],[Столбец7]]&Таблица3[[#This Row],[Столбец8]]&Таблица3[[#This Row],[Столбец9]]&Таблица3[[#This Row],[Столбец12]]","v":"Монстры на Каникулах№2Олеся1 рингПерекупалась (2)обычная"},{"$f":"COUNTIF(Таблица3[Столбец14],Таблица3[[#This Row],[Столбец14]])","v":2}]
["2016-12-10T17:07:22","\\/","2016-12-10T19:59:33","/\\","львенок мяу","№2","Анфиса","1 ринг","Перекупалась (1)",0.56000000000000005,11,"обычная","не продается",{"$f":"Таблица3[[#This Row],[Столбец5]]&Таблица3[[#This Row],[Столбец6]]&Таблица3[[#This Row],[Столбец7]]&Таблица3[[#This Row],[Столбец8]]&Таблица3[[#This Row],[Столбец9]]&Таблица3[[#This Row],[Столбец12]]","v":"львенок мяу№2Анфиса1 рингПерекупалась (1)обычная"},{"$f":"COUNTIF(Таблица3[Столбец14],Таблица3[[#This Row],[Столбец14]])","v":2}]
["2016-12-10T17:09:13","\\/","2016-12-10T17:09:13","/\\","Белый Лебедь","№3","Альбина","2 ринг","Перекупалась (2)",0.34,16,"элитная","не продается",{"$f":"Таблица3[[#This Row],[Столбец5]]&Таблица3[[#This Row],[Столбец6]]&Таблица3[[#This Row],[Столбец7]]&Таблица3[[#This Row],[Столбец8]]&Таблица3[[#This Row],[Столбец9]]&Таблица3[[#This Row],[Столбец12]]","v":"Белый Лебедь№3Альбина2 рингПерекупалась (2)элитная"},{"$f":"COUNTIF(Таблица3[Столбец14],Таблица3[[#This Row],[Столбец14]])","v":4}]
["2016-12-10T17:12:53","\\/","2016-12-11T12:23:33","/\\","True Blood","№5","Даша","1 ринг","Перекупалась (1)",0.79,7,"обычная","не продается",{"$f":"Таблица3[[#This Row],[Столбец5]]&Таблица3[[#This Row],[Столбец6]]&Таблица3[[#This Row],[Столбец7]]&Таблица3[[#This Row],[Столбец8]]&Таблица3[[#This Row],[Столбец9]]&Таблица3[[#This Row],[Столбец12]]","v":"True Blood№5Даша1 рингПерекупалась (1)обычная"},{"$f":"COUNTIF(Таблица3[Столбец14],Таблица3[[#This Row],[Столбец14]])","v":2}]
["2016-12-10T17:18:02","\\/","2016-12-10T17:18:02","/\\","x.Eternity.x","№6","Катя","1 ринг","Перекупалась (1)",0.79,7,"обычная","не продается",{"$f":"Таблица3[[#This Row],[Столбец5]]&Таблица3[[#This Row],[Столбец6]]&Таблица3[[#This Row],[Столбец7]]&Таблица3[[#This Row],[Столбец8]]&Таблица3[[#This Row],[Столбец9]]&Таблица3[[#This Row],[Столбец12]]","v":"x.Eternity.x№6Катя1 рингПерекупалась (1)обычная"},{"$f":"COUNTIF(Таблица3[Столбец14],Таблица3[[#This Row],[Столбец14]])","v":2}]
["2016-12-10T17:31:40","\\/","2016-12-10T23:51:32","/\\","Завоеватели1","№4","Регина","1 ринг","Не перекупалась",0.46,9,"обычная","не продается",{"$f":"Таблица3[[#This Row],[Столбец5]]&Таблица3[[#This Row],[Столбец6]]&Таблица3[[#This Row],[Столбец7]]&Таблица3[[#This Row],[Столбец8]]&Таблица3[[#This Row],[Столбец9]]&Таблица3[[#This Row],[Столбец12]]","v":"Завоеватели1№4Регина1 рингНе перекупаласьобычная"},{"$f":"COUNTIF(Таблица3[Столбец14],Таблица3[[#This Row],[Столбец14]])","v":3}]
["2016-12-10T17:34:41","\\/","2016-12-10T23:51:56","/\\","Карточные Люди","№5","Лера","1 ринг","Не перекупалась",0.77,10,"обычная","не продается",{"$f":"Таблица3[[#This Row],[Столбец5]]&Таблица3[[#This Row],[Столбец6]]&Таблица3[[#This Row],[Столбец7]]&Таблица3[[#This Row],[Столбец8]]&Таблица3[[#This Row],[Столбец9]]&Таблица3[[#This Row],[Столбец12]]","v":"Карточные Люди№5Лера1 рингНе перекупаласьобычная"},{"$f":"COUNTIF(Таблица3[Столбец14],Таблица3[[#This Row],[Столбец14]])","v":2}]
["2016-12-10T17:37:37","\\/","2016-12-10T23:45:10","/\\","Крепкий орешек","№2","Лена","1 ринг","Перекупалась (1)",0.56000000000000005,17,"обычная","не продается",{"$f":"Таблица3[[#This Row],[Столбец5]]&Таблица3[[#This Row],[Столбец6]]&Таблица3[[#This Row],[Столбец7]]&Таблица3[[#This Row],[Столбец8]]&Таблица3[[#This Row],[Столбец9]]&Таблица3[[#This Row],[Столбец12]]","v":"Крепкий орешек№2Лена1 рингПерекупалась (1)обычная"},{"$f":"COUNTIF(Таблица3[Столбец14],Таблица3[[#This Row],[Столбец14]])","v":2}]
["2016-12-10T17:37:50","\\/","2016-12-10T17:37:50","/\\","Крепкий орешек","№3","Глория","2 ринг","Перекупалась (1)",0.52,21,"элитная","не продается",{"$f":"Таблица3[[#This Row],[Столбец5]]&Таблица3[[#This Row],[Столбец6]]&Таблица3[[#This Row],[Столбец7]]&Таблица3[[#This Row],[Столбец8]]&Таблица3[[#This Row],[Столбец9]]&Таблица3[[#This Row],[Столбец12]]","v":"Крепкий орешек№3Глория2 рингПерекупалась (1)элитная"},{"$f":"COUNTIF(Таблица3[Столбец14],Таблица3[[#This Row],[Столбец14]])","v":4}]
["2016-12-10T17:37:58","\\/","2016-12-10T23:45:27","/\\","Крепкий орешек","№4","Лена","1 ринг","Перекупалась (1)",0.51,20,"обычная","не продается",{"$f":"Таблица3[[#This Row],[Столбец5]]&Таблица3[[#This Row],[Столбец6]]&Таблица3[[#This Row],[Столбец7]]&Таблица3[[#This Row],[Столбец8]]&Таблица3[[#This Row],[Столбец9]]&Таблица3[[#This Row],[Столбец12]]","v":"Крепкий орешек№4Лена1 рингПерекупалась (1)обычная"},{"$f":"COUNTIF(Таблица3[Столбец14],Таблица3[[#This Row],[Столбец14]])","v":2}]
["2016-12-10T17:40:54","\\/","2016-12-10T23:52:19","/\\","Лунные волки","№2","Жанна","2 ринг","Не перекупалась",0.44,9,"элитная","не продается",{"$f":"Таблица3[[#This Row],[Столбец5]]&Таблица3[[#This Row],[Столбец6]]&Таблица3[[#This Row],[Столбец7]]&Таблица3[[#This Row],[Столбец8]]&Таблица3[[#This Row],[Столбец9]]&Таблица3[[#This Row],[Столбец12]]","v":"Лунные волки№2Жанна2 рингНе перекупаласьэлитная"},{"$f":"COUNTIF(Таблица3[Столбец14],Таблица3[[#This Row],[Столбец14]])","v":2}]
["2016-12-10T17:41:33","\\/","2016-12-10T23:52:44","/\\","Любимые Люди","№4","Рита","1 ринг","Не перекупалась",0.52,8,"обычная","не продается",{"$f":"Таблица3[[#This Row],[Столбец5]]&Таблица3[[#This Row],[Столбец6]]&Таблица3[[#This Row],[Столбец7]]&Таблица3[[#This Row],[Столбец8]]&Таблица3[[#This Row],[Столбец9]]&Таблица3[[#This Row],[Столбец12]]","v":"Любимые Люди№4Рита1 рингНе перекупаласьобычная"},{"$f":"COUNTIF(Таблица3[Столбец14],Таблица3[[#This Row],[Столбец14]])","v":3}]
["2016-12-10T17:42:08","\\/","2016-12-10T17:42:08","/\\","Малавита","№2","Ася","1 ринг","Перекупалась (1)",0.62,24,"обычная","не продается",{"$f":"Таблица3[[#This Row],[Столбец5]]&Таблица3[[#This Row],[Столбец6]]&Таблица3[[#This Row],[Столбец7]]&Таблица3[[#This Row],[Столбец8]]&Таблица3[[#This Row],[Столбец9]]&Таблица3[[#This Row],[Столбец12]]","v":"Малавита№2Ася1 рингПерекупалась (1)обычная"},{"$f":"COUNTIF(Таблица3[Столбец14],Таблица3[[#This Row],[Столбец14]])","v":3}]
["2016-12-10T17:42:27","\\/","2016-12-10T17:42:27","/\\","Малавита","№3","Нона","1 ринг","Перекупалась (2)",0.63,28,"обычная","не продается",{"$f":"Таблица3[[#This Row],[Столбец5]]&Таблица3[[#This Row],[Столбец6]]&Таблица3[[#This Row],[Столбец7]]&Таблица3[[#This Row],[Столбец8]]&Таблица3[[#This Row],[Столбец9]]&Таблица3[[#This Row],[Столбец12]]","v":"Малавита№3Нона1 рингПерекупалась (2)обычная"},{"$f":"COUNTIF(Таблица3[Столбец14],Таблица3[[#This Row],[Столбец14]])","v":2}]
["2016-12-10T17:42:49","\\/","2016-12-11T16:50:25","/\\","Малавита","№5","Яна","1 ринг","Перекупалась (2)",0.8,20,"обычная","не продается",{"$f":"Таблица3[[#This Row],[Столбец5]]&Таблица3[[#This Row],[Столбец6]]&Таблица3[[#This Row],[Столбец7]]&Таблица3[[#This Row],[Столбец8]]&Таблица3[[#This Row],[Столбец9]]&Таблица3[[#This Row],[Столбец12]]","v":"Малавита№5Яна1 рингПерекупалась (2)обычная"},{"$f":"COUNTIF(Таблица3[Столбец14],Таблица3[[#This Row],[Столбец14]])","v":2}]
["2016-12-10T17:50:56","\\/","2016-12-10T23:53:54","/\\","Неончики","№4","Анжела","3 ринг","Не перекупалась",0.64,26,"элитная","не продается",{"$f":"Таблица3[[#This Row],[Столбец5]]&Таблица3[[#This Row],[Столбец6]]&Таблица3[[#This Row],[Столбец7]]&Таблица3[[#This Row],[Столбец8]]&Таблица3[[#This Row],[Столбец9]]&Таблица3[[#This Row],[Столбец12]]","v":"Неончики№4Анжела3 рингНе перекупаласьэлитная"},{"$f":"COUNTIF(Таблица3[Столбец14],Таблица3[[#This Row],[Столбец14]])","v":3}]
["2016-12-10T17:52:06","\\/","2016-12-10T23:54:19","/\\","НеРеАлЬнЫе","№3","Фаина","2 ринг","Не перекупалась",0.34,20,"элитная","не продается",{"$f":"Таблица3[[#This Row],[Столбец5]]&Таблица3[[#This Row],[Столбец6]]&Таблица3[[#This Row],[Столбец7]]&Таблица3[[#This Row],[Столбец8]]&Таблица3[[#This Row],[Столбец9]]&Таблица3[[#This Row],[Столбец12]]","v":"НеРеАлЬнЫе№3Фаина2 рингНе перекупаласьэлитная"},{"$f":"COUNTIF(Таблица3[Столбец14],Таблица3[[#This Row],[Столбец14]])","v":3}]
["2016-12-10T17:59:53","\\/","2016-12-10T23:54:43","/\\","Рванина","№1","Забава","1 ринг","Перекупалась (1)",0.51,20,"обычная","не продается",{"$f":"Таблица3[[#This Row],[Столбец5]]&Таблица3[[#This Row],[Столбец6]]&Таблица3[[#This Row],[Столбец7]]&Таблица3[[#This Row],[Столбец8]]&Таблица3[[#This Row],[Столбец9]]&Таблица3[[#This Row],[Столбец12]]","v":"Рванина№1Забава1 рингПерекупалась (1)обычная"},{"$f":"COUNTIF(Таблица3[Столбец14],Таблица3[[#This Row],[Столбец14]])","v":3}]
["2016-12-10T18:00:08","\\/","2016-12-10T23:54:53","/\\","Рванина","№2","Аля","1 ринг","Перекупалась (1)",0.42,11,"обычная","не продается",{"$f":"Таблица3[[#This Row],[Столбец5]]&Таблица3[[#This Row],[Столбец6]]&Таблица3[[#This Row],[Столбец7]]&Таблица3[[#This Row],[Столбец8]]&Таблица3[[#This Row],[Столбец9]]&Таблица3[[#This Row],[Столбец12]]","v":"Рванина№2Аля1 рингПерекупалась (1)обычная"},{"$f":"COUNTIF(Таблица3[Столбец14],Таблица3[[#This Row],[Столбец14]])","v":3}]
["2016-12-10T18:00:16","\\/","2016-12-10T23:55:02","/\\","Рванина","№3","Алёна","1 ринг","Перекупалась (1)",0.81,19,"обычная","не продается",{"$f":"Таблица3[[#This Row],[Столбец5]]&Таблица3[[#This Row],[Столбец6]]&Таблица3[[#This Row],[Столбец7]]&Таблица3[[#This Row],[Столбец8]]&Таблица3[[#This Row],[Столбец9]]&Таблица3[[#This Row],[Столбец12]]","v":"Рванина№3Алёна1 рингПерекупалась (1)обычная"},{"$f":"COUNTIF(Таблица3[Столбец14],Таблица3[[#This Row],[Столбец14]])","v":2}]
["2016-12-10T18:03:44","\\/","2016-12-10T18:03:44","/\\","Сибирский экспресс","№4","?","5 ринг","Не перекупалась",0.72,4,"элитная","не продается",{"$f":"Таблица3[[#This Row],[Столбец5]]&Таблица3[[#This Row],[Столбец6]]&Таблица3[[#This Row],[Столбец7]]&Таблица3[[#This Row],[Столбец8]]&Таблица3[[#This Row],[Столбец9]]&Таблица3[[#This Row],[Столбец12]]","v":"Сибирский экспресс№4?5 рингНе перекупаласьэлитная"},{"$f":"COUNTIF(Таблица3[Столбец14],Таблица3[[#This Row],[Столбец14]])","v":1}]
["2016-12-10T18:04:39","\\/","2016-12-11T15:26:40","/\\","Синяя Вобла","№6","Венера","2 ринг","Перекупалась (1)",0.57999999999999996,7,"элитная","не продается",{"$f":"Таблица3[[#This Row],[Столбец5]]&Таблица3[[#This Row],[Столбец6]]&Таблица3[[#This Row],[Столбец7]]&Таблица3[[#This Row],[Столбец8]]&Таблица3[[#This Row],[Столбец9]]&Таблица3[[#This Row],[Столбец12]]","v":"Синяя Вобла№6Венера2 рингПерекупалась (1)элитная"},{"$f":"COUNTIF(Таблица3[Столбец14],Таблица3[[#This Row],[Столбец14]])","v":2}]
["2016-12-10T19:05:58","\\/","2016-12-10T23:56:29","/\\","Legendary rebels","№1","Регина","1 ринг","Перекупалась (1)",0.45,11,"обычная","не продается",{"$f":"Таблица3[[#This Row],[Столбец5]]&Таблица3[[#This Row],[Столбец6]]&Таблица3[[#This Row],[Столбец7]]&Таблица3[[#This Row],[Столбец8]]&Таблица3[[#This Row],[Столбец9]]&Таблица3[[#This Row],[Столбец12]]","v":"Legendary rebels№1Регина1 рингПерекупалась (1)обычная"},{"$f":"COUNTIF(Таблица3[Столбец14],Таблица3[[#This Row],[Столбец14]])","v":2}]
["2016-12-10T19:35:51","\\/","2016-12-11T14:44:54","/\\","Звезданутые облачка","№6","Римма","1 ринг","Перекупалась (2)",0.61,25,"обычная","не продается",{"$f":"Таблица3[[#This Row],[Столбец5]]&Таблица3[[#This Row],[Столбец6]]&Таблица3[[#This Row],[Столбец7]]&Таблица3[[#This Row],[Столбец8]]&Таблица3[[#This Row],[Столбец9]]&Таблица3[[#This Row],[Столбец12]]","v":"Звезданутые облачка№6Римма1 рингПерекупалась (2)обычная"},{"$f":"COUNTIF(Таблица3[Столбец14],Таблица3[[#This Row],[Столбец14]])","v":3}]
["2016-12-10T23:15:22","\\/","2016-12-11T19:18:36","/\\","Барбоссы","№5","Нона","1 ринг","Не перекупалась",0.88,4,"обычная","не продается",{"$f":"Таблица3[[#This Row],[Столбец5]]&Таблица3[[#This Row],[Столбец6]]&Таблица3[[#This Row],[Столбец7]]&Таблица3[[#This Row],[Столбец8]]&Таблица3[[#This Row],[Столбец9]]&Таблица3[[#This Row],[Столбец12]]","v":"Барбоссы№5Нона1 рингНе перекупаласьобычная"},{"$f":"COUNTIF(Таблица3[Столбец14],Таблица3[[#This Row],[Столбец14]])","v":2}]
["2016-12-10T23:18:12","\\/","2016-12-11T20:44:47","/\\","x.Eternity.x","№6","Катя","1 ринг","Перекупалась (1)",0.72,7,"обычная","не продается",{"$f":"Таблица3[[#This Row],[Столбец5]]&Таблица3[[#This Row],[Столбец6]]&Таблица3[[#This Row],[Столбец7]]&Таблица3[[#This Row],[Столбец8]]&Таблица3[[#This Row],[Столбец9]]&Таблица3[[#This Row],[Столбец12]]","v":"x.Eternity.x№6Катя1 рингПерекупалась (1)обычная"},{"$f":"COUNTIF(Таблица3[Столбец14],Таблица3[[#This Row],[Столбец14]])","v":2}]
["2016-12-10T23:18:36","\\/","2016-12-11T14:59:44","/\\","Белый Лебедь","№3","Альбина","2 ринг","Перекупалась (2)",0.54,18,"элитная","не продается",{"$f":"Таблица3[[#This Row],[Столбец5]]&Таблица3[[#This Row],[Столбец6]]&Таблица3[[#This Row],[Столбец7]]&Таблица3[[#This Row],[Столбец8]]&Таблица3[[#This Row],[Столбец9]]&Таблица3[[#This Row],[Столбец12]]","v":"Белый Лебедь№3Альбина2 рингПерекупалась (2)элитная"},{"$f":"COUNTIF(Таблица3[Столбец14],Таблица3[[#This Row],[Столбец14]])","v":4}]
["2016-12-10T23:22:36","\\/","2016-12-11T19:19:59","/\\","Sing for the Moment","№1","Нона","1 ринг","Перекупалась (2)",0.31,13,"обычная","не продается",{"$f":"Таблица3[[#This Row],[Столбец5]]&Таблица3[[#This Row],[Столбец6]]&Таблица3[[#This Row],[Столбец7]]&Таблица3[[#This Row],[Столбец8]]&Таблица3[[#This Row],[Столбец9]]&Таблица3[[#This Row],[Столбец12]]","v":"Sing for the Moment№1Нона1 рингПерекупалась (2)обычная"},{"$f":"COUNTIF(Таблица3[Столбец14],Таблица3[[#This Row],[Столбец14]])","v":1}]
["2016-12-10T23:22:44","\\/","2016-12-11T15:00:24","/\\","Sing for the Moment","№2","Аня","1 ринг","Перекупалась (2)",0.39,8,"обычная","не продается",{"$f":"Таблица3[[#This Row],[Столбец5]]&Таблица3[[#This Row],[Столбец6]]&Таблица3[[#This Row],[Столбец7]]&Таблица3[[#This Row],[Столбец8]]&Таблица3[[#This Row],[Столбец9]]&Таблица3[[#This Row],[Столбец12]]","v":"Sing for the Moment№2Аня1 рингПерекупалась (2)обычная"},{"$f":"COUNTIF(Таблица3[Столбец14],Таблица3[[#This Row],[Столбец14]])","v":2}]
["2016-12-10T23:22:53","\\/","2016-12-11T19:20:14","/\\","Sing for the Moment","№3","Настя","1 ринг","Перекупалась (2)",0.44,7,"обычная","не продается",{"$f":"Таблица3[[#This Row],[Столбец5]]&Таблица3[[#This Row],[Столбец6]]&Таблица3[[#This Row],[Столбец7]]&Таблица3[[#This Row],[Столбец8]]&Таблица3[[#This Row],[Столбец9]]&Таблица3[[#This Row],[Столбец12]]","v":"Sing for the Moment№3Настя1 рингПерекупалась (2)обычная"},{"$f":"COUNTIF(Таблица3[Столбец14],Таблица3[[#This Row],[Столбец14]])","v":2}]
["2016-12-10T23:23:02","\\/","2016-12-11T12:02:42","/\\","Sing for the Moment","№4","Аэлита","2 ринг","Перекупалась (1)",0.83,17,"элитная","не продается",{"$f":"Таблица3[[#This Row],[Столбец5]]&Таблица3[[#This Row],[Столбец6]]&Таблица3[[#This Row],[Столбец7]]&Таблица3[[#This Row],[Столбец8]]&Таблица3[[#This Row],[Столбец9]]&Таблица3[[#This Row],[Столбец12]]","v":"Sing for the Moment№4Аэлита2 рингПерекупалась (1)элитная"},{"$f":"COUNTIF(Таблица3[Столбец14],Таблица3[[#This Row],[Столбец14]])","v":2}]
["2016-12-10T23:23:11","\\/","2016-12-10T23:23:11","/\\","Sing for the Moment","№5","Лера","1 ринг","Перекупалась (2)",1,10,"обычная","не продается",{"$f":"Таблица3[[#This Row],[Столбец5]]&Таблица3[[#This Row],[Столбец6]]&Таблица3[[#This Row],[Столбец7]]&Таблица3[[#This Row],[Столбец8]]&Таблица3[[#This Row],[Столбец9]]&Таблица3[[#This Row],[Столбец12]]","v":"Sing for the Moment№5Лера1 рингПерекупалась (2)обычная"},{"$f":"COUNTIF(Таблица3[Столбец14],Таблица3[[#This Row],[Столбец14]])","v":2}]
["2016-12-10T23:23:53","\\/","2016-12-10T23:23:53","/\\","World of Shadows","№1","Римма","1 ринг","Перекупалась (1)",0.44,12,"обычная","не продается",{"$f":"Таблица3[[#This Row],[Столбец5]]&Таблица3[[#This Row],[Столбец6]]&Таблица3[[#This Row],[Столбец7]]&Таблица3[[#This Row],[Столбец8]]&Таблица3[[#This Row],[Столбец9]]&Таблица3[[#This Row],[Столбец12]]","v":"World of Shadows№1Римма1 рингПерекупалась (1)обычная"},{"$f":"COUNTIF(Таблица3[Столбец14],Таблица3[[#This Row],[Столбец14]])","v":2}]
["2016-12-10T23:24:02","\\/","2016-12-10T23:24:02","/\\","World of Shadows","№2","Лиза","1 ринг","Перекупалась (1)",0.63,28,"обычная","не продается",{"$f":"Таблица3[[#This Row],[Столбец5]]&Таблица3[[#This Row],[Столбец6]]&Таблица3[[#This Row],[Столбец7]]&Таблица3[[#This Row],[Столбец8]]&Таблица3[[#This Row],[Столбец9]]&Таблица3[[#This Row],[Столбец12]]","v":"World of Shadows№2Лиза1 рингПерекупалась (1)обычная"},{"$f":"COUNTIF(Таблица3[Столбец14],Таблица3[[#This Row],[Столбец14]])","v":2}]
["2016-12-10T23:24:20","\\/","2016-12-11T17:10:25","/\\","World of Shadows","№4","Марго","1 ринг","Перекупалась (1)",0.56000000000000005,22,"обычная","не продается",{"$f":"Таблица3[[#This Row],[Столбец5]]&Таблица3[[#This Row],[Столбец6]]&Таблица3[[#This Row],[Столбец7]]&Таблица3[[#This Row],[Столбец8]]&Таблица3[[#This Row],[Столбец9]]&Таблица3[[#This Row],[Столбец12]]","v":"World of Shadows№4Марго1 рингПерекупалась (1)обычная"},{"$f":"COUNTIF(Таблица3[Столбец14],Таблица3[[#This Row],[Столбец14]])","v":3}]
["2016-12-10T23:24:52","\\/","2016-12-10T23:24:52","/\\","Короли Топа","№1","Эрика","2 ринг","Перекупалась (1)",0.31,8,"элитная","не продается",{"$f":"Таблица3[[#This Row],[Столбец5]]&Таблица3[[#This Row],[Столбец6]]&Таблица3[[#This Row],[Столбец7]]&Таблица3[[#This Row],[Столбец8]]&Таблица3[[#This Row],[Столбец9]]&Таблица3[[#This Row],[Столбец12]]","v":"Короли Топа№1Эрика2 рингПерекупалась (1)элитная"},{"$f":"COUNTIF(Таблица3[Столбец14],Таблица3[[#This Row],[Столбец14]])","v":2}]
["2016-12-10T23:25:00","\\/","2016-12-10T23:25:00","/\\","Короли Топа","№6","Валя","1 ринг","Перекупалась (1)",0.54,16,"обычная","не продается",{"$f":"Таблица3[[#This Row],[Столбец5]]&Таблица3[[#This Row],[Столбец6]]&Таблица3[[#This Row],[Столбец7]]&Таблица3[[#This Row],[Столбец8]]&Таблица3[[#This Row],[Столбец9]]&Таблица3[[#This Row],[Столбец12]]","v":"Короли Топа№6Валя1 рингПерекупалась (1)обычная"},{"$f":"COUNTIF(Таблица3[Столбец14],Таблица3[[#This Row],[Столбец14]])","v":3}]
["2016-12-10T23:26:33","\\/","2016-12-10T23:26:33","/\\","Гадкий Кайот","№3","Оля","1 ринг","Не перекупалась",0.37,9,"обычная","не продается",{"$f":"Таблица3[[#This Row],[Столбец5]]&Таблица3[[#This Row],[Столбец6]]&Таблица3[[#This Row],[Столбец7]]&Таблица3[[#This Row],[Столбец8]]&Таблица3[[#This Row],[Столбец9]]&Таблица3[[#This Row],[Столбец12]]","v":"Гадкий Кайот№3Оля1 рингНе перекупаласьобычная"},{"$f":"COUNTIF(Таблица3[Столбец14],Таблица3[[#This Row],[Столбец14]])","v":2}]
["2016-12-10T23:27:22","\\/","2016-12-10T23:27:22","/\\","Зоопарк","№1","Аня","1 ринг","Перекупалась (1)",0.57999999999999996,7,"обычная","не продается",{"$f":"Таблица3[[#This Row],[Столбец5]]&Таблица3[[#This Row],[Столбец6]]&Таблица3[[#This Row],[Столбец7]]&Таблица3[[#This Row],[Столбец8]]&Таблица3[[#This Row],[Столбец9]]&Таблица3[[#This Row],[Столбец12]]","v":"Зоопарк№1Аня1 рингПерекупалась (1)обычная"},{"$f":"COUNTIF(Таблица3[Столбец14],Таблица3[[#This Row],[Столбец14]])","v":2}]
["2016-12-10T23:27:31","\\/","2016-12-11T15:03:07","/\\","Зоопарк","№5","Тоня","1 ринг","Перекупалась (1)",0.46,9,"обычная","не продается",{"$f":"Таблица3[[#This Row],[Столбец5]]&Таблица3[[#This Row],[Столбец6]]&Таблица3[[#This Row],[Столбец7]]&Таблица3[[#This Row],[Столбец8]]&Таблица3[[#This Row],[Столбец9]]&Таблица3[[#This Row],[Столбец12]]","v":"Зоопарк№5Тоня1 рингПерекупалась (1)обычная"},{"$f":"COUNTIF(Таблица3[Столбец14],Таблица3[[#This Row],[Столбец14]])","v":3}]
["2016-12-10T23:27:54","\\/","2016-12-11T12:05:34","/\\","Стая яростных Волков","№2","Дана","2 ринг","Перекупалась (1)",1,20,"элитная","не продается",{"$f":"Таблица3[[#This Row],[Столбец5]]&Таблица3[[#This Row],[Столбец6]]&Таблица3[[#This Row],[Столбец7]]&Таблица3[[#This Row],[Столбец8]]&Таблица3[[#This Row],[Столбец9]]&Таблица3[[#This Row],[Столбец12]]","v":"Стая яростных Волков№2Дана2 рингПерекупалась (1)элитная"},{"$f":"COUNTIF(Таблица3[Столбец14],Таблица3[[#This Row],[Столбец14]])","v":2}]
["2016-12-10T23:28:02","\\/","2016-12-10T23:28:02","/\\","Стая яростных Волков","№4","Саша","1 ринг","Перекупалась (1)",0.86,7,"обычная","не продается",{"$f":"Таблица3[[#This Row],[Столбец5]]&Таблица3[[#This Row],[Столбец6]]&Таблица3[[#This Row],[Столбец7]]&Таблица3[[#This Row],[Столбец8]]&Таблица3[[#This Row],[Столбец9]]&Таблица3[[#This Row],[Столбец12]]","v":"Стая яростных Волков№4Саша1 рингПерекупалась (1)обычная"},{"$f":"COUNTIF(Таблица3[Столбец14],Таблица3[[#This Row],[Столбец14]])","v":2}]
["2016-12-10T23:28:11","\\/","2016-12-11T20:49:23","/\\","Стая яростных Волков","№5","Олеся","1 ринг","Перекупалась (2)",0.44,13,"обычная","не продается",{"$f":"Таблица3[[#This Row],[Столбец5]]&Таблица3[[#This Row],[Столбец6]]&Таблица3[[#This Row],[Столбец7]]&Таблица3[[#This Row],[Столбец8]]&Таблица3[[#This Row],[Столбец9]]&Таблица3[[#This Row],[Столбец12]]","v":"Стая яростных Волков№5Олеся1 рингПерекупалась (2)обычная"},{"$f":"COUNTIF(Таблица3[Столбец14],Таблица3[[#This Row],[Столбец14]])","v":1}]
["2016-12-10T23:28:20","\\/","2016-12-11T15:03:51","/\\","Стая яростных Волков","№6","Алёна","1 ринг","Перекупалась (1)",0.47,10,"обычная","не продается",{"$f":"Таблица3[[#This Row],[Столбец5]]&Таблица3[[#This Row],[Столбец6]]&Таблица3[[#This Row],[Столбец7]]&Таблица3[[#This Row],[Столбец8]]&Таблица3[[#This Row],[Столбец9]]&Таблица3[[#This Row],[Столбец12]]","v":"Стая яростных Волков№6Алёна1 рингПерекупалась (1)обычная"},{"$f":"COUNTIF(Таблица3[Столбец14],Таблица3[[#This Row],[Столбец14]])","v":2}]
["2016-12-10T23:28:43","\\/","2016-12-10T23:28:43","/\\","Тинг","№1","Кира","1 ринг","Перекупалась (2)",0.8,20,"обычная","не продается",{"$f":"Таблица3[[#This Row],[Столбец5]]&Таблица3[[#This Row],[Столбец6]]&Таблица3[[#This Row],[Столбец7]]&Таблица3[[#This Row],[Столбец8]]&Таблица3[[#This Row],[Столбец9]]&Таблица3[[#This Row],[Столбец12]]","v":"Тинг№1Кира1 рингПерекупалась (2)обычная"},{"$f":"COUNTIF(Таблица3[Столбец14],Таблица3[[#This Row],[Столбец14]])","v":2}]
["2016-12-10T23:28:53","\\/","2016-12-11T17:13:22","/\\","Тинг","№4","Лина","1 ринг","Перекупалась (1)",0.41,10,"обычная","не продается",{"$f":"Таблица3[[#This Row],[Столбец5]]&Таблица3[[#This Row],[Столбец6]]&Таблица3[[#This Row],[Столбец7]]&Таблица3[[#This Row],[Столбец8]]&Таблица3[[#This Row],[Столбец9]]&Таблица3[[#This Row],[Столбец12]]","v":"Тинг№4Лина1 рингПерекупалась (1)обычная"},{"$f":"COUNTIF(Таблица3[Столбец14],Таблица3[[#This Row],[Столбец14]])","v":2}]
["2016-12-10T23:29:15","\\/","2016-12-10T23:29:15","/\\","Урбаны с 8","№4","Забава","1 ринг","Перекупалась (1)",0.45,17,"обычная","не продается",{"$f":"Таблица3[[#This Row],[Столбец5]]&Таблица3[[#This Row],[Столбец6]]&Таблица3[[#This Row],[Столбец7]]&Таблица3[[#This Row],[Столбец8]]&Таблица3[[#This Row],[Столбец9]]&Таблица3[[#This Row],[Столбец12]]","v":"Урбаны с 8№4Забава1 рингПерекупалась (1)обычная"},{"$f":"COUNTIF(Таблица3[Столбец14],Таблица3[[#This Row],[Столбец14]])","v":3}]
["2016-12-10T23:30:16","\\/","2016-12-10T23:30:16","/\\","Boondock Saints. Young","№3","Вера","1 ринг","Перекупалась (1)",0.56000000000000005,23,"обычная","не продается",{"$f":"Таблица3[[#This Row],[Столбец5]]&Таблица3[[#This Row],[Столбец6]]&Таблица3[[#This Row],[Столбец7]]&Таблица3[[#This Row],[Столбец8]]&Таблица3[[#This Row],[Столбец9]]&Таблица3[[#This Row],[Столбец12]]","v":"Boondock Saints. Young№3Вера1 рингПерекупалась (1)обычная"},{"$f":"COUNTIF(Таблица3[Столбец14],Таблица3[[#This Row],[Столбец14]])","v":2}]
["2016-12-10T23:30:25","\\/","2016-12-10T23:30:25","/\\","Boondock Saints. Young","№4","Рената","1 ринг","Перекупалась (1)",0.84,8,"обычная","не продается",{"$f":"Таблица3[[#This Row],[Столбец5]]&Таблица3[[#This Row],[Столбец6]]&Таблица3[[#This Row],[Столбец7]]&Таблица3[[#This Row],[Столбец8]]&Таблица3[[#This Row],[Столбец9]]&Таблица3[[#This Row],[Столбец12]]","v":"Boondock Saints. Young№4Рената1 рингПерекупалась (1)обычная"},{"$f":"COUNTIF(Таблица3[Столбец14],Таблица3[[#This Row],[Столбец14]])","v":2}]
["2016-12-10T23:30:48","\\/","2016-12-10T23:30:48","/\\","Boondock Saints. Young ","№3","Вера","1 ринг","Перекупалась (1)",0.56000000000000005,23,"обычная","не продается",{"$f":"Таблица3[[#This Row],[Столбец5]]&Таблица3[[#This Row],[Столбец6]]&Таблица3[[#This Row],[Столбец7]]&Таблица3[[#This Row],[Столбец8]]&Таблица3[[#This Row],[Столбец9]]&Таблица3[[#This Row],[Столбец12]]","v":"Boondock Saints. Young №3Вера1 рингПерекупалась (1)обычная"},{"$f":"COUNTIF(Таблица3[Столбец14],Таблица3[[#This Row],[Столбец14]])","v":2}]
["2016-12-10T23:30:56","\\/","2016-12-10T23:30:56","/\\","Boondock Saints. Young ","№4","Рената","1 ринг","Перекупалась (1)",0.84,8,"обычная","не продается",{"$f":"Таблица3[[#This Row],[Столбец5]]&Таблица3[[#This Row],[Столбец6]]&Таблица3[[#This Row],[Столбец7]]&Таблица3[[#This Row],[Столбец8]]&Таблица3[[#This Row],[Столбец9]]&Таблица3[[#This Row],[Столбец12]]","v":"Boondock Saints. Young №4Рената1 рингПерекупалась (1)обычная"},{"$f":"COUNTIF(Таблица3[Столбец14],Таблица3[[#This Row],[Столбец14]])","v":2}]
["2016-12-10T23:31:34","\\/","2016-12-10T23:31:34","/\\","Dance legend","№5","Таня","1 ринг","Перекупалась (1)",0.47,10,"обычная","не продается",{"$f":"Таблица3[[#This Row],[Столбец5]]&Таблица3[[#This Row],[Столбец6]]&Таблица3[[#This Row],[Столбец7]]&Таблица3[[#This Row],[Столбец8]]&Таблица3[[#This Row],[Столбец9]]&Таблица3[[#This Row],[Столбец12]]","v":"Dance legend№5Таня1 рингПерекупалась (1)обычная"},{"$f":"COUNTIF(Таблица3[Столбец14],Таблица3[[#This Row],[Столбец14]])","v":2}]
["2016-12-10T23:32:38","\\/","2016-12-10T23:32:38","/\\","Fluffy Animals","№4","Римма","1 ринг","Перекупалась (1)",1,20,"обычная","не продается",{"$f":"Таблица3[[#This Row],[Столбец5]]&Таблица3[[#This Row],[Столбец6]]&Таблица3[[#This Row],[Столбец7]]&Таблица3[[#This Row],[Столбец8]]&Таблица3[[#This Row],[Столбец9]]&Таблица3[[#This Row],[Столбец12]]","v":"Fluffy Animals№4Римма1 рингПерекупалась (1)обычная"},{"$f":"COUNTIF(Таблица3[Столбец14],Таблица3[[#This Row],[Столбец14]])","v":2}]
["2016-12-10T23:33:01","\\/","2016-12-11T19:27:08","/\\","Green Hip Hop","№5","Анфиса","1 ринг","Не перекупалась",0.53,15,"обычная","не продается",{"$f":"Таблица3[[#This Row],[Столбец5]]&Таблица3[[#This Row],[Столбец6]]&Таблица3[[#This Row],[Столбец7]]&Таблица3[[#This Row],[Столбец8]]&Таблица3[[#This Row],[Столбец9]]&Таблица3[[#This Row],[Столбец12]]","v":"Green Hip Hop№5Анфиса1 рингНе перекупаласьобычная"},{"$f":"COUNTIF(Таблица3[Столбец14],Таблица3[[#This Row],[Столбец14]])","v":2}]
["2016-12-10T23:33:24","\\/","2016-12-10T23:33:24","/\\","MaD Alliance","№5","Валя","1 ринг","Перекупалась (1)",0.39,8,"обычная","не продается",{"$f":"Таблица3[[#This Row],[Столбец5]]&Таблица3[[#This Row],[Столбец6]]&Таблица3[[#This Row],[Столбец7]]&Таблица3[[#This Row],[Столбец8]]&Таблица3[[#This Row],[Столбец9]]&Таблица3[[#This Row],[Столбец12]]","v":"MaD Alliance№5Валя1 рингПерекупалась (1)обычная"},{"$f":"COUNTIF(Таблица3[Столбец14],Таблица3[[#This Row],[Столбец14]])","v":2}]
["2016-12-10T23:33:32","\\/","2016-12-11T16:33:39","/\\","MaD Alliance","№6","Алёна","1 ринг","Перекупалась (1)",0.79,7,"обычная","не продается",{"$f":"Таблица3[[#This Row],[Столбец5]]&Таблица3[[#This Row],[Столбец6]]&Таблица3[[#This Row],[Столбец7]]&Таблица3[[#This Row],[Столбец8]]&Таблица3[[#This Row],[Столбец9]]&Таблица3[[#This Row],[Столбец12]]","v":"MaD Alliance№6Алёна1 рингПерекупалась (1)обычная"},{"$f":"COUNTIF(Таблица3[Столбец14],Таблица3[[#This Row],[Столбец14]])","v":2}]
["2016-12-10T23:33:55","\\/","2016-12-10T23:33:55","/\\","Medical Center","№2","Вера","1 ринг","Перекупалась (1)",0.44,7,"обычная","не продается",{"$f":"Таблица3[[#This Row],[Столбец5]]&Таблица3[[#This Row],[Столбец6]]&Таблица3[[#This Row],[Столбец7]]&Таблица3[[#This Row],[Столбец8]]&Таблица3[[#This Row],[Столбец9]]&Таблица3[[#This Row],[Столбец12]]","v":"Medical Center№2Вера1 рингПерекупалась (1)обычная"},{"$f":"COUNTIF(Таблица3[Столбец14],Таблица3[[#This Row],[Столбец14]])","v":2}]
["2016-12-10T23:34:04","\\/","2016-12-11T12:10:10","/\\","Medical Center","№5","Лера","1 ринг","Перекупалась (1)",0.56999999999999995,26,"обычная","не продается",{"$f":"Таблица3[[#This Row],[Столбец5]]&Таблица3[[#This Row],[Столбец6]]&Таблица3[[#This Row],[Столбец7]]&Таблица3[[#This Row],[Столбец8]]&Таблица3[[#This Row],[Столбец9]]&Таблица3[[#This Row],[Столбец12]]","v":"Medical Center№5Лера1 рингПерекупалась (1)обычная"},{"$f":"COUNTIF(Таблица3[Столбец14],Таблица3[[#This Row],[Столбец14]])","v":3}]
["2016-12-10T23:34:31","\\/","2016-12-10T23:34:31","/\\","METALL IN MY BLOOD","№5","Слава","1 ринг","Не перекупалась",0.69,13,"обычная","не продается",{"$f":"Таблица3[[#This Row],[Столбец5]]&Таблица3[[#This Row],[Столбец6]]&Таблица3[[#This Row],[Столбец7]]&Таблица3[[#This Row],[Столбец8]]&Таблица3[[#This Row],[Столбец9]]&Таблица3[[#This Row],[Столбец12]]","v":"METALL IN MY BLOOD№5Слава1 рингНе перекупаласьобычная"},{"$f":"COUNTIF(Таблица3[Столбец14],Таблица3[[#This Row],[Столбец14]])","v":3}]
["2016-12-10T23:34:56","\\/","2016-12-10T23:34:56","/\\","Music Ghoul","№6","Тамара","1 ринг","Перекупалась (1)",0.44,8,"обычная","не продается",{"$f":"Таблица3[[#This Row],[Столбец5]]&Таблица3[[#This Row],[Столбец6]]&Таблица3[[#This Row],[Столбец7]]&Таблица3[[#This Row],[Столбец8]]&Таблица3[[#This Row],[Столбец9]]&Таблица3[[#This Row],[Столбец12]]","v":"Music Ghoul№6Тамара1 рингПерекупалась (1)обычная"},{"$f":"COUNTIF(Таблица3[Столбец14],Таблица3[[#This Row],[Столбец14]])","v":3}]
["2016-12-10T23:35:35","\\/","2016-12-10T23:35:35","/\\","NEUROPUNK","№2","Эльвира","2 ринг","Перекупалась (1)",0.34,24,"элитная","не продается",{"$f":"Таблица3[[#This Row],[Столбец5]]&Таблица3[[#This Row],[Столбец6]]&Таблица3[[#This Row],[Столбец7]]&Таблица3[[#This Row],[Столбец8]]&Таблица3[[#This Row],[Столбец9]]&Таблица3[[#This Row],[Столбец12]]","v":"NEUROPUNK№2Эльвира2 рингПерекупалась (1)элитная"},{"$f":"COUNTIF(Таблица3[Столбец14],Таблица3[[#This Row],[Столбец14]])","v":2}]
["2016-12-10T23:35:47","\\/","2016-12-11T20:12:46","/\\","NEUROPUNK","№6","Валерия","1 ринг","Перекупалась (2)",0.66,28,"обычная","не продается",{"$f":"Таблица3[[#This Row],[Столбец5]]&Таблица3[[#This Row],[Столбец6]]&Таблица3[[#This Row],[Столбец7]]&Таблица3[[#This Row],[Столбец8]]&Таблица3[[#This Row],[Столбец9]]&Таблица3[[#This Row],[Столбец12]]","v":"NEUROPUNK№6Валерия1 рингПерекупалась (2)обычная"},{"$f":"COUNTIF(Таблица3[Столбец14],Таблица3[[#This Row],[Столбец14]])","v":2}]
["2016-12-10T23:36:38","\\/","2016-12-10T23:36:38","/\\","ORIGIN of LIFE","№1","Брунгильда","1 ринг","Не перекупалась",0.65,5,"обычная","не продается",{"$f":"Таблица3[[#This Row],[Столбец5]]&Таблица3[[#This Row],[Столбец6]]&Таблица3[[#This Row],[Столбец7]]&Таблица3[[#This Row],[Столбец8]]&Таблица3[[#This Row],[Столбец9]]&Таблица3[[#This Row],[Столбец12]]","v":"ORIGIN of LIFE№1Брунгильда1 рингНе перекупаласьобычная"},{"$f":"COUNTIF(Таблица3[Столбец14],Таблица3[[#This Row],[Столбец14]])","v":2}]
["2016-12-10T23:37:03","\\/","2016-12-11T19:30:23","/\\","Pufystiki","№5","Земфира","3 ринг","Не перекупалась",0.6,4,"элитная","не продается",{"$f":"Таблица3[[#This Row],[Столбец5]]&Таблица3[[#This Row],[Столбец6]]&Таблица3[[#This Row],[Столбец7]]&Таблица3[[#This Row],[Столбец8]]&Таблица3[[#This Row],[Столбец9]]&Таблица3[[#This Row],[Столбец12]]","v":"Pufystiki№5Земфира3 рингНе перекупаласьэлитная"},{"$f":"COUNTIF(Таблица3[Столбец14],Таблица3[[#This Row],[Столбец14]])","v":2}]
["2016-12-10T23:37:42","\\/","2016-12-10T23:37:42","/\\","Rap Story","№3","Оксана","1 ринг","Перекупалась (1)",0.48,17,"обычная","не продается",{"$f":"Таблица3[[#This Row],[Столбец5]]&Таблица3[[#This Row],[Столбец6]]&Таблица3[[#This Row],[Столбец7]]&Таблица3[[#This Row],[Столбец8]]&Таблица3[[#This Row],[Столбец9]]&Таблица3[[#This Row],[Столбец12]]","v":"Rap Story№3Оксана1 рингПерекупалась (1)обычная"},{"$f":"COUNTIF(Таблица3[Столбец14],Таблица3[[#This Row],[Столбец14]])","v":3}]
["2016-12-10T23:37:51","\\/","2016-12-10T23:37:51","/\\","Rap Story","№5","Пелагея","1 ринг","Перекупалась (1)",0.46,9,"обычная","не продается",{"$f":"Таблица3[[#This Row],[Столбец5]]&Таблица3[[#This Row],[Столбец6]]&Таблица3[[#This Row],[Столбец7]]&Таблица3[[#This Row],[Столбец8]]&Таблица3[[#This Row],[Столбец9]]&Таблица3[[#This Row],[Столбец12]]","v":"Rap Story№5Пелагея1 рингПерекупалась (1)обычная"},{"$f":"COUNTIF(Таблица3[Столбец14],Таблица3[[#This Row],[Столбец14]])","v":3}]
["2016-12-10T23:38:15","\\/","2016-12-10T23:38:15","/\\","Rever Hird","№1","Оксана","1 ринг","Перекупалась (1)",0.44,7,"обычная","не продается",{"$f":"Таблица3[[#This Row],[Столбец5]]&Таблица3[[#This Row],[Столбец6]]&Таблица3[[#This Row],[Столбец7]]&Таблица3[[#This Row],[Столбец8]]&Таблица3[[#This Row],[Столбец9]]&Таблица3[[#This Row],[Столбец12]]","v":"Rever Hird№1Оксана1 рингПерекупалась (1)обычная"},{"$f":"COUNTIF(Таблица3[Столбец14],Таблица3[[#This Row],[Столбец14]])","v":2}]
["2016-12-10T23:38:24","\\/","2016-12-10T23:38:24","/\\","Rever Hird","№3","Юля","1 ринг","Перекупалась (1)",0.72,7,"обычная","не продается",{"$f":"Таблица3[[#This Row],[Столбец5]]&Таблица3[[#This Row],[Столбец6]]&Таблица3[[#This Row],[Столбец7]]&Таблица3[[#This Row],[Столбец8]]&Таблица3[[#This Row],[Столбец9]]&Таблица3[[#This Row],[Столбец12]]","v":"Rever Hird№3Юля1 рингПерекупалась (1)обычная"},{"$f":"COUNTIF(Таблица3[Столбец14],Таблица3[[#This Row],[Столбец14]])","v":2}]
["2016-12-10T23:38:55","\\/","2016-12-10T23:38:55","/\\","Rhythmic Beasts","№5","Зоя","1 ринг","Перекупалась (1)",0.53,20,"обычная","не продается",{"$f":"Таблица3[[#This Row],[Столбец5]]&Таблица3[[#This Row],[Столбец6]]&Таблица3[[#This Row],[Столбец7]]&Таблица3[[#This Row],[Столбец8]]&Таблица3[[#This Row],[Столбец9]]&Таблица3[[#This Row],[Столбец12]]","v":"Rhythmic Beasts№5Зоя1 рингПерекупалась (1)обычная"},{"$f":"COUNTIF(Таблица3[Столбец14],Таблица3[[#This Row],[Столбец14]])","v":2}]
["2016-12-10T23:39:20","\\/","2016-12-10T23:39:20","/\\","RockDiva","№2","Лида","1 ринг","Перекупалась (2)",0.6,8,"обычная","не продается",{"$f":"Таблица3[[#This Row],[Столбец5]]&Таблица3[[#This Row],[Столбец6]]&Таблица3[[#This Row],[Столбец7]]&Таблица3[[#This Row],[Столбец8]]&Таблица3[[#This Row],[Столбец9]]&Таблица3[[#This Row],[Столбец12]]","v":"RockDiva№2Лида1 рингПерекупалась (2)обычная"},{"$f":"COUNTIF(Таблица3[Столбец14],Таблица3[[#This Row],[Столбец14]])","v":3}]
["2016-12-10T23:39:28","\\/","2016-12-10T23:39:28","/\\","RockDiva","№3","Марго","1 ринг","Перекупалась (1)",0.56999999999999995,17,"обычная","не продается",{"$f":"Таблица3[[#This Row],[Столбец5]]&Таблица3[[#This Row],[Столбец6]]&Таблица3[[#This Row],[Столбец7]]&Таблица3[[#This Row],[Столбец8]]&Таблица3[[#This Row],[Столбец9]]&Таблица3[[#This Row],[Столбец12]]","v":"RockDiva№3Марго1 рингПерекупалась (1)обычная"},{"$f":"COUNTIF(Таблица3[Столбец14],Таблица3[[#This Row],[Столбец14]])","v":2}]
["2016-12-10T23:39:38","\\/","2016-12-10T23:39:38","/\\","RockDiva","№4","Руслана","1 ринг","Перекупалась (1)",0.57999999999999996,24,"обычная","не продается",{"$f":"Таблица3[[#This Row],[Столбец5]]&Таблица3[[#This Row],[Столбец6]]&Таблица3[[#This Row],[Столбец7]]&Таблица3[[#This Row],[Столбец8]]&Таблица3[[#This Row],[Столбец9]]&Таблица3[[#This Row],[Столбец12]]","v":"RockDiva№4Руслана1 рингПерекупалась (1)обычная"},{"$f":"COUNTIF(Таблица3[Столбец14],Таблица3[[#This Row],[Столбец14]])","v":4}]
["2016-12-10T23:39:56","\\/","2016-12-11T20:16:05","/\\","RockDiva","№6","Кира","1 ринг","Перекупалась (2)",0.64,9,"обычная","не продается",{"$f":"Таблица3[[#This Row],[Столбец5]]&Таблица3[[#This Row],[Столбец6]]&Таблица3[[#This Row],[Столбец7]]&Таблица3[[#This Row],[Столбец8]]&Таблица3[[#This Row],[Столбец9]]&Таблица3[[#This Row],[Столбец12]]","v":"RockDiva№6Кира1 рингПерекупалась (2)обычная"},{"$f":"COUNTIF(Таблица3[Столбец14],Таблица3[[#This Row],[Столбец14]])","v":2}]
["2016-12-10T23:40:20","\\/","2016-12-11T16:39:18","/\\","The Bling Ring","№1","Настя","1 ринг","Перекупалась (1)",0.47,8,"обычная","не продается",{"$f":"Таблица3[[#This Row],[Столбец5]]&Таблица3[[#This Row],[Столбец6]]&Таблица3[[#This Row],[Столбец7]]&Таблица3[[#This Row],[Столбец8]]&Таблица3[[#This Row],[Столбец9]]&Таблица3[[#This Row],[Столбец12]]","v":"The Bling Ring№1Настя1 рингПерекупалась (1)обычная"},{"$f":"COUNTIF(Таблица3[Столбец14],Таблица3[[#This Row],[Столбец14]])","v":3}]
["2016-12-10T23:40:29","\\/","2016-12-11T13:45:25","/\\","The Bling Ring","№3","Оксана","1 ринг","Перекупалась (1)",0.51,7,"обычная","не продается",{"$f":"Таблица3[[#This Row],[Столбец5]]&Таблица3[[#This Row],[Столбец6]]&Таблица3[[#This Row],[Столбец7]]&Таблица3[[#This Row],[Столбец8]]&Таблица3[[#This Row],[Столбец9]]&Таблица3[[#This Row],[Столбец12]]","v":"The Bling Ring№3Оксана1 рингПерекупалась (1)обычная"},{"$f":"COUNTIF(Таблица3[Столбец14],Таблица3[[#This Row],[Столбец14]])","v":3}]
["2016-12-10T23:40:53","\\/","2016-12-11T20:59:49","/\\","Ватоботы","№1","Эмма","2 ринг","Не перекупалась",0.49,17,"элитная","не продается",{"$f":"Таблица3[[#This Row],[Столбец5]]&Таблица3[[#This Row],[Столбец6]]&Таблица3[[#This Row],[Столбец7]]&Таблица3[[#This Row],[Столбец8]]&Таблица3[[#This Row],[Столбец9]]&Таблица3[[#This Row],[Столбец12]]","v":"Ватоботы№1Эмма2 рингНе перекупаласьэлитная"},{"$f":"COUNTIF(Таблица3[Столбец14],Таблица3[[#This Row],[Столбец14]])","v":1}]
["2016-12-10T23:41:02","\\/","2016-12-10T23:41:02","/\\","Ватоботы","№2","Руслана","1 ринг","Перекупалась (1)",0.45,13,"обычная","не продается",{"$f":"Таблица3[[#This Row],[Столбец5]]&Таблица3[[#This Row],[Столбец6]]&Таблица3[[#This Row],[Столбец7]]&Таблица3[[#This Row],[Столбец8]]&Таблица3[[#This Row],[Столбец9]]&Таблица3[[#This Row],[Столбец12]]","v":"Ватоботы№2Руслана1 рингПерекупалась (1)обычная"},{"$f":"COUNTIF(Таблица3[Столбец14],Таблица3[[#This Row],[Столбец14]])","v":2}]
["2016-12-10T23:41:12","\\/","2016-12-10T23:41:12","/\\","Ватоботы","№5","Эрика","2 ринг","Не перекупалась",0.44,8,"элитная","не продается",{"$f":"Таблица3[[#This Row],[Столбец5]]&Таблица3[[#This Row],[Столбец6]]&Таблица3[[#This Row],[Столбец7]]&Таблица3[[#This Row],[Столбец8]]&Таблица3[[#This Row],[Столбец9]]&Таблица3[[#This Row],[Столбец12]]","v":"Ватоботы№5Эрика2 рингНе перекупаласьэлитная"},{"$f":"COUNTIF(Таблица3[Столбец14],Таблица3[[#This Row],[Столбец14]])","v":2}]
["2016-12-10T23:41:20","\\/","2016-12-11T14:31:01","/\\","Ватоботы","№6","Агния","1 ринг","Перекупалась (1)",0.63,25,"обычная","не продается",{"$f":"Таблица3[[#This Row],[Столбец5]]&Таблица3[[#This Row],[Столбец6]]&Таблица3[[#This Row],[Столбец7]]&Таблица3[[#This Row],[Столбец8]]&Таблица3[[#This Row],[Столбец9]]&Таблица3[[#This Row],[Столбец12]]","v":"Ватоботы№6Агния1 рингПерекупалась (1)обычная"},{"$f":"COUNTIF(Таблица3[Столбец14],Таблица3[[#This Row],[Столбец14]])","v":3}]
["2016-12-10T23:41:50","\\/","2016-12-10T23:41:50","/\\","АнархистЪ","№4","Юля","1 ринг","Перекупалась (1)",0.35,14,"обычная","не продается",{"$f":"Таблица3[[#This Row],[Столбец5]]&Таблица3[[#This Row],[Столбец6]]&Таблица3[[#This Row],[Столбец7]]&Таблица3[[#This Row],[Столбец8]]&Таблица3[[#This Row],[Столбец9]]&Таблица3[[#This Row],[Столбец12]]","v":"АнархистЪ№4Юля1 рингПерекупалась (1)обычная"},{"$f":"COUNTIF(Таблица3[Столбец14],Таблица3[[#This Row],[Столбец14]])","v":3}]
["2016-12-10T23:43:31","\\/","2016-12-10T23:43:31","/\\","ВеЧеРнИе ЗвЕзДы","№1","Света","1 ринг","Перекупалась (1)",0.48,17,"обычная","не продается",{"$f":"Таблица3[[#This Row],[Столбец5]]&Таблица3[[#This Row],[Столбец6]]&Таблица3[[#This Row],[Столбец7]]&Таблица3[[#This Row],[Столбец8]]&Таблица3[[#This Row],[Столбец9]]&Таблица3[[#This Row],[Столбец12]]","v":"ВеЧеРнИе ЗвЕзДы№1Света1 рингПерекупалась (1)обычная"},{"$f":"COUNTIF(Таблица3[Столбец14],Таблица3[[#This Row],[Столбец14]])","v":2}]
["2016-12-10T23:43:40","\\/","2016-12-10T23:43:40","/\\","ВеЧеРнИе ЗвЕзДы","№2","Наташа","1 ринг","Перекупалась (1)",0.54,16,"обычная","не продается",{"$f":"Таблица3[[#This Row],[Столбец5]]&Таблица3[[#This Row],[Столбец6]]&Таблица3[[#This Row],[Столбец7]]&Таблица3[[#This Row],[Столбец8]]&Таблица3[[#This Row],[Столбец9]]&Таблица3[[#This Row],[Столбец12]]","v":"ВеЧеРнИе ЗвЕзДы№2Наташа1 рингПерекупалась (1)обычная"},{"$f":"COUNTIF(Таблица3[Столбец14],Таблица3[[#This Row],[Столбец14]])","v":3}]
["2016-12-10T23:43:57","\\/","2016-12-11T20:18:45","/\\","ВеЧеРнИе ЗвЕзДы","№4","Слава","1 ринг","Перекупалась (2)",0.78,11,"обычная","не продается",{"$f":"Таблица3[[#This Row],[Столбец5]]&Таблица3[[#This Row],[Столбец6]]&Таблица3[[#This Row],[Столбец7]]&Таблица3[[#This Row],[Столбец8]]&Таблица3[[#This Row],[Столбец9]]&Таблица3[[#This Row],[Столбец12]]","v":"ВеЧеРнИе ЗвЕзДы№4Слава1 рингПерекупалась (2)обычная"},{"$f":"COUNTIF(Таблица3[Столбец14],Таблица3[[#This Row],[Столбец14]])","v":2}]
["2016-12-10T23:44:06","\\/","2016-12-10T23:44:06","/\\","ВеЧеРнИе ЗвЕзДы","№6","Регина","1 ринг","Перекупалась (1)",0.48,14,"обычная","не продается",{"$f":"Таблица3[[#This Row],[Столбец5]]&Таблица3[[#This Row],[Столбец6]]&Таблица3[[#This Row],[Столбец7]]&Таблица3[[#This Row],[Столбец8]]&Таблица3[[#This Row],[Столбец9]]&Таблица3[[#This Row],[Столбец12]]","v":"ВеЧеРнИе ЗвЕзДы№6Регина1 рингПерекупалась (1)обычная"},{"$f":"COUNTIF(Таблица3[Столбец14],Таблица3[[#This Row],[Столбец14]])","v":2}]
["2016-12-10T23:44:36","\\/","2016-12-10T23:44:36","/\\","Духи Витязей","№3","Анфиса","1 ринг","Перекупалась (1)",0.56999999999999995,26,"обычная","не продается",{"$f":"Таблица3[[#This Row],[Столбец5]]&Таблица3[[#This Row],[Столбец6]]&Таблица3[[#This Row],[Столбец7]]&Таблица3[[#This Row],[Столбец8]]&Таблица3[[#This Row],[Столбец9]]&Таблица3[[#This Row],[Столбец12]]","v":"Духи Витязей№3Анфиса1 рингПерекупалась (1)обычная"},{"$f":"COUNTIF(Таблица3[Столбец14],Таблица3[[#This Row],[Столбец14]])","v":2}]
["2016-12-10T23:44:45","\\/","2016-12-10T23:44:45","/\\","Духи Витязей","№4","Агния","1 ринг","Перекупалась (1)",0.56999999999999995,26,"обычная","не продается",{"$f":"Таблица3[[#This Row],[Столбец5]]&Таблица3[[#This Row],[Столбец6]]&Таблица3[[#This Row],[Столбец7]]&Таблица3[[#This Row],[Столбец8]]&Таблица3[[#This Row],[Столбец9]]&Таблица3[[#This Row],[Столбец12]]","v":"Духи Витязей№4Агния1 рингПерекупалась (1)обычная"},{"$f":"COUNTIF(Таблица3[Столбец14],Таблица3[[#This Row],[Столбец14]])","v":2}]
["2016-12-10T23:45:18","\\/","2016-12-10T23:45:18","/\\","Крепкий орешек","№3","Глория","2 ринг","Перекупалась (1)",0.31,21,"элитная","не продается",{"$f":"Таблица3[[#This Row],[Столбец5]]&Таблица3[[#This Row],[Столбец6]]&Таблица3[[#This Row],[Столбец7]]&Таблица3[[#This Row],[Столбец8]]&Таблица3[[#This Row],[Столбец9]]&Таблица3[[#This Row],[Столбец12]]","v":"Крепкий орешек№3Глория2 рингПерекупалась (1)элитная"},{"$f":"COUNTIF(Таблица3[Столбец14],Таблица3[[#This Row],[Столбец14]])","v":4}]
["2016-12-10T23:45:51","\\/","2016-12-11T18:53:42","/\\","ШПАНА1","№1","Валерия","1 ринг","Перекупалась (2)",0.53,18,"обычная","не продается",{"$f":"Таблица3[[#This Row],[Столбец5]]&Таблица3[[#This Row],[Столбец6]]&Таблица3[[#This Row],[Столбец7]]&Таблица3[[#This Row],[Столбец8]]&Таблица3[[#This Row],[Столбец9]]&Таблица3[[#This Row],[Столбец12]]","v":"ШПАНА1№1Валерия1 рингПерекупалась (2)обычная"},{"$f":"COUNTIF(Таблица3[Столбец14],Таблица3[[#This Row],[Столбец14]])","v":3}]
["2016-12-10T23:46:23","\\/","2016-12-10T23:46:23","/\\","CLOSED SCHOOL","№3","Клара","1 ринг","Перекупалась (1)",0.38,23,"обычная","не продается",{"$f":"Таблица3[[#This Row],[Столбец5]]&Таблица3[[#This Row],[Столбец6]]&Таблица3[[#This Row],[Столбец7]]&Таблица3[[#This Row],[Столбец8]]&Таблица3[[#This Row],[Столбец9]]&Таблица3[[#This Row],[Столбец12]]","v":"CLOSED SCHOOL№3Клара1 рингПерекупалась (1)обычная"},{"$f":"COUNTIF(Таблица3[Столбец14],Таблица3[[#This Row],[Столбец14]])","v":2}]
["2016-12-10T23:46:34","\\/","2016-12-10T23:46:34","/\\","CLOSED SCHOOL","№4","Алина","1 ринг","Перекупалась (2)",0.54,16,"обычная","не продается",{"$f":"Таблица3[[#This Row],[Столбец5]]&Таблица3[[#This Row],[Столбец6]]&Таблица3[[#This Row],[Столбец7]]&Таблица3[[#This Row],[Столбец8]]&Таблица3[[#This Row],[Столбец9]]&Таблица3[[#This Row],[Столбец12]]","v":"CLOSED SCHOOL№4Алина1 рингПерекупалась (2)обычная"},{"$f":"COUNTIF(Таблица3[Столбец14],Таблица3[[#This Row],[Столбец14]])","v":2}]
["2016-12-10T23:47:46","\\/","2016-12-10T23:47:46","/\\","Босяки","№4","Дина","1 ринг","Перекупалась (2)",0.54,16,"обычная","не продается",{"$f":"Таблица3[[#This Row],[Столбец5]]&Таблица3[[#This Row],[Столбец6]]&Таблица3[[#This Row],[Столбец7]]&Таблица3[[#This Row],[Столбец8]]&Таблица3[[#This Row],[Столбец9]]&Таблица3[[#This Row],[Столбец12]]","v":"Босяки№4Дина1 рингПерекупалась (2)обычная"},{"$f":"COUNTIF(Таблица3[Столбец14],Таблица3[[#This Row],[Столбец14]])","v":3}]
["2016-12-10T23:47:56","\\/","2016-12-10T23:47:56","/\\","Босяки","№5","Оксана","1 ринг","Перекупалась (1)",1,7,"обычная","не продается",{"$f":"Таблица3[[#This Row],[Столбец5]]&Таблица3[[#This Row],[Столбец6]]&Таблица3[[#This Row],[Столбец7]]&Таблица3[[#This Row],[Столбец8]]&Таблица3[[#This Row],[Столбец9]]&Таблица3[[#This Row],[Столбец12]]","v":"Босяки№5Оксана1 рингПерекупалась (1)обычная"},{"$f":"COUNTIF(Таблица3[Столбец14],Таблица3[[#This Row],[Столбец14]])","v":2}]
["2016-12-10T23:48:21","\\/","2016-12-11T12:21:05","/\\","МАРТИСОНЫ","№5","Аня","1 ринг","Перекупалась (1)",0.42,10,"обычная","не продается",{"$f":"Таблица3[[#This Row],[Столбец5]]&Таблица3[[#This Row],[Столбец6]]&Таблица3[[#This Row],[Столбец7]]&Таблица3[[#This Row],[Столбец8]]&Таблица3[[#This Row],[Столбец9]]&Таблица3[[#This Row],[Столбец12]]","v":"МАРТИСОНЫ№5Аня1 рингПерекупалась (1)обычная"},{"$f":"COUNTIF(Таблица3[Столбец14],Таблица3[[#This Row],[Столбец14]])","v":2}]
["2016-12-10T23:48:45","\\/","2016-12-11T13:06:32","/\\","Волча стая","№5","Роза","1 ринг","Перекупалась (2)",0.49,18,"обычная","не продается",{"$f":"Таблица3[[#This Row],[Столбец5]]&Таблица3[[#This Row],[Столбец6]]&Таблица3[[#This Row],[Столбец7]]&Таблица3[[#This Row],[Столбец8]]&Таблица3[[#This Row],[Столбец9]]&Таблица3[[#This Row],[Столбец12]]","v":"Волча стая№5Роза1 рингПерекупалась (2)обычная"},{"$f":"COUNTIF(Таблица3[Столбец14],Таблица3[[#This Row],[Столбец14]])","v":3}]
["2016-12-10T23:49:08","\\/","2016-12-10T23:49:08","/\\","Лиловый Шар","№1","Варвара","1 ринг","Перекупалась (1)",0.64,9,"обычная","не продается",{"$f":"Таблица3[[#This Row],[Столбец5]]&Таблица3[[#This Row],[Столбец6]]&Таблица3[[#This Row],[Столбец7]]&Таблица3[[#This Row],[Столбец8]]&Таблица3[[#This Row],[Столбец9]]&Таблица3[[#This Row],[Столбец12]]","v":"Лиловый Шар№1Варвара1 рингПерекупалась (1)обычная"},{"$f":"COUNTIF(Таблица3[Столбец14],Таблица3[[#This Row],[Столбец14]])","v":2}]
["2016-12-10T23:49:17","\\/","2016-12-11T16:46:20","/\\","Лиловый Шар","№2","Карина","1 ринг","Перекупалась (1)",0.31,11,"обычная","не продается",{"$f":"Таблица3[[#This Row],[Столбец5]]&Таблица3[[#This Row],[Столбец6]]&Таблица3[[#This Row],[Столбец7]]&Таблица3[[#This Row],[Столбец8]]&Таблица3[[#This Row],[Столбец9]]&Таблица3[[#This Row],[Столбец12]]","v":"Лиловый Шар№2Карина1 рингПерекупалась (1)обычная"},{"$f":"COUNTIF(Таблица3[Столбец14],Таблица3[[#This Row],[Столбец14]])","v":2}]
["2016-12-10T23:50:08","\\/","2016-12-10T23:50:08","/\\","Влюбленные в мечту","№4","Жюли","3 ринг","Перекупалась (1)",0.74,13,"элитная","не продается",{"$f":"Таблица3[[#This Row],[Столбец5]]&Таблица3[[#This Row],[Столбец6]]&Таблица3[[#This Row],[Столбец7]]&Таблица3[[#This Row],[Столбец8]]&Таблица3[[#This Row],[Столбец9]]&Таблица3[[#This Row],[Столбец12]]","v":"Влюбленные в мечту№4Жюли3 рингПерекупалась (1)элитная"},{"$f":"COUNTIF(Таблица3[Столбец14],Таблица3[[#This Row],[Столбец14]])","v":2}]
["2016-12-10T23:50:17","\\/","2016-12-10T23:50:17","/\\","Влюбленные в мечту","№5","Рада","1 ринг","Перекупалась (1)",0.42,10,"обычная","не продается",{"$f":"Таблица3[[#This Row],[Столбец5]]&Таблица3[[#This Row],[Столбец6]]&Таблица3[[#This Row],[Столбец7]]&Таблица3[[#This Row],[Столбец8]]&Таблица3[[#This Row],[Столбец9]]&Таблица3[[#This Row],[Столбец12]]","v":"Влюбленные в мечту№5Рада1 рингПерекупалась (1)обычная"},{"$f":"COUNTIF(Таблица3[Столбец14],Таблица3[[#This Row],[Столбец14]])","v":2}]
["2016-12-10T23:53:07","\\/","2016-12-11T19:43:57","/\\","Малавита","№2","Ася","1 ринг","Перекупалась (1)",0.57999999999999996,26,"обычная","не продается",{"$f":"Таблица3[[#This Row],[Столбец5]]&Таблица3[[#This Row],[Столбец6]]&Таблица3[[#This Row],[Столбец7]]&Таблица3[[#This Row],[Столбец8]]&Таблица3[[#This Row],[Столбец9]]&Таблица3[[#This Row],[Столбец12]]","v":"Малавита№2Ася1 рингПерекупалась (1)обычная"},{"$f":"COUNTIF(Таблица3[Столбец14],Таблица3[[#This Row],[Столбец14]])","v":3}]
["2016-12-10T23:53:17","\\/","2016-12-11T21:10:04","/\\","Малавита","№3","Нона","1 ринг","Перекупалась (2)",0.35,28,"обычная","не продается",{"$f":"Таблица3[[#This Row],[Столбец5]]&Таблица3[[#This Row],[Столбец6]]&Таблица3[[#This Row],[Столбец7]]&Таблица3[[#This Row],[Столбец8]]&Таблица3[[#This Row],[Столбец9]]&Таблица3[[#This Row],[Столбец12]]","v":"Малавита№3Нона1 рингПерекупалась (2)обычная"},{"$f":"COUNTIF(Таблица3[Столбец14],Таблица3[[#This Row],[Столбец14]])","v":2}]
["2016-12-10T23:55:29","\\/","2016-12-11T21:12:15","/\\","Сибирский экспресс","№4","Сельма","5 ринг","Не перекупалась",0.68,4,"элитная","не продается",{"$f":"Таблица3[[#This Row],[Столбец5]]&Таблица3[[#This Row],[Столбец6]]&Таблица3[[#This Row],[Столбец7]]&Таблица3[[#This Row],[Столбец8]]&Таблица3[[#This Row],[Столбец9]]&Таблица3[[#This Row],[Столбец12]]","v":"Сибирский экспресс№4Сельма5 рингНе перекупаласьэлитная"},{"$f":"COUNTIF(Таблица3[Столбец14],Таблица3[[#This Row],[Столбец14]])","v":1}]
["2016-12-10T23:58:17","\\/","2016-12-11T21:14:46","/\\","львенок мяу","№2","Анфиса","1 ринг","Перекупалась (1)",0.45,11,"обычная","не продается",{"$f":"Таблица3[[#This Row],[Столбец5]]&Таблица3[[#This Row],[Столбец6]]&Таблица3[[#This Row],[Столбец7]]&Таблица3[[#This Row],[Столбец8]]&Таблица3[[#This Row],[Столбец9]]&Таблица3[[#This Row],[Столбец12]]","v":"львенок мяу№2Анфиса1 рингПерекупалась (1)обычная"},{"$f":"COUNTIF(Таблица3[Столбец14],Таблица3[[#This Row],[Столбец14]])","v":2}]
["2016-12-11T10:55:21","\\/","2016-12-11T13:23:36","/\\","Alliance of Light","№5","Рита","1 ринг","Не перекупалась",0.38,11,"обычная","не продается",{"$f":"Таблица3[[#This Row],[Столбец5]]&Таблица3[[#This Row],[Столбец6]]&Таблица3[[#This Row],[Столбец7]]&Таблица3[[#This Row],[Столбец8]]&Таблица3[[#This Row],[Столбец9]]&Таблица3[[#This Row],[Столбец12]]","v":"Alliance of Light№5Рита1 рингНе перекупаласьобычная"},{"$f":"COUNTIF(Таблица3[Столбец14],Таблица3[[#This Row],[Столбец14]])","v":1}]
["2016-12-11T10:58:32","\\/","2016-12-11T20:38:45","/\\","Big Order","№5","Люба","1 ринг","Перекупалась (1)",0.56000000000000005,23,"обычная","не продается",{"$f":"Таблица3[[#This Row],[Столбец5]]&Таблица3[[#This Row],[Столбец6]]&Таблица3[[#This Row],[Столбец7]]&Таблица3[[#This Row],[Столбец8]]&Таблица3[[#This Row],[Столбец9]]&Таблица3[[#This Row],[Столбец12]]","v":"Big Order№5Люба1 рингПерекупалась (1)обычная"},{"$f":"COUNTIF(Таблица3[Столбец14],Таблица3[[#This Row],[Столбец14]])","v":1}]
["2016-12-11T10:58:56","\\/","2016-12-11T13:24:21","/\\","TOXIC METALL","№3","Оксана","1 ринг","Перекупалась (1)",0.32,13,"обычная","не продается",{"$f":"Таблица3[[#This Row],[Столбец5]]&Таблица3[[#This Row],[Столбец6]]&Таблица3[[#This Row],[Столбец7]]&Таблица3[[#This Row],[Столбец8]]&Таблица3[[#This Row],[Столбец9]]&Таблица3[[#This Row],[Столбец12]]","v":"TOXIC METALL№3Оксана1 рингПерекупалась (1)обычная"},{"$f":"COUNTIF(Таблица3[Столбец14],Таблица3[[#This Row],[Столбец14]])","v":2}]
["2016-12-11T10:59:36","\\/","2016-12-11T19:13:14","/\\","Termitongi","№1","Вера","1 ринг","Перекупалась (1)",0.86,7,"обычная","не продается",{"$f":"Таблица3[[#This Row],[Столбец5]]&Таблица3[[#This Row],[Столбец6]]&Таблица3[[#This Row],[Столбец7]]&Таблица3[[#This Row],[Столбец8]]&Таблица3[[#This Row],[Столбец9]]&Таблица3[[#This Row],[Столбец12]]","v":"Termitongi№1Вера1 рингПерекупалась (1)обычная"},{"$f":"COUNTIF(Таблица3[Столбец14],Таблица3[[#This Row],[Столбец14]])","v":2}]
["2016-12-11T10:59:44","\\/","2016-12-11T20:39:37","/\\","Termitongi","№2","Тина","1 ринг","Перекупалась (1)",0.79,7,"обычная","не продается",{"$f":"Таблица3[[#This Row],[Столбец5]]&Таблица3[[#This Row],[Столбец6]]&Таблица3[[#This Row],[Столбец7]]&Таблица3[[#This Row],[Столбец8]]&Таблица3[[#This Row],[Столбец9]]&Таблица3[[#This Row],[Столбец12]]","v":"Termitongi№2Тина1 рингПерекупалась (1)обычная"},{"$f":"COUNTIF(Таблица3[Столбец14],Таблица3[[#This Row],[Столбец14]])","v":1}]
["2016-12-11T11:00:47","\\/","2016-12-11T13:25:25","/\\","White Ravens","№3","Вера","1 ринг","Перекупалась (2)",0.31,27,"обычная","не продается",{"$f":"Таблица3[[#This Row],[Столбец5]]&Таблица3[[#This Row],[Столбец6]]&Таблица3[[#This Row],[Столбец7]]&Таблица3[[#This Row],[Столбец8]]&Таблица3[[#This Row],[Столбец9]]&Таблица3[[#This Row],[Столбец12]]","v":"White Ravens№3Вера1 рингПерекупалась (2)обычная"},{"$f":"COUNTIF(Таблица3[Столбец14],Таблица3[[#This Row],[Столбец14]])","v":1}]
["2016-12-11T11:02:29","\\/","2016-12-11T20:40:16","/\\","Belle of the West","№3","София","1 ринг","Перекупалась (2)",0.72,7,"обычная","не продается",{"$f":"Таблица3[[#This Row],[Столбец5]]&Таблица3[[#This Row],[Столбец6]]&Таблица3[[#This Row],[Столбец7]]&Таблица3[[#This Row],[Столбец8]]&Таблица3[[#This Row],[Столбец9]]&Таблица3[[#This Row],[Столбец12]]","v":"Belle of the West№3София1 рингПерекупалась (2)обычная"},{"$f":"COUNTIF(Таблица3[Столбец14],Таблица3[[#This Row],[Столбец14]])","v":1}]
["2016-12-11T11:03:26","\\/","2016-12-11T20:40:37","/\\","MASTRO ROkA","№1","Мальвина","2 ринг","Перекупалась (1)",0.45,11,"элитная","не продается",{"$f":"Таблица3[[#This Row],[Столбец5]]&Таблица3[[#This Row],[Столбец6]]&Таблица3[[#This Row],[Столбец7]]&Таблица3[[#This Row],[Столбец8]]&Таблица3[[#This Row],[Столбец9]]&Таблица3[[#This Row],[Столбец12]]","v":"MASTRO ROkA№1Мальвина2 рингПерекупалась (1)элитная"},{"$f":"COUNTIF(Таблица3[Столбец14],Таблица3[[#This Row],[Столбец14]])","v":1}]
["2016-12-11T11:03:33","\\/","2016-12-11T20:40:44","/\\","MASTRO ROkA","№2","Алёна","1 ринг","Перекупалась (1)",0.52,8,"обычная","не продается",{"$f":"Таблица3[[#This Row],[Столбец5]]&Таблица3[[#This Row],[Столбец6]]&Таблица3[[#This Row],[Столбец7]]&Таблица3[[#This Row],[Столбец8]]&Таблица3[[#This Row],[Столбец9]]&Таблица3[[#This Row],[Столбец12]]","v":"MASTRO ROkA№2Алёна1 рингПерекупалась (1)обычная"},{"$f":"COUNTIF(Таблица3[Столбец14],Таблица3[[#This Row],[Столбец14]])","v":1}]
["2016-12-11T11:03:41","\\/","2016-12-11T19:14:43","/\\","MASTRO ROkA","№3","Наташа","1 ринг","Перекупалась (1)",0.44,12,"обычная","не продается",{"$f":"Таблица3[[#This Row],[Столбец5]]&Таблица3[[#This Row],[Столбец6]]&Таблица3[[#This Row],[Столбец7]]&Таблица3[[#This Row],[Столбец8]]&Таблица3[[#This Row],[Столбец9]]&Таблица3[[#This Row],[Столбец12]]","v":"MASTRO ROkA№3Наташа1 рингПерекупалась (1)обычная"},{"$f":"COUNTIF(Таблица3[Столбец14],Таблица3[[#This Row],[Столбец14]])","v":2}]
["2016-12-11T11:03:56","\\/","2016-12-11T14:11:25","/\\","MASTRO ROkA","№5","Соня","1 ринг","Перекупалась (1)",0.32,9,"обычная","не продается",{"$f":"Таблица3[[#This Row],[Столбец5]]&Таблица3[[#This Row],[Столбец6]]&Таблица3[[#This Row],[Столбец7]]&Таблица3[[#This Row],[Столбец8]]&Таблица3[[#This Row],[Столбец9]]&Таблица3[[#This Row],[Столбец12]]","v":"MASTRO ROkA№5Соня1 рингПерекупалась (1)обычная"},{"$f":"COUNTIF(Таблица3[Столбец14],Таблица3[[#This Row],[Столбец14]])","v":2}]
["2016-12-11T11:04:06","\\/","2016-12-11T11:42:05","/\\","MASTRO ROkA","№6","Настя","1 ринг","Перекупалась (1)",0.52,8,"обычная","не продается",{"$f":"Таблица3[[#This Row],[Столбец5]]&Таблица3[[#This Row],[Столбец6]]&Таблица3[[#This Row],[Столбец7]]&Таблица3[[#This Row],[Столбец8]]&Таблица3[[#This Row],[Столбец9]]&Таблица3[[#This Row],[Столбец12]]","v":"MASTRO ROkA№6Настя1 рингПерекупалась (1)обычная"},{"$f":"COUNTIF(Таблица3[Столбец14],Таблица3[[#This Row],[Столбец14]])","v":2}]
["2016-12-11T11:07:08","\\/","2016-12-11T20:35:38","/\\","Резиновые Архидьяволы","№3","Лина","1 ринг","Перекупалась (2)",0.81,19,"обычная","не продается",{"$f":"Таблица3[[#This Row],[Столбец5]]&Таблица3[[#This Row],[Столбец6]]&Таблица3[[#This Row],[Столбец7]]&Таблица3[[#This Row],[Столбец8]]&Таблица3[[#This Row],[Столбец9]]&Таблица3[[#This Row],[Столбец12]]","v":"Резиновые Архидьяволы№3Лина1 рингПерекупалась (2)обычная"},{"$f":"COUNTIF(Таблица3[Столбец14],Таблица3[[#This Row],[Столбец14]])","v":1}]
["2016-12-11T11:10:58","\\/","2016-12-11T19:59:13","/\\","Запретная Территория","№2","Полина","1 ринг","Не перекупалась",0.7,10,"обычная","не продается",{"$f":"Таблица3[[#This Row],[Столбец5]]&Таблица3[[#This Row],[Столбец6]]&Таблица3[[#This Row],[Столбец7]]&Таблица3[[#This Row],[Столбец8]]&Таблица3[[#This Row],[Столбец9]]&Таблица3[[#This Row],[Столбец12]]","v":"Запретная Территория№2Полина1 рингНе перекупаласьобычная"},{"$f":"COUNTIF(Таблица3[Столбец14],Таблица3[[#This Row],[Столбец14]])","v":2}]
["2016-12-11T11:11:07","\\/","2016-12-11T20:41:42","/\\","Запретная Территория","№5","Алла","1 ринг","Не перекупалась",0.91,9,"обычная","не продается",{"$f":"Таблица3[[#This Row],[Столбец5]]&Таблица3[[#This Row],[Столбец6]]&Таблица3[[#This Row],[Столбец7]]&Таблица3[[#This Row],[Столбец8]]&Таблица3[[#This Row],[Столбец9]]&Таблица3[[#This Row],[Столбец12]]","v":"Запретная Территория№5Алла1 рингНе перекупаласьобычная"},{"$f":"COUNTIF(Таблица3[Столбец14],Таблица3[[#This Row],[Столбец14]])","v":1}]
["2016-12-11T11:12:14","\\/","2016-12-11T17:05:33","/\\","Темная сторона силы","№5","Аня","1 ринг","Перекупалась (1)",0.57999999999999996,18,"обычная","не продается",{"$f":"Таблица3[[#This Row],[Столбец5]]&Таблица3[[#This Row],[Столбец6]]&Таблица3[[#This Row],[Столбец7]]&Таблица3[[#This Row],[Столбец8]]&Таблица3[[#This Row],[Столбец9]]&Таблица3[[#This Row],[Столбец12]]","v":"Темная сторона силы№5Аня1 рингПерекупалась (1)обычная"},{"$f":"COUNTIF(Таблица3[Столбец14],Таблица3[[#This Row],[Столбец14]])","v":2}]
["2016-12-11T11:13:09","\\/","2016-12-11T20:42:36","/\\","Игра с Огнем","№1","Нона","1 ринг","Перекупалась (2)",0.44,8,"обычная","не продается",{"$f":"Таблица3[[#This Row],[Столбец5]]&Таблица3[[#This Row],[Столбец6]]&Таблица3[[#This Row],[Столбец7]]&Таблица3[[#This Row],[Столбец8]]&Таблица3[[#This Row],[Столбец9]]&Таблица3[[#This Row],[Столбец12]]","v":"Игра с Огнем№1Нона1 рингПерекупалась (2)обычная"},{"$f":"COUNTIF(Таблица3[Столбец14],Таблица3[[#This Row],[Столбец14]])","v":1}]
["2016-12-11T11:13:20","\\/","2016-12-11T14:57:13","/\\","Игра с Огнем","№4","Зина","1 ринг","Перекупалась (2)",0.44,7,"обычная","не продается",{"$f":"Таблица3[[#This Row],[Столбец5]]&Таблица3[[#This Row],[Столбец6]]&Таблица3[[#This Row],[Столбец7]]&Таблица3[[#This Row],[Столбец8]]&Таблица3[[#This Row],[Столбец9]]&Таблица3[[#This Row],[Столбец12]]","v":"Игра с Огнем№4Зина1 рингПерекупалась (2)обычная"},{"$f":"COUNTIF(Таблица3[Столбец14],Таблица3[[#This Row],[Столбец14]])","v":3}]
["2016-12-11T11:13:28","\\/","2016-12-11T20:42:55","/\\","Игра с Огнем","№5","Адель","2 ринг","Перекупалась (1)",0.44,8,"элитная","не продается",{"$f":"Таблица3[[#This Row],[Столбец5]]&Таблица3[[#This Row],[Столбец6]]&Таблица3[[#This Row],[Столбец7]]&Таблица3[[#This Row],[Столбец8]]&Таблица3[[#This Row],[Столбец9]]&Таблица3[[#This Row],[Столбец12]]","v":"Игра с Огнем№5Адель2 рингПерекупалась (1)элитная"},{"$f":"COUNTIF(Таблица3[Столбец14],Таблица3[[#This Row],[Столбец14]])","v":1}]
["2016-12-11T11:15:41","\\/","2016-12-11T20:43:18","/\\","БеЛыЕ ПуПкИ","№2","Лилия","1 ринг","Перекупалась (1)",0.37,19,"обычная","не продается",{"$f":"Таблица3[[#This Row],[Столбец5]]&Таблица3[[#This Row],[Столбец6]]&Таблица3[[#This Row],[Столбец7]]&Таблица3[[#This Row],[Столбец8]]&Таблица3[[#This Row],[Столбец9]]&Таблица3[[#This Row],[Столбец12]]","v":"БеЛыЕ ПуПкИ№2Лилия1 рингПерекупалась (1)обычная"},{"$f":"COUNTIF(Таблица3[Столбец14],Таблица3[[#This Row],[Столбец14]])","v":1}]
["2016-12-11T11:15:51","\\/","2016-12-11T20:43:29","/\\","БеЛыЕ ПуПкИ","№4","Лера","1 ринг","Перекупалась (1)",1,7,"обычная","не продается",{"$f":"Таблица3[[#This Row],[Столбец5]]&Таблица3[[#This Row],[Столбец6]]&Таблица3[[#This Row],[Столбец7]]&Таблица3[[#This Row],[Столбец8]]&Таблица3[[#This Row],[Столбец9]]&Таблица3[[#This Row],[Столбец12]]","v":"БеЛыЕ ПуПкИ№4Лера1 рингПерекупалась (1)обычная"},{"$f":"COUNTIF(Таблица3[Столбец14],Таблица3[[#This Row],[Столбец14]])","v":1}]
["2016-12-11T11:19:30","\\/","2016-12-11T13:29:59","/\\","Steel bullets","№2","Лада","1 ринг","Не перекупалась",0.9,26,"обычная","не продается",{"$f":"Таблица3[[#This Row],[Столбец5]]&Таблица3[[#This Row],[Столбец6]]&Таблица3[[#This Row],[Столбец7]]&Таблица3[[#This Row],[Столбец8]]&Таблица3[[#This Row],[Столбец9]]&Таблица3[[#This Row],[Столбец12]]","v":"Steel bullets№2Лада1 рингНе перекупаласьобычная"},{"$f":"COUNTIF(Таблица3[Столбец14],Таблица3[[#This Row],[Столбец14]])","v":2}]
["2016-12-11T12:01:56","\\/","2016-12-11T20:45:21","/\\","Белый Лебедь","№6","Рада","1 ринг","Перекупалась (2)",1,9,"обычная","не продается",{"$f":"Таблица3[[#This Row],[Столбец5]]&Таблица3[[#This Row],[Столбец6]]&Таблица3[[#This Row],[Столбец7]]&Таблица3[[#This Row],[Столбец8]]&Таблица3[[#This Row],[Столбец9]]&Таблица3[[#This Row],[Столбец12]]","v":"Белый Лебедь№6Рада1 рингПерекупалась (2)обычная"},{"$f":"COUNTIF(Таблица3[Столбец14],Таблица3[[#This Row],[Столбец14]])","v":1}]
["2016-12-11T12:02:51","\\/","2016-12-11T20:46:11","/\\","Sing for the Moment","№5","Лера","1 ринг","Перекупалась (2)",0.9,10,"обычная","не продается",{"$f":"Таблица3[[#This Row],[Столбец5]]&Таблица3[[#This Row],[Столбец6]]&Таблица3[[#This Row],[Столбец7]]&Таблица3[[#This Row],[Столбец8]]&Таблица3[[#This Row],[Столбец9]]&Таблица3[[#This Row],[Столбец12]]","v":"Sing for the Moment№5Лера1 рингПерекупалась (2)обычная"},{"$f":"COUNTIF(Таблица3[Столбец14],Таблица3[[#This Row],[Столбец14]])","v":2}]
["2016-12-11T12:03:19","\\/","2016-12-11T20:46:35","/\\","World of Shadows","№1","Римма","1 ринг","Перекупалась (1)",0.52,14,"обычная","не продается",{"$f":"Таблица3[[#This Row],[Столбец5]]&Таблица3[[#This Row],[Столбец6]]&Таблица3[[#This Row],[Столбец7]]&Таблица3[[#This Row],[Столбец8]]&Таблица3[[#This Row],[Столбец9]]&Таблица3[[#This Row],[Столбец12]]","v":"World of Shadows№1Римма1 рингПерекупалась (1)обычная"},{"$f":"COUNTIF(Таблица3[Столбец14],Таблица3[[#This Row],[Столбец14]])","v":2}]
["2016-12-11T12:03:26","\\/","2016-12-11T17:53:21","/\\","World of Shadows","№2","Лиза","1 ринг","Перекупалась (1)",0.35,28,"обычная","не продается",{"$f":"Таблица3[[#This Row],[Столбец5]]&Таблица3[[#This Row],[Столбец6]]&Таблица3[[#This Row],[Столбец7]]&Таблица3[[#This Row],[Столбец8]]&Таблица3[[#This Row],[Столбец9]]&Таблица3[[#This Row],[Столбец12]]","v":"World of Shadows№2Лиза1 рингПерекупалась (1)обычная"},{"$f":"COUNTIF(Таблица3[Столбец14],Таблица3[[#This Row],[Столбец14]])","v":2}]
["2016-12-11T12:04:12","\\/","2016-12-11T20:47:30","/\\","Короли Топа","№1","Эрика","2 ринг","Перекупалась (1)",0.41,9,"элитная","не продается",{"$f":"Таблица3[[#This Row],[Столбец5]]&Таблица3[[#This Row],[Столбец6]]&Таблица3[[#This Row],[Столбец7]]&Таблица3[[#This Row],[Столбец8]]&Таблица3[[#This Row],[Столбец9]]&Таблица3[[#This Row],[Столбец12]]","v":"Короли Топа№1Эрика2 рингПерекупалась (1)элитная"},{"$f":"COUNTIF(Таблица3[Столбец14],Таблица3[[#This Row],[Столбец14]])","v":2}]
["2016-12-11T12:04:19","\\/","2016-12-11T17:54:21","/\\","Короли Топа","№6","Валя","1 ринг","Перекупалась (1)",0.38,16,"обычная","не продается",{"$f":"Таблица3[[#This Row],[Столбец5]]&Таблица3[[#This Row],[Столбец6]]&Таблица3[[#This Row],[Столбец7]]&Таблица3[[#This Row],[Столбец8]]&Таблица3[[#This Row],[Столбец9]]&Таблица3[[#This Row],[Столбец12]]","v":"Короли Топа№6Валя1 рингПерекупалась (1)обычная"},{"$f":"COUNTIF(Таблица3[Столбец14],Таблица3[[#This Row],[Столбец14]])","v":3}]
["2016-12-11T12:04:43","\\/","2016-12-11T20:48:04","/\\","Гадкий Кайот","№3","Оля","1 ринг","Не перекупалась",0.37,10,"обычная","не продается",{"$f":"Таблица3[[#This Row],[Столбец5]]&Таблица3[[#This Row],[Столбец6]]&Таблица3[[#This Row],[Столбец7]]&Таблица3[[#This Row],[Столбец8]]&Таблица3[[#This Row],[Столбец9]]&Таблица3[[#This Row],[Столбец12]]","v":"Гадкий Кайот№3Оля1 рингНе перекупаласьобычная"},{"$f":"COUNTIF(Таблица3[Столбец14],Таблица3[[#This Row],[Столбец14]])","v":2}]
["2016-12-11T12:05:05","\\/","2016-12-11T20:48:32","/\\","Зоопарк","№1","Аня","1 ринг","Перекупалась (1)",0.51,7,"обычная","не продается",{"$f":"Таблица3[[#This Row],[Столбец5]]&Таблица3[[#This Row],[Столбец6]]&Таблица3[[#This Row],[Столбец7]]&Таблица3[[#This Row],[Столбец8]]&Таблица3[[#This Row],[Столбец9]]&Таблица3[[#This Row],[Столбец12]]","v":"Зоопарк№1Аня1 рингПерекупалась (1)обычная"},{"$f":"COUNTIF(Таблица3[Столбец14],Таблица3[[#This Row],[Столбец14]])","v":2}]
["2016-12-11T12:05:41","\\/","2016-12-11T20:49:16","/\\","Стая яростных Волков","№4","Саша","1 ринг","Перекупалась (1)",0.79,7,"обычная","не продается",{"$f":"Таблица3[[#This Row],[Столбец5]]&Таблица3[[#This Row],[Столбец6]]&Таблица3[[#This Row],[Столбец7]]&Таблица3[[#This Row],[Столбец8]]&Таблица3[[#This Row],[Столбец9]]&Таблица3[[#This Row],[Столбец12]]","v":"Стая яростных Волков№4Саша1 рингПерекупалась (1)обычная"},{"$f":"COUNTIF(Таблица3[Столбец14],Таблица3[[#This Row],[Столбец14]])","v":2}]
["2016-12-11T12:06:17","\\/","2016-12-11T20:49:53","/\\","Тинг","№1","Кира","1 ринг","Перекупалась (2)",0.6,20,"обычная","не продается",{"$f":"Таблица3[[#This Row],[Столбец5]]&Таблица3[[#This Row],[Столбец6]]&Таблица3[[#This Row],[Столбец7]]&Таблица3[[#This Row],[Столбец8]]&Таблица3[[#This Row],[Столбец9]]&Таблица3[[#This Row],[Столбец12]]","v":"Тинг№1Кира1 рингПерекупалась (2)обычная"},{"$f":"COUNTIF(Таблица3[Столбец14],Таблица3[[#This Row],[Столбец14]])","v":2}]
["2016-12-11T12:06:51","\\/","2016-12-11T14:21:06","/\\","Урбаны с 8","№4","Забава","1 ринг","Перекупалась (1)",0.37,18,"обычная","не продается",{"$f":"Таблица3[[#This Row],[Столбец5]]&Таблица3[[#This Row],[Столбец6]]&Таблица3[[#This Row],[Столбец7]]&Таблица3[[#This Row],[Столбец8]]&Таблица3[[#This Row],[Столбец9]]&Таблица3[[#This Row],[Столбец12]]","v":"Урбаны с 8№4Забава1 рингПерекупалась (1)обычная"},{"$f":"COUNTIF(Таблица3[Столбец14],Таблица3[[#This Row],[Столбец14]])","v":3}]
["2016-12-11T12:07:14","\\/","2016-12-11T20:50:48","/\\","Boondock Saints. Young","№3","Вера","1 ринг","Перекупалась (1)",0.63,26,"обычная","не продается",{"$f":"Таблица3[[#This Row],[Столбец5]]&Таблица3[[#This Row],[Столбец6]]&Таблица3[[#This Row],[Столбец7]]&Таблица3[[#This Row],[Столбец8]]&Таблица3[[#This Row],[Столбец9]]&Таблица3[[#This Row],[Столбец12]]","v":"Boondock Saints. Young№3Вера1 рингПерекупалась (1)обычная"},{"$f":"COUNTIF(Таблица3[Столбец14],Таблица3[[#This Row],[Столбец14]])","v":2}]
["2016-12-11T12:07:22","\\/","2016-12-11T20:50:56","/\\","Boondock Saints. Young","№4","Рената","1 ринг","Перекупалась (1)",0.76,8,"обычная","не продается",{"$f":"Таблица3[[#This Row],[Столбец5]]&Таблица3[[#This Row],[Столбец6]]&Таблица3[[#This Row],[Столбец7]]&Таблица3[[#This Row],[Столбец8]]&Таблица3[[#This Row],[Столбец9]]&Таблица3[[#This Row],[Столбец12]]","v":"Boondock Saints. Young№4Рената1 рингПерекупалась (1)обычная"},{"$f":"COUNTIF(Таблица3[Столбец14],Таблица3[[#This Row],[Столбец14]])","v":2}]
["2016-12-11T12:07:43","\\/","2016-12-11T20:51:19","/\\","Boondock Saints. Young ","№3","Вера","1 ринг","Перекупалась (1)",0.63,26,"обычная","не продается",{"$f":"Таблица3[[#This Row],[Столбец5]]&Таблица3[[#This Row],[Столбец6]]&Таблица3[[#This Row],[Столбец7]]&Таблица3[[#This Row],[Столбец8]]&Таблица3[[#This Row],[Столбец9]]&Таблица3[[#This Row],[Столбец12]]","v":"Boondock Saints. Young №3Вера1 рингПерекупалась (1)обычная"},{"$f":"COUNTIF(Таблица3[Столбец14],Таблица3[[#This Row],[Столбец14]])","v":2}]
["2016-12-11T12:07:50","\\/","2016-12-11T20:51:27","/\\","Boondock Saints. Young ","№4","Рената","1 ринг","Перекупалась (1)",0.76,8,"обычная","не продается",{"$f":"Таблица3[[#This Row],[Столбец5]]&Таблица3[[#This Row],[Столбец6]]&Таблица3[[#This Row],[Столбец7]]&Таблица3[[#This Row],[Столбец8]]&Таблица3[[#This Row],[Столбец9]]&Таблица3[[#This Row],[Столбец12]]","v":"Boondock Saints. Young №4Рената1 рингПерекупалась (1)обычная"},{"$f":"COUNTIF(Таблица3[Столбец14],Таблица3[[#This Row],[Столбец14]])","v":2}]
["2016-12-11T12:08:19","\\/","2016-12-11T20:51:53","/\\","Dance legend","№5","Таня","1 ринг","Перекупалась (1)",0.47,11,"обычная","не продается",{"$f":"Таблица3[[#This Row],[Столбец5]]&Таблица3[[#This Row],[Столбец6]]&Таблица3[[#This Row],[Столбец7]]&Таблица3[[#This Row],[Столбец8]]&Таблица3[[#This Row],[Столбец9]]&Таблица3[[#This Row],[Столбец12]]","v":"Dance legend№5Таня1 рингПерекупалась (1)обычная"},{"$f":"COUNTIF(Таблица3[Столбец14],Таблица3[[#This Row],[Столбец14]])","v":2}]
["2016-12-11T12:08:48","\\/","2016-12-11T20:52:28","/\\","Fluffy Animals","№4","Римма","1 ринг","Перекупалась (1)",0.8,20,"обычная","не продается",{"$f":"Таблица3[[#This Row],[Столбец5]]&Таблица3[[#This Row],[Столбец6]]&Таблица3[[#This Row],[Столбец7]]&Таблица3[[#This Row],[Столбец8]]&Таблица3[[#This Row],[Столбец9]]&Таблица3[[#This Row],[Столбец12]]","v":"Fluffy Animals№4Римма1 рингПерекупалась (1)обычная"},{"$f":"COUNTIF(Таблица3[Столбец14],Таблица3[[#This Row],[Столбец14]])","v":2}]
["2016-12-11T12:09:34","\\/","2016-12-11T20:53:21","/\\","MaD Alliance","№5","Валя","1 ринг","Перекупалась (1)",0.41,9,"обычная","не продается",{"$f":"Таблица3[[#This Row],[Столбец5]]&Таблица3[[#This Row],[Столбец6]]&Таблица3[[#This Row],[Столбец7]]&Таблица3[[#This Row],[Столбец8]]&Таблица3[[#This Row],[Столбец9]]&Таблица3[[#This Row],[Столбец12]]","v":"MaD Alliance№5Валя1 рингПерекупалась (1)обычная"},{"$f":"COUNTIF(Таблица3[Столбец14],Таблица3[[#This Row],[Столбец14]])","v":2}]
["2016-12-11T12:10:02","\\/","2016-12-11T20:53:50","/\\","Medical Center","№2","Вера","1 ринг","Перекупалась (1)",0.47,8,"обычная","не продается",{"$f":"Таблица3[[#This Row],[Столбец5]]&Таблица3[[#This Row],[Столбец6]]&Таблица3[[#This Row],[Столбец7]]&Таблица3[[#This Row],[Столбец8]]&Таблица3[[#This Row],[Столбец9]]&Таблица3[[#This Row],[Столбец12]]","v":"Medical Center№2Вера1 рингПерекупалась (1)обычная"},{"$f":"COUNTIF(Таблица3[Столбец14],Таблица3[[#This Row],[Столбец14]])","v":2}]
["2016-12-11T12:10:36","\\/","2016-12-11T12:10:36","/\\","METALL IN MY BLOOD","№5","Слава","1 ринг","Не перекупалась",0.56000000000000005,13,"обычная","не продается",{"$f":"Таблица3[[#This Row],[Столбец5]]&Таблица3[[#This Row],[Столбец6]]&Таблица3[[#This Row],[Столбец7]]&Таблица3[[#This Row],[Столбец8]]&Таблица3[[#This Row],[Столбец9]]&Таблица3[[#This Row],[Столбец12]]","v":"METALL IN MY BLOOD№5Слава1 рингНе перекупаласьобычная"},{"$f":"COUNTIF(Таблица3[Столбец14],Таблица3[[#This Row],[Столбец14]])","v":3}]
["2016-12-11T12:11:01","\\/","2016-12-11T18:01:23","/\\","Music Ghoul","№6","Тамара","1 ринг","Перекупалась (1)",0.36,8,"обычная","не продается",{"$f":"Таблица3[[#This Row],[Столбец5]]&Таблица3[[#This Row],[Столбец6]]&Таблица3[[#This Row],[Столбец7]]&Таблица3[[#This Row],[Столбец8]]&Таблица3[[#This Row],[Столбец9]]&Таблица3[[#This Row],[Столбец12]]","v":"Music Ghoul№6Тамара1 рингПерекупалась (1)обычная"},{"$f":"COUNTIF(Таблица3[Столбец14],Таблица3[[#This Row],[Столбец14]])","v":3}]
["2016-12-11T12:11:28","\\/","2016-12-11T20:55:15","/\\","NEUROPUNK","№2","Эльвира","2 ринг","Перекупалась (1)",0.64,27,"элитная","не продается",{"$f":"Таблица3[[#This Row],[Столбец5]]&Таблица3[[#This Row],[Столбец6]]&Таблица3[[#This Row],[Столбец7]]&Таблица3[[#This Row],[Столбец8]]&Таблица3[[#This Row],[Столбец9]]&Таблица3[[#This Row],[Столбец12]]","v":"NEUROPUNK№2Эльвира2 рингПерекупалась (1)элитная"},{"$f":"COUNTIF(Таблица3[Столбец14],Таблица3[[#This Row],[Столбец14]])","v":2}]
["2016-12-11T12:12:04","\\/","2016-12-11T20:55:51","/\\","ORIGIN of LIFE","№1","Брунгильда","1 ринг","Не перекупалась",0.6,5,"обычная","не продается",{"$f":"Таблица3[[#This Row],[Столбец5]]&Таблица3[[#This Row],[Столбец6]]&Таблица3[[#This Row],[Столбец7]]&Таблица3[[#This Row],[Столбец8]]&Таблица3[[#This Row],[Столбец9]]&Таблица3[[#This Row],[Столбец12]]","v":"ORIGIN of LIFE№1Брунгильда1 рингНе перекупаласьобычная"},{"$f":"COUNTIF(Таблица3[Столбец14],Таблица3[[#This Row],[Столбец14]])","v":2}]
["2016-12-11T12:12:57","\\/","2016-12-11T14:27:27","/\\","Rap Story","№3","Оксана","1 ринг","Перекупалась (1)",0.31,17,"обычная","не продается",{"$f":"Таблица3[[#This Row],[Столбец5]]&Таблица3[[#This Row],[Столбец6]]&Таблица3[[#This Row],[Столбец7]]&Таблица3[[#This Row],[Столбец8]]&Таблица3[[#This Row],[Столбец9]]&Таблица3[[#This Row],[Столбец12]]","v":"Rap Story№3Оксана1 рингПерекупалась (1)обычная"},{"$f":"COUNTIF(Таблица3[Столбец14],Таблица3[[#This Row],[Столбец14]])","v":3}]
["2016-12-11T12:13:05","\\/","2016-12-11T14:27:35","/\\","Rap Story","№5","Пелагея","1 ринг","Перекупалась (1)",0.37,9,"обычная","не продается",{"$f":"Таблица3[[#This Row],[Столбец5]]&Таблица3[[#This Row],[Столбец6]]&Таблица3[[#This Row],[Столбец7]]&Таблица3[[#This Row],[Столбец8]]&Таблица3[[#This Row],[Столбец9]]&Таблица3[[#This Row],[Столбец12]]","v":"Rap Story№5Пелагея1 рингПерекупалась (1)обычная"},{"$f":"COUNTIF(Таблица3[Столбец14],Таблица3[[#This Row],[Столбец14]])","v":3}]
["2016-12-11T12:13:26","\\/","2016-12-11T20:57:12","/\\","Rever Hird","№1","Оксана","1 ринг","Перекупалась (1)",0.37,7,"обычная","не продается",{"$f":"Таблица3[[#This Row],[Столбец5]]&Таблица3[[#This Row],[Столбец6]]&Таблица3[[#This Row],[Столбец7]]&Таблица3[[#This Row],[Столбец8]]&Таблица3[[#This Row],[Столбец9]]&Таблица3[[#This Row],[Столбец12]]","v":"Rever Hird№1Оксана1 рингПерекупалась (1)обычная"},{"$f":"COUNTIF(Таблица3[Столбец14],Таблица3[[#This Row],[Столбец14]])","v":2}]
["2016-12-11T12:13:34","\\/","2016-12-11T20:57:20","/\\","Rever Hird","№3","Юля","1 ринг","Перекупалась (1)",0.65,7,"обычная","не продается",{"$f":"Таблица3[[#This Row],[Столбец5]]&Таблица3[[#This Row],[Столбец6]]&Таблица3[[#This Row],[Столбец7]]&Таблица3[[#This Row],[Столбец8]]&Таблица3[[#This Row],[Столбец9]]&Таблица3[[#This Row],[Столбец12]]","v":"Rever Hird№3Юля1 рингПерекупалась (1)обычная"},{"$f":"COUNTIF(Таблица3[Столбец14],Таблица3[[#This Row],[Столбец14]])","v":2}]
["2016-12-11T12:14:05","\\/","2016-12-11T20:57:49","/\\","Rhythmic Beasts","№5","Зоя","1 ринг","Перекупалась (1)",0.53,22,"обычная","не продается",{"$f":"Таблица3[[#This Row],[Столбец5]]&Таблица3[[#This Row],[Столбец6]]&Таблица3[[#This Row],[Столбец7]]&Таблица3[[#This Row],[Столбец8]]&Таблица3[[#This Row],[Столбец9]]&Таблица3[[#This Row],[Столбец12]]","v":"Rhythmic Beasts№5Зоя1 рингПерекупалась (1)обычная"},{"$f":"COUNTIF(Таблица3[Столбец14],Таблица3[[#This Row],[Столбец14]])","v":2}]
["2016-12-11T12:14:27","\\/","2016-12-11T16:38:29","/\\","RockDiva","№2","Лида","1 ринг","Перекупалась (2)",0.52,8,"обычная","не продается",{"$f":"Таблица3[[#This Row],[Столбец5]]&Таблица3[[#This Row],[Столбец6]]&Таблица3[[#This Row],[Столбец7]]&Таблица3[[#This Row],[Столбец8]]&Таблица3[[#This Row],[Столбец9]]&Таблица3[[#This Row],[Столбец12]]","v":"RockDiva№2Лида1 рингПерекупалась (2)обычная"},{"$f":"COUNTIF(Таблица3[Столбец14],Таблица3[[#This Row],[Столбец14]])","v":3}]
["2016-12-11T12:14:35","\\/","2016-12-11T20:58:21","/\\","RockDiva","№3","Марго","1 ринг","Перекупалась (1)",0.6,19,"обычная","не продается",{"$f":"Таблица3[[#This Row],[Столбец5]]&Таблица3[[#This Row],[Столбец6]]&Таблица3[[#This Row],[Столбец7]]&Таблица3[[#This Row],[Столбец8]]&Таблица3[[#This Row],[Столбец9]]&Таблица3[[#This Row],[Столбец12]]","v":"RockDiva№3Марго1 рингПерекупалась (1)обычная"},{"$f":"COUNTIF(Таблица3[Столбец14],Таблица3[[#This Row],[Столбец14]])","v":2}]
["2016-12-11T12:14:42","\\/","2016-12-11T12:14:42","/\\","RockDiva","№4","Руслана","1 ринг","Перекупалась (1)",0.34,24,"обычная","не продается",{"$f":"Таблица3[[#This Row],[Столбец5]]&Таблица3[[#This Row],[Столбец6]]&Таблица3[[#This Row],[Столбец7]]&Таблица3[[#This Row],[Столбец8]]&Таблица3[[#This Row],[Столбец9]]&Таблица3[[#This Row],[Столбец12]]","v":"RockDiva№4Руслана1 рингПерекупалась (1)обычная"},{"$f":"COUNTIF(Таблица3[Столбец14],Таблица3[[#This Row],[Столбец14]])","v":4}]
["2016-12-11T12:15:49","\\/","2016-12-11T20:59:57","/\\","Ватоботы","№2","Руслана","1 ринг","Перекупалась (1)",0.52,15,"обычная","не продается",{"$f":"Таблица3[[#This Row],[Столбец5]]&Таблица3[[#This Row],[Столбец6]]&Таблица3[[#This Row],[Столбец7]]&Таблица3[[#This Row],[Столбец8]]&Таблица3[[#This Row],[Столбец9]]&Таблица3[[#This Row],[Столбец12]]","v":"Ватоботы№2Руслана1 рингПерекупалась (1)обычная"},{"$f":"COUNTIF(Таблица3[Столбец14],Таблица3[[#This Row],[Столбец14]])","v":2}]
["2016-12-11T12:15:57","\\/","2016-12-11T21:00:05","/\\","Ватоботы","№5","Эрика","2 ринг","Не перекупалась",0.54,9,"элитная","не продается",{"$f":"Таблица3[[#This Row],[Столбец5]]&Таблица3[[#This Row],[Столбец6]]&Таблица3[[#This Row],[Столбец7]]&Таблица3[[#This Row],[Столбец8]]&Таблица3[[#This Row],[Столбец9]]&Таблица3[[#This Row],[Столбец12]]","v":"Ватоботы№5Эрика2 рингНе перекупаласьэлитная"},{"$f":"COUNTIF(Таблица3[Столбец14],Таблица3[[#This Row],[Столбец14]])","v":2}]
["2016-12-11T12:16:32","\\/","2016-12-11T20:17:57","/\\","АнархистЪ","№4","Юля","1 ринг","Перекупалась (1)",0.55000000000000004,16,"обычная","не продается",{"$f":"Таблица3[[#This Row],[Столбец5]]&Таблица3[[#This Row],[Столбец6]]&Таблица3[[#This Row],[Столбец7]]&Таблица3[[#This Row],[Столбец8]]&Таблица3[[#This Row],[Столбец9]]&Таблица3[[#This Row],[Столбец12]]","v":"АнархистЪ№4Юля1 рингПерекупалась (1)обычная"},{"$f":"COUNTIF(Таблица3[Столбец14],Таблица3[[#This Row],[Столбец14]])","v":3}]
["2016-12-11T12:16:53","\\/","2016-12-11T21:01:04","/\\","ВеЧеРнИе ЗвЕзДы","№1","Света","1 ринг","Перекупалась (1)",0.51,19,"обычная","не продается",{"$f":"Таблица3[[#This Row],[Столбец5]]&Таблица3[[#This Row],[Столбец6]]&Таблица3[[#This Row],[Столбец7]]&Таблица3[[#This Row],[Столбец8]]&Таблица3[[#This Row],[Столбец9]]&Таблица3[[#This Row],[Столбец12]]","v":"ВеЧеРнИе ЗвЕзДы№1Света1 рингПерекупалась (1)обычная"},{"$f":"COUNTIF(Таблица3[Столбец14],Таблица3[[#This Row],[Столбец14]])","v":2}]
["2016-12-11T12:17:01","\\/","2016-12-11T16:41:26","/\\","ВеЧеРнИе ЗвЕзДы","№2","Наташа","1 ринг","Перекупалась (1)",0.38,16,"обычная","не продается",{"$f":"Таблица3[[#This Row],[Столбец5]]&Таблица3[[#This Row],[Столбец6]]&Таблица3[[#This Row],[Столбец7]]&Таблица3[[#This Row],[Столбец8]]&Таблица3[[#This Row],[Столбец9]]&Таблица3[[#This Row],[Столбец12]]","v":"ВеЧеРнИе ЗвЕзДы№2Наташа1 рингПерекупалась (1)обычная"},{"$f":"COUNTIF(Таблица3[Столбец14],Таблица3[[#This Row],[Столбец14]])","v":3}]
["2016-12-11T12:17:24","\\/","2016-12-11T21:01:35","/\\","ВеЧеРнИе ЗвЕзДы","№6","Регина","1 ринг","Перекупалась (1)",0.54,16,"обычная","не продается",{"$f":"Таблица3[[#This Row],[Столбец5]]&Таблица3[[#This Row],[Столбец6]]&Таблица3[[#This Row],[Столбец7]]&Таблица3[[#This Row],[Столбец8]]&Таблица3[[#This Row],[Столбец9]]&Таблица3[[#This Row],[Столбец12]]","v":"ВеЧеРнИе ЗвЕзДы№6Регина1 рингПерекупалась (1)обычная"},{"$f":"COUNTIF(Таблица3[Столбец14],Таблица3[[#This Row],[Столбец14]])","v":2}]
["2016-12-11T12:17:59","\\/","2016-12-11T21:02:04","/\\","Духи Витязей","№3","Анфиса","1 ринг","Перекупалась (1)",0.61,29,"обычная","не продается",{"$f":"Таблица3[[#This Row],[Столбец5]]&Таблица3[[#This Row],[Столбец6]]&Таблица3[[#This Row],[Столбец7]]&Таблица3[[#This Row],[Столбец8]]&Таблица3[[#This Row],[Столбец9]]&Таблица3[[#This Row],[Столбец12]]","v":"Духи Витязей№3Анфиса1 рингПерекупалась (1)обычная"},{"$f":"COUNTIF(Таблица3[Столбец14],Таблица3[[#This Row],[Столбец14]])","v":2}]
["2016-12-11T12:18:06","\\/","2016-12-11T21:02:11","/\\","Духи Витязей","№4","Агния","1 ринг","Перекупалась (1)",0.61,29,"обычная","не продается",{"$f":"Таблица3[[#This Row],[Столбец5]]&Таблица3[[#This Row],[Столбец6]]&Таблица3[[#This Row],[Столбец7]]&Таблица3[[#This Row],[Столбец8]]&Таблица3[[#This Row],[Столбец9]]&Таблица3[[#This Row],[Столбец12]]","v":"Духи Витязей№4Агния1 рингПерекупалась (1)обычная"},{"$f":"COUNTIF(Таблица3[Столбец14],Таблица3[[#This Row],[Столбец14]])","v":2}]
["2016-12-11T12:18:36","\\/","2016-12-11T21:02:40","/\\","Крепкий орешек","№2","Лена","1 ринг","Перекупалась (1)",0.49,18,"обычная","не продается",{"$f":"Таблица3[[#This Row],[Столбец5]]&Таблица3[[#This Row],[Столбец6]]&Таблица3[[#This Row],[Столбец7]]&Таблица3[[#This Row],[Столбец8]]&Таблица3[[#This Row],[Столбец9]]&Таблица3[[#This Row],[Столбец12]]","v":"Крепкий орешек№2Лена1 рингПерекупалась (1)обычная"},{"$f":"COUNTIF(Таблица3[Столбец14],Таблица3[[#This Row],[Столбец14]])","v":2}]
["2016-12-11T12:18:44","\\/","2016-12-11T18:53:11","/\\","Крепкий орешек","№3","Глория","2 ринг","Перекупалась (1)",0.61,24,"элитная","не продается",{"$f":"Таблица3[[#This Row],[Столбец5]]&Таблица3[[#This Row],[Столбец6]]&Таблица3[[#This Row],[Столбец7]]&Таблица3[[#This Row],[Столбец8]]&Таблица3[[#This Row],[Столбец9]]&Таблица3[[#This Row],[Столбец12]]","v":"Крепкий орешек№3Глория2 рингПерекупалась (1)элитная"},{"$f":"COUNTIF(Таблица3[Столбец14],Таблица3[[#This Row],[Столбец14]])","v":4}]
["2016-12-11T12:18:51","\\/","2016-12-11T21:02:56","/\\","Крепкий орешек","№4","Лена","1 ринг","Перекупалась (1)",0.61,23,"обычная","не продается",{"$f":"Таблица3[[#This Row],[Столбец5]]&Таблица3[[#This Row],[Столбец6]]&Таблица3[[#This Row],[Столбец7]]&Таблица3[[#This Row],[Столбец8]]&Таблица3[[#This Row],[Столбец9]]&Таблица3[[#This Row],[Столбец12]]","v":"Крепкий орешек№4Лена1 рингПерекупалась (1)обычная"},{"$f":"COUNTIF(Таблица3[Столбец14],Таблица3[[#This Row],[Столбец14]])","v":2}]
["2016-12-11T12:19:45","\\/","2016-12-11T18:10:32","/\\","CLOSED SCHOOL","№3","Клара","1 ринг","Перекупалась (1)",0.57999999999999996,25,"обычная","не продается",{"$f":"Таблица3[[#This Row],[Столбец5]]&Таблица3[[#This Row],[Столбец6]]&Таблица3[[#This Row],[Столбец7]]&Таблица3[[#This Row],[Столбец8]]&Таблица3[[#This Row],[Столбец9]]&Таблица3[[#This Row],[Столбец12]]","v":"CLOSED SCHOOL№3Клара1 рингПерекупалась (1)обычная"},{"$f":"COUNTIF(Таблица3[Столбец14],Таблица3[[#This Row],[Столбец14]])","v":2}]
["2016-12-11T12:19:54","\\/","2016-12-11T21:04:00","/\\","CLOSED SCHOOL","№4","Алина","1 ринг","Перекупалась (2)",0.48,17,"обычная","не продается",{"$f":"Таблица3[[#This Row],[Столбец5]]&Таблица3[[#This Row],[Столбец6]]&Таблица3[[#This Row],[Столбец7]]&Таблица3[[#This Row],[Столбец8]]&Таблица3[[#This Row],[Столбец9]]&Таблица3[[#This Row],[Столбец12]]","v":"CLOSED SCHOOL№4Алина1 рингПерекупалась (2)обычная"},{"$f":"COUNTIF(Таблица3[Столбец14],Таблица3[[#This Row],[Столбец14]])","v":2}]
["2016-12-11T12:20:30","\\/","2016-12-11T13:05:32","/\\","Босяки","№4","Дина","1 ринг","Перекупалась (2)",0.38,16,"обычная","не продается",{"$f":"Таблица3[[#This Row],[Столбец5]]&Таблица3[[#This Row],[Столбец6]]&Таблица3[[#This Row],[Столбец7]]&Таблица3[[#This Row],[Столбец8]]&Таблица3[[#This Row],[Столбец9]]&Таблица3[[#This Row],[Столбец12]]","v":"Босяки№4Дина1 рингПерекупалась (2)обычная"},{"$f":"COUNTIF(Таблица3[Столбец14],Таблица3[[#This Row],[Столбец14]])","v":3}]
["2016-12-11T12:20:38","\\/","2016-12-11T21:04:42","/\\","Босяки","№5","Оксана","1 ринг","Перекупалась (1)",0.93,7,"обычная","не продается",{"$f":"Таблица3[[#This Row],[Столбец5]]&Таблица3[[#This Row],[Столбец6]]&Таблица3[[#This Row],[Столбец7]]&Таблица3[[#This Row],[Столбец8]]&Таблица3[[#This Row],[Столбец9]]&Таблица3[[#This Row],[Столбец12]]","v":"Босяки№5Оксана1 рингПерекупалась (1)обычная"},{"$f":"COUNTIF(Таблица3[Столбец14],Таблица3[[#This Row],[Столбец14]])","v":2}]
["2016-12-11T12:21:51","\\/","2016-12-11T21:06:02","/\\","Лиловый Шар","№1","Варвара","1 ринг","Перекупалась (1)",0.55000000000000004,9,"обычная","не продается",{"$f":"Таблица3[[#This Row],[Столбец5]]&Таблица3[[#This Row],[Столбец6]]&Таблица3[[#This Row],[Столбец7]]&Таблица3[[#This Row],[Столбец8]]&Таблица3[[#This Row],[Столбец9]]&Таблица3[[#This Row],[Столбец12]]","v":"Лиловый Шар№1Варвара1 рингПерекупалась (1)обычная"},{"$f":"COUNTIF(Таблица3[Столбец14],Таблица3[[#This Row],[Столбец14]])","v":2}]
["2016-12-11T12:22:36","\\/","2016-12-11T21:06:44","/\\","Влюбленные в мечту","№4","Жюли","3 ринг","Перекупалась (1)",0.61,13,"элитная","не продается",{"$f":"Таблица3[[#This Row],[Столбец5]]&Таблица3[[#This Row],[Столбец6]]&Таблица3[[#This Row],[Столбец7]]&Таблица3[[#This Row],[Столбец8]]&Таблица3[[#This Row],[Столбец9]]&Таблица3[[#This Row],[Столбец12]]","v":"Влюбленные в мечту№4Жюли3 рингПерекупалась (1)элитная"},{"$f":"COUNTIF(Таблица3[Столбец14],Таблица3[[#This Row],[Столбец14]])","v":2}]
["2016-12-11T12:22:43","\\/","2016-12-11T21:06:52","/\\","Влюбленные в мечту","№5","Рада","1 ринг","Перекупалась (1)",0.42,11,"обычная","не продается",{"$f":"Таблица3[[#This Row],[Столбец5]]&Таблица3[[#This Row],[Столбец6]]&Таблица3[[#This Row],[Столбец7]]&Таблица3[[#This Row],[Столбец8]]&Таблица3[[#This Row],[Столбец9]]&Таблица3[[#This Row],[Столбец12]]","v":"Влюбленные в мечту№5Рада1 рингПерекупалась (1)обычная"},{"$f":"COUNTIF(Таблица3[Столбец14],Таблица3[[#This Row],[Столбец14]])","v":2}]
["2016-12-11T12:23:12","\\/","2016-12-11T21:07:19","/\\","остатки РАЯ","№3","Валерия","1 ринг","Перекупалась (2)",0.4,20,"обычная","не продается",{"$f":"Таблица3[[#This Row],[Столбец5]]&Таблица3[[#This Row],[Столбец6]]&Таблица3[[#This Row],[Столбец7]]&Таблица3[[#This Row],[Столбец8]]&Таблица3[[#This Row],[Столбец9]]&Таблица3[[#This Row],[Столбец12]]","v":"остатки РАЯ№3Валерия1 рингПерекупалась (2)обычная"},{"$f":"COUNTIF(Таблица3[Столбец14],Таблица3[[#This Row],[Столбец14]])","v":2}]
["2016-12-11T12:23:57","\\/","2016-12-11T15:21:54","/\\","Завоеватели1","№4","Регина","1 ринг","Не перекупалась",0.37,9,"обычная","не продается",{"$f":"Таблица3[[#This Row],[Столбец5]]&Таблица3[[#This Row],[Столбец6]]&Таблица3[[#This Row],[Столбец7]]&Таблица3[[#This Row],[Столбец8]]&Таблица3[[#This Row],[Столбец9]]&Таблица3[[#This Row],[Столбец12]]","v":"Завоеватели1№4Регина1 рингНе перекупаласьобычная"},{"$f":"COUNTIF(Таблица3[Столбец14],Таблица3[[#This Row],[Столбец14]])","v":3}]
["2016-12-11T12:24:23","\\/","2016-12-11T21:08:32","/\\","Карточные Люди","№5","Лера","1 ринг","Не перекупалась",0.67,10,"обычная","не продается",{"$f":"Таблица3[[#This Row],[Столбец5]]&Таблица3[[#This Row],[Столбец6]]&Таблица3[[#This Row],[Столбец7]]&Таблица3[[#This Row],[Столбец8]]&Таблица3[[#This Row],[Столбец9]]&Таблица3[[#This Row],[Столбец12]]","v":"Карточные Люди№5Лера1 рингНе перекупаласьобычная"},{"$f":"COUNTIF(Таблица3[Столбец14],Таблица3[[#This Row],[Столбец14]])","v":2}]
["2016-12-11T12:24:47","\\/","2016-12-11T21:08:57","/\\","Лунные волки","№2","Жанна","2 ринг","Не перекупалась",0.45,10,"элитная","не продается",{"$f":"Таблица3[[#This Row],[Столбец5]]&Таблица3[[#This Row],[Столбец6]]&Таблица3[[#This Row],[Столбец7]]&Таблица3[[#This Row],[Столбец8]]&Таблица3[[#This Row],[Столбец9]]&Таблица3[[#This Row],[Столбец12]]","v":"Лунные волки№2Жанна2 рингНе перекупаласьэлитная"},{"$f":"COUNTIF(Таблица3[Столбец14],Таблица3[[#This Row],[Столбец14]])","v":2}]
["2016-12-11T12:25:17","\\/","2016-12-11T12:25:17","/\\","Любимые Люди","№4","Рита","1 ринг","Не перекупалась",0.44,8,"обычная","не продается",{"$f":"Таблица3[[#This Row],[Столбец5]]&Таблица3[[#This Row],[Столбец6]]&Таблица3[[#This Row],[Столбец7]]&Таблица3[[#This Row],[Столбец8]]&Таблица3[[#This Row],[Столбец9]]&Таблица3[[#This Row],[Столбец12]]","v":"Любимые Люди№4Рита1 рингНе перекупаласьобычная"},{"$f":"COUNTIF(Таблица3[Столбец14],Таблица3[[#This Row],[Столбец14]])","v":3}]
["2016-12-11T12:25:41","\\/","2016-12-11T21:09:47","/\\","Малавита","№1","Лиана","1 ринг","Перекупалась (1)",1,17,"обычная","не продается",{"$f":"Таблица3[[#This Row],[Столбец5]]&Таблица3[[#This Row],[Столбец6]]&Таблица3[[#This Row],[Столбец7]]&Таблица3[[#This Row],[Столбец8]]&Таблица3[[#This Row],[Столбец9]]&Таблица3[[#This Row],[Столбец12]]","v":"Малавита№1Лиана1 рингПерекупалась (1)обычная"},{"$f":"COUNTIF(Таблица3[Столбец14],Таблица3[[#This Row],[Столбец14]])","v":1}]
["2016-12-11T12:26:30","\\/","2016-12-11T19:01:08","/\\","Неончики","№4","Анжела","3 ринг","Не перекупалась",0.38,26,"элитная","не продается",{"$f":"Таблица3[[#This Row],[Столбец5]]&Таблица3[[#This Row],[Столбец6]]&Таблица3[[#This Row],[Столбец7]]&Таблица3[[#This Row],[Столбец8]]&Таблица3[[#This Row],[Столбец9]]&Таблица3[[#This Row],[Столбец12]]","v":"Неончики№4Анжела3 рингНе перекупаласьэлитная"},{"$f":"COUNTIF(Таблица3[Столбец14],Таблица3[[#This Row],[Столбец14]])","v":3}]
["2016-12-11T12:26:53","\\/","2016-12-11T16:51:17","/\\","НеРеАлЬнЫе","№3","Фаина","2 ринг","Не перекупалась",0.54,22,"элитная","не продается",{"$f":"Таблица3[[#This Row],[Столбец5]]&Таблица3[[#This Row],[Столбец6]]&Таблица3[[#This Row],[Столбец7]]&Таблица3[[#This Row],[Столбец8]]&Таблица3[[#This Row],[Столбец9]]&Таблица3[[#This Row],[Столбец12]]","v":"НеРеАлЬнЫе№3Фаина2 рингНе перекупаласьэлитная"},{"$f":"COUNTIF(Таблица3[Столбец14],Таблица3[[#This Row],[Столбец14]])","v":3}]
["2016-12-11T12:27:16","\\/","2016-12-11T13:12:20","/\\","Рванина","№1","Забава","1 ринг","Перекупалась (1)",0.31,20,"обычная","не продается",{"$f":"Таблица3[[#This Row],[Столбец5]]&Таблица3[[#This Row],[Столбец6]]&Таблица3[[#This Row],[Столбец7]]&Таблица3[[#This Row],[Столбец8]]&Таблица3[[#This Row],[Столбец9]]&Таблица3[[#This Row],[Столбец12]]","v":"Рванина№1Забава1 рингПерекупалась (1)обычная"},{"$f":"COUNTIF(Таблица3[Столбец14],Таблица3[[#This Row],[Столбец14]])","v":3}]
["2016-12-11T12:27:24","\\/","2016-12-11T13:12:28","/\\","Рванина","№2","Аля","1 ринг","Перекупалась (1)",0.31,11,"обычная","не продается",{"$f":"Таблица3[[#This Row],[Столбец5]]&Таблица3[[#This Row],[Столбец6]]&Таблица3[[#This Row],[Столбец7]]&Таблица3[[#This Row],[Столбец8]]&Таблица3[[#This Row],[Столбец9]]&Таблица3[[#This Row],[Столбец12]]","v":"Рванина№2Аля1 рингПерекупалась (1)обычная"},{"$f":"COUNTIF(Таблица3[Столбец14],Таблица3[[#This Row],[Столбец14]])","v":3}]
["2016-12-11T12:27:32","\\/","2016-12-11T21:11:49","/\\","Рванина","№3","Алёна","1 ринг","Перекупалась (1)",0.62,19,"обычная","не продается",{"$f":"Таблица3[[#This Row],[Столбец5]]&Таблица3[[#This Row],[Столбец6]]&Таблица3[[#This Row],[Столбец7]]&Таблица3[[#This Row],[Столбец8]]&Таблица3[[#This Row],[Столбец9]]&Таблица3[[#This Row],[Столбец12]]","v":"Рванина№3Алёна1 рингПерекупалась (1)обычная"},{"$f":"COUNTIF(Таблица3[Столбец14],Таблица3[[#This Row],[Столбец14]])","v":2}]
["2016-12-11T12:28:58","\\/","2016-12-11T21:13:14","/\\","Legendary rebels","№1","Регина","1 ринг","Перекупалась (1)",0.44,12,"обычная","не продается",{"$f":"Таблица3[[#This Row],[Столбец5]]&Таблица3[[#This Row],[Столбец6]]&Таблица3[[#This Row],[Столбец7]]&Таблица3[[#This Row],[Столбец8]]&Таблица3[[#This Row],[Столбец9]]&Таблица3[[#This Row],[Столбец12]]","v":"Legendary rebels№1Регина1 рингПерекупалась (1)обычная"},{"$f":"COUNTIF(Таблица3[Столбец14],Таблица3[[#This Row],[Столбец14]])","v":2}]
["2016-12-11T12:30:01","\\/","2016-12-11T21:14:24","/\\","Монстры на Каникулах","№2","Олеся","1 ринг","Перекупалась (2)",0.56999999999999995,21,"обычная","не продается",{"$f":"Таблица3[[#This Row],[Столбец5]]&Таблица3[[#This Row],[Столбец6]]&Таблица3[[#This Row],[Столбец7]]&Таблица3[[#This Row],[Столбец8]]&Таблица3[[#This Row],[Столбец9]]&Таблица3[[#This Row],[Столбец12]]","v":"Монстры на Каникулах№2Олеся1 рингПерекупалась (2)обычная"},{"$f":"COUNTIF(Таблица3[Столбец14],Таблица3[[#This Row],[Столбец14]])","v":2}]
["2016-12-11T12:34:47","\\/","2016-12-11T20:41:09","/\\","MASTRO ROkA","№6","Настя","1 ринг","Перекупалась (1)",0.44,8,"обычная","не продается",{"$f":"Таблица3[[#This Row],[Столбец5]]&Таблица3[[#This Row],[Столбец6]]&Таблица3[[#This Row],[Столбец7]]&Таблица3[[#This Row],[Столбец8]]&Таблица3[[#This Row],[Столбец9]]&Таблица3[[#This Row],[Столбец12]]","v":"MASTRO ROkA№6Настя1 рингПерекупалась (1)обычная"},{"$f":"COUNTIF(Таблица3[Столбец14],Таблица3[[#This Row],[Столбец14]])","v":2}]
["2016-12-11T12:47:17","\\/","2016-12-11T20:45:59","/\\","Sing for the Moment","№4","Аэлита","2 ринг","Перекупалась (1)",0.66,17,"элитная","не продается",{"$f":"Таблица3[[#This Row],[Столбец5]]&Таблица3[[#This Row],[Столбец6]]&Таблица3[[#This Row],[Столбец7]]&Таблица3[[#This Row],[Столбец8]]&Таблица3[[#This Row],[Столбец9]]&Таблица3[[#This Row],[Столбец12]]","v":"Sing for the Moment№4Аэлита2 рингПерекупалась (1)элитная"},{"$f":"COUNTIF(Таблица3[Столбец14],Таблица3[[#This Row],[Столбец14]])","v":2}]
["2016-12-11T12:50:18","\\/","2016-12-11T20:49:08","/\\","Стая яростных Волков","№2","Дана","2 ринг","Перекупалась (1)",0.8,20,"элитная","не продается",{"$f":"Таблица3[[#This Row],[Столбец5]]&Таблица3[[#This Row],[Столбец6]]&Таблица3[[#This Row],[Столбец7]]&Таблица3[[#This Row],[Столбец8]]&Таблица3[[#This Row],[Столбец9]]&Таблица3[[#This Row],[Столбец12]]","v":"Стая яростных Волков№2Дана2 рингПерекупалась (1)элитная"},{"$f":"COUNTIF(Таблица3[Столбец14],Таблица3[[#This Row],[Столбец14]])","v":2}]
["2016-12-11T12:55:05","\\/","2016-12-11T12:55:05","/\\","Medical Center","№5","Лера","1 ринг","Перекупалась (1)",0.31,26,"обычная","не продается",{"$f":"Таблица3[[#This Row],[Столбец5]]&Таблица3[[#This Row],[Столбец6]]&Таблица3[[#This Row],[Столбец7]]&Таблица3[[#This Row],[Столбец8]]&Таблица3[[#This Row],[Столбец9]]&Таблица3[[#This Row],[Столбец12]]","v":"Medical Center№5Лера1 рингПерекупалась (1)обычная"},{"$f":"COUNTIF(Таблица3[Столбец14],Таблица3[[#This Row],[Столбец14]])","v":3}]
["2016-12-11T12:55:34","\\/","2016-12-11T20:54:25","/\\","METALL IN MY BLOOD","№5","Слава","1 ринг","Не перекупалась",0.66,14,"обычная","не продается",{"$f":"Таблица3[[#This Row],[Столбец5]]&Таблица3[[#This Row],[Столбец6]]&Таблица3[[#This Row],[Столбец7]]&Таблица3[[#This Row],[Столбец8]]&Таблица3[[#This Row],[Столбец9]]&Таблица3[[#This Row],[Столбец12]]","v":"METALL IN MY BLOOD№5Слава1 рингНе перекупаласьобычная"},{"$f":"COUNTIF(Таблица3[Столбец14],Таблица3[[#This Row],[Столбец14]])","v":3}]
["2016-12-11T12:59:46","\\/","2016-12-11T16:38:44","/\\","RockDiva","№4","Руслана","1 ринг","Перекупалась (1)",0.44,25,"обычная","не продается",{"$f":"Таблица3[[#This Row],[Столбец5]]&Таблица3[[#This Row],[Столбец6]]&Таблица3[[#This Row],[Столбец7]]&Таблица3[[#This Row],[Столбец8]]&Таблица3[[#This Row],[Столбец9]]&Таблица3[[#This Row],[Столбец12]]","v":"RockDiva№4Руслана1 рингПерекупалась (1)обычная"},{"$f":"COUNTIF(Таблица3[Столбец14],Таблица3[[#This Row],[Столбец14]])","v":4}]
["2016-12-11T13:06:10","\\/","2016-12-11T21:05:12","/\\","МАРТИСОНЫ","№5","Аня","1 ринг","Перекупалась (1)",0.42,11,"обычная","не продается",{"$f":"Таблица3[[#This Row],[Столбец5]]&Таблица3[[#This Row],[Столбец6]]&Таблица3[[#This Row],[Столбец7]]&Таблица3[[#This Row],[Столбец8]]&Таблица3[[#This Row],[Столбец9]]&Таблица3[[#This Row],[Столбец12]]","v":"МАРТИСОНЫ№5Аня1 рингПерекупалась (1)обычная"},{"$f":"COUNTIF(Таблица3[Столбец14],Таблица3[[#This Row],[Столбец14]])","v":2}]
["2016-12-11T13:08:35","\\/","2016-12-11T21:07:46","/\\","True Blood","№5","Даша","1 ринг","Перекупалась (1)",0.72,7,"обычная","не продается",{"$f":"Таблица3[[#This Row],[Столбец5]]&Таблица3[[#This Row],[Столбец6]]&Таблица3[[#This Row],[Столбец7]]&Таблица3[[#This Row],[Столбец8]]&Таблица3[[#This Row],[Столбец9]]&Таблица3[[#This Row],[Столбец12]]","v":"True Blood№5Даша1 рингПерекупалась (1)обычная"},{"$f":"COUNTIF(Таблица3[Столбец14],Таблица3[[#This Row],[Столбец14]])","v":2}]
["2016-12-11T13:10:12","\\/","2016-12-11T21:09:25","/\\","Любимые Люди","№4","Рита","1 ринг","Не перекупалась",0.54,9,"обычная","не продается",{"$f":"Таблица3[[#This Row],[Столбец5]]&Таблица3[[#This Row],[Столбец6]]&Таблица3[[#This Row],[Столбец7]]&Таблица3[[#This Row],[Столбец8]]&Таблица3[[#This Row],[Столбец9]]&Таблица3[[#This Row],[Столбец12]]","v":"Любимые Люди№4Рита1 рингНе перекупаласьобычная"},{"$f":"COUNTIF(Таблица3[Столбец14],Таблица3[[#This Row],[Столбец14]])","v":3}]
["2016-12-11T13:39:53","\\/","2016-12-11T20:53:58","/\\","Medical Center","№5","Лера","1 ринг","Перекупалась (1)",0.61,29,"обычная","не продается",{"$f":"Таблица3[[#This Row],[Столбец5]]&Таблица3[[#This Row],[Столбец6]]&Таблица3[[#This Row],[Столбец7]]&Таблица3[[#This Row],[Столбец8]]&Таблица3[[#This Row],[Столбец9]]&Таблица3[[#This Row],[Столбец12]]","v":"Medical Center№5Лера1 рингПерекупалась (1)обычная"},{"$f":"COUNTIF(Таблица3[Столбец14],Таблица3[[#This Row],[Столбец14]])","v":3}]
["2016-12-11T13:50:37","\\/","2016-12-11T21:04:34","/\\","Босяки","№4","Дина","1 ринг","Перекупалась (2)",0.48,17,"обычная","не продается",{"$f":"Таблица3[[#This Row],[Столбец5]]&Таблица3[[#This Row],[Столбец6]]&Таблица3[[#This Row],[Столбец7]]&Таблица3[[#This Row],[Столбец8]]&Таблица3[[#This Row],[Столбец9]]&Таблица3[[#This Row],[Столбец12]]","v":"Босяки№4Дина1 рингПерекупалась (2)обычная"},{"$f":"COUNTIF(Таблица3[Столбец14],Таблица3[[#This Row],[Столбец14]])","v":3}]
["2016-12-11T13:51:36","\\/","2016-12-11T16:45:47","/\\","Волча стая","№5","Роза","1 ринг","Перекупалась (2)",0.31,18,"обычная","не продается",{"$f":"Таблица3[[#This Row],[Столбец5]]&Таблица3[[#This Row],[Столбец6]]&Таблица3[[#This Row],[Столбец7]]&Таблица3[[#This Row],[Столбец8]]&Таблица3[[#This Row],[Столбец9]]&Таблица3[[#This Row],[Столбец12]]","v":"Волча стая№5Роза1 рингПерекупалась (2)обычная"},{"$f":"COUNTIF(Таблица3[Столбец14],Таблица3[[#This Row],[Столбец14]])","v":3}]
["2016-12-11T13:57:26","\\/","2016-12-11T21:11:33","/\\","Рванина","№1","Забава","1 ринг","Перекупалась (1)",0.51,22,"обычная","не продается",{"$f":"Таблица3[[#This Row],[Столбец5]]&Таблица3[[#This Row],[Столбец6]]&Таблица3[[#This Row],[Столбец7]]&Таблица3[[#This Row],[Столбец8]]&Таблица3[[#This Row],[Столбец9]]&Таблица3[[#This Row],[Столбец12]]","v":"Рванина№1Забава1 рингПерекупалась (1)обычная"},{"$f":"COUNTIF(Таблица3[Столбец14],Таблица3[[#This Row],[Столбец14]])","v":3}]
["2016-12-11T13:57:35","\\/","2016-12-11T21:11:41","/\\","Рванина","№2","Аля","1 ринг","Перекупалась (1)",0.51,13,"обычная","не продается",{"$f":"Таблица3[[#This Row],[Столбец5]]&Таблица3[[#This Row],[Столбец6]]&Таблица3[[#This Row],[Столбец7]]&Таблица3[[#This Row],[Столбец8]]&Таблица3[[#This Row],[Столбец9]]&Таблица3[[#This Row],[Столбец12]]","v":"Рванина№2Аля1 рингПерекупалась (1)обычная"},{"$f":"COUNTIF(Таблица3[Столбец14],Таблица3[[#This Row],[Столбец14]])","v":3}]
["2016-12-11T14:01:11","\\/","2016-12-11T14:01:11","/\\","DeAdLy AnD InViNcIbLeS","№1","Аля","1 ринг","Перекупалась (2)",0.34,16,"обычная","не продается",{"$f":"Таблица3[[#This Row],[Столбец5]]&Таблица3[[#This Row],[Столбец6]]&Таблица3[[#This Row],[Столбец7]]&Таблица3[[#This Row],[Столбец8]]&Таблица3[[#This Row],[Столбец9]]&Таблица3[[#This Row],[Столбец12]]","v":"DeAdLy AnD InViNcIbLeS№1Аля1 рингПерекупалась (2)обычная"},{"$f":"COUNTIF(Таблица3[Столбец14],Таблица3[[#This Row],[Столбец14]])","v":3}]
["2016-12-11T14:02:21","\\/","2016-12-11T20:39:07","/\\","TOXIC METALL","№3","Оксана","1 ринг","Перекупалась (1)",1,20,"обычная","не продается",{"$f":"Таблица3[[#This Row],[Столбец5]]&Таблица3[[#This Row],[Столбец6]]&Таблица3[[#This Row],[Столбец7]]&Таблица3[[#This Row],[Столбец8]]&Таблица3[[#This Row],[Столбец9]]&Таблица3[[#This Row],[Столбец12]]","v":"TOXIC METALL№3Оксана1 рингПерекупалась (1)обычная"},{"$f":"COUNTIF(Таблица3[Столбец14],Таблица3[[#This Row],[Столбец14]])","v":2}]
["2016-12-11T14:07:59","\\/","2016-12-11T20:43:53","/\\","Steel bullets","№2","Лада","1 ринг","Не перекупалась",0.64,26,"обычная","не продается",{"$f":"Таблица3[[#This Row],[Столбец5]]&Таблица3[[#This Row],[Столбец6]]&Таблица3[[#This Row],[Столбец7]]&Таблица3[[#This Row],[Столбец8]]&Таблица3[[#This Row],[Столбец9]]&Таблица3[[#This Row],[Столбец12]]","v":"Steel bullets№2Лада1 рингНе перекупаласьобычная"},{"$f":"COUNTIF(Таблица3[Столбец14],Таблица3[[#This Row],[Столбец14]])","v":2}]
["2016-12-11T14:23:07","\\/","2016-12-11T20:52:20","/\\","Fluffy Animals","№3","Рита","1 ринг","Перекупалась (1)",1,8,"обычная","не продается",{"$f":"Таблица3[[#This Row],[Столбец5]]&Таблица3[[#This Row],[Столбец6]]&Таблица3[[#This Row],[Столбец7]]&Таблица3[[#This Row],[Столбец8]]&Таблица3[[#This Row],[Столбец9]]&Таблица3[[#This Row],[Столбец12]]","v":"Fluffy Animals№3Рита1 рингПерекупалась (1)обычная"},{"$f":"COUNTIF(Таблица3[Столбец14],Таблица3[[#This Row],[Столбец14]])","v":1}]
["2016-12-11T14:30:08","\\/","2016-12-11T16:39:26","/\\","The Bling Ring","№3","Оксана","1 ринг","Перекупалась (1)",0.44,7,"обычная","не продается",{"$f":"Таблица3[[#This Row],[Столбец5]]&Таблица3[[#This Row],[Столбец6]]&Таблица3[[#This Row],[Столбец7]]&Таблица3[[#This Row],[Столбец8]]&Таблица3[[#This Row],[Столбец9]]&Таблица3[[#This Row],[Столбец12]]","v":"The Bling Ring№3Оксана1 рингПерекупалась (1)обычная"},{"$f":"COUNTIF(Таблица3[Столбец14],Таблица3[[#This Row],[Столбец14]])","v":3}]
["2016-12-11T14:46:12","\\/","2016-12-11T21:15:16","/\\","DeAdLy AnD InViNcIbLeS","№1","Аля","1 ринг","Перекупалась (2)",0.54,18,"обычная","не продается",{"$f":"Таблица3[[#This Row],[Столбец5]]&Таблица3[[#This Row],[Столбец6]]&Таблица3[[#This Row],[Столбец7]]&Таблица3[[#This Row],[Столбец8]]&Таблица3[[#This Row],[Столбец9]]&Таблица3[[#This Row],[Столбец12]]","v":"DeAdLy AnD InViNcIbLeS№1Аля1 рингПерекупалась (2)обычная"},{"$f":"COUNTIF(Таблица3[Столбец14],Таблица3[[#This Row],[Столбец14]])","v":3}]
["2016-12-11T14:48:55","\\/","2016-12-11T20:41:01","/\\","MASTRO ROkA","№5","Соня","1 ринг","Перекупалась (1)",0.42,10,"обычная","не продается",{"$f":"Таблица3[[#This Row],[Столбец5]]&Таблица3[[#This Row],[Столбец6]]&Таблица3[[#This Row],[Столбец7]]&Таблица3[[#This Row],[Столбец8]]&Таблица3[[#This Row],[Столбец9]]&Таблица3[[#This Row],[Столбец12]]","v":"MASTRO ROkA№5Соня1 рингПерекупалась (1)обычная"},{"$f":"COUNTIF(Таблица3[Столбец14],Таблица3[[#This Row],[Столбец14]])","v":2}]
["2016-12-11T15:04:47","\\/","2016-12-11T20:50:23","/\\","Урбаны с 8","№4","Забава","1 ринг","Перекупалась (1)",0.56999999999999995,20,"обычная","не продается",{"$f":"Таблица3[[#This Row],[Столбец5]]&Таблица3[[#This Row],[Столбец6]]&Таблица3[[#This Row],[Столбец7]]&Таблица3[[#This Row],[Столбец8]]&Таблица3[[#This Row],[Столбец9]]&Таблица3[[#This Row],[Столбец12]]","v":"Урбаны с 8№4Забава1 рингПерекупалась (1)обычная"},{"$f":"COUNTIF(Таблица3[Столбец14],Таблица3[[#This Row],[Столбец14]])","v":3}]
["2016-12-11T15:10:56","\\/","2016-12-11T20:56:42","/\\","Rap Story","№3","Оксана","1 ринг","Перекупалась (1)",0.51,19,"обычная","не продается",{"$f":"Таблица3[[#This Row],[Столбец5]]&Таблица3[[#This Row],[Столбец6]]&Таблица3[[#This Row],[Столбец7]]&Таблица3[[#This Row],[Столбец8]]&Таблица3[[#This Row],[Столбец9]]&Таблица3[[#This Row],[Столбец12]]","v":"Rap Story№3Оксана1 рингПерекупалась (1)обычная"},{"$f":"COUNTIF(Таблица3[Столбец14],Таблица3[[#This Row],[Столбец14]])","v":3}]
["2016-12-11T15:11:04","\\/","2016-12-11T20:56:50","/\\","Rap Story","№5","Пелагея","1 ринг","Перекупалась (1)",0.47,10,"обычная","не продается",{"$f":"Таблица3[[#This Row],[Столбец5]]&Таблица3[[#This Row],[Столбец6]]&Таблица3[[#This Row],[Столбец7]]&Таблица3[[#This Row],[Столбец8]]&Таблица3[[#This Row],[Столбец9]]&Таблица3[[#This Row],[Столбец12]]","v":"Rap Story№5Пелагея1 рингПерекупалась (1)обычная"},{"$f":"COUNTIF(Таблица3[Столбец14],Таблица3[[#This Row],[Столбец14]])","v":3}]
["2016-12-11T15:14:17","\\/","2016-12-11T15:14:17","/\\","Ватоботы","№6","Агния","1 ринг","Перекупалась (1)",0.38,25,"обычная","не продается",{"$f":"Таблица3[[#This Row],[Столбец5]]&Таблица3[[#This Row],[Столбец6]]&Таблица3[[#This Row],[Столбец7]]&Таблица3[[#This Row],[Столбец8]]&Таблица3[[#This Row],[Столбец9]]&Таблица3[[#This Row],[Столбец12]]","v":"Ватоботы№6Агния1 рингПерекупалась (1)обычная"},{"$f":"COUNTIF(Таблица3[Столбец14],Таблица3[[#This Row],[Столбец14]])","v":3}]
["2016-12-11T15:27:44","\\/","2016-12-11T15:27:44","/\\","Звезданутые облачка","№6","Римма","1 ринг","Перекупалась (2)",0.36,25,"обычная","не продается",{"$f":"Таблица3[[#This Row],[Столбец5]]&Таблица3[[#This Row],[Столбец6]]&Таблица3[[#This Row],[Столбец7]]&Таблица3[[#This Row],[Столбец8]]&Таблица3[[#This Row],[Столбец9]]&Таблица3[[#This Row],[Столбец12]]","v":"Звезданутые облачка№6Римма1 рингПерекупалась (2)обычная"},{"$f":"COUNTIF(Таблица3[Столбец14],Таблица3[[#This Row],[Столбец14]])","v":3}]
["2016-12-11T15:33:59","\\/","2016-12-11T15:39:52","/\\","Игра с Огнем","№4","Зина","1 ринг","Перекупалась (2)",0.37,7,"обычная","не продается",{"$f":"Таблица3[[#This Row],[Столбец5]]&Таблица3[[#This Row],[Столбец6]]&Таблица3[[#This Row],[Столбец7]]&Таблица3[[#This Row],[Столбец8]]&Таблица3[[#This Row],[Столбец9]]&Таблица3[[#This Row],[Столбец12]]","v":"Игра с Огнем№4Зина1 рингПерекупалась (2)обычная"},{"$f":"COUNTIF(Таблица3[Столбец14],Таблица3[[#This Row],[Столбец14]])","v":3}]
["2016-12-11T15:42:17","\\/","2016-12-11T15:42:17","/\\","Белый Лебедь","№3","Альбина","2 ринг","Перекупалась (2)",0.36,18,"элитная","не продается",{"$f":"Таблица3[[#This Row],[Столбец5]]&Таблица3[[#This Row],[Столбец6]]&Таблица3[[#This Row],[Столбец7]]&Таблица3[[#This Row],[Столбец8]]&Таблица3[[#This Row],[Столбец9]]&Таблица3[[#This Row],[Столбец12]]","v":"Белый Лебедь№3Альбина2 рингПерекупалась (2)элитная"},{"$f":"COUNTIF(Таблица3[Столбец14],Таблица3[[#This Row],[Столбец14]])","v":4}]
["2016-12-11T15:43:00","\\/","2016-12-11T20:45:44","/\\","Sing for the Moment","№2","Аня","1 ринг","Перекупалась (2)",0.31,8,"обычная","не продается",{"$f":"Таблица3[[#This Row],[Столбец5]]&Таблица3[[#This Row],[Столбец6]]&Таблица3[[#This Row],[Столбец7]]&Таблица3[[#This Row],[Столбец8]]&Таблица3[[#This Row],[Столбец9]]&Таблица3[[#This Row],[Столбец12]]","v":"Sing for the Moment№2Аня1 рингПерекупалась (2)обычная"},{"$f":"COUNTIF(Таблица3[Столбец14],Таблица3[[#This Row],[Столбец14]])","v":2}]
["2016-12-11T15:45:46","\\/","2016-12-11T15:45:46","/\\","Зоопарк","№5","Тоня","1 ринг","Перекупалась (1)",0.37,9,"обычная","не продается",{"$f":"Таблица3[[#This Row],[Столбец5]]&Таблица3[[#This Row],[Столбец6]]&Таблица3[[#This Row],[Столбец7]]&Таблица3[[#This Row],[Столбец8]]&Таблица3[[#This Row],[Столбец9]]&Таблица3[[#This Row],[Столбец12]]","v":"Зоопарк№5Тоня1 рингПерекупалась (1)обычная"},{"$f":"COUNTIF(Таблица3[Столбец14],Таблица3[[#This Row],[Столбец14]])","v":3}]
["2016-12-11T15:46:34","\\/","2016-12-11T20:49:30","/\\","Стая яростных Волков","№6","Алёна","1 ринг","Перекупалась (1)",0.37,10,"обычная","не продается",{"$f":"Таблица3[[#This Row],[Столбец5]]&Таблица3[[#This Row],[Столбец6]]&Таблица3[[#This Row],[Столбец7]]&Таблица3[[#This Row],[Столбец8]]&Таблица3[[#This Row],[Столбец9]]&Таблица3[[#This Row],[Столбец12]]","v":"Стая яростных Волков№6Алёна1 рингПерекупалась (1)обычная"},{"$f":"COUNTIF(Таблица3[Столбец14],Таблица3[[#This Row],[Столбец14]])","v":2}]
["2016-12-11T15:57:05","\\/","2016-12-11T21:00:12","/\\","Ватоботы","№6","Агния","1 ринг","Перекупалась (1)",0.57999999999999996,27,"обычная","не продается",{"$f":"Таблица3[[#This Row],[Столбец5]]&Таблица3[[#This Row],[Столбец6]]&Таблица3[[#This Row],[Столбец7]]&Таблица3[[#This Row],[Столбец8]]&Таблица3[[#This Row],[Столбец9]]&Таблица3[[#This Row],[Столбец12]]","v":"Ватоботы№6Агния1 рингПерекупалась (1)обычная"},{"$f":"COUNTIF(Таблица3[Столбец14],Таблица3[[#This Row],[Столбец14]])","v":3}]
["2016-12-11T16:04:51","\\/","2016-12-11T21:08:10","/\\","Завоеватели1","№4","Регина","1 ринг","Не перекупалась",0.47,10,"обычная","не продается",{"$f":"Таблица3[[#This Row],[Столбец5]]&Таблица3[[#This Row],[Столбец6]]&Таблица3[[#This Row],[Столбец7]]&Таблица3[[#This Row],[Столбец8]]&Таблица3[[#This Row],[Столбец9]]&Таблица3[[#This Row],[Столбец12]]","v":"Завоеватели1№4Регина1 рингНе перекупаласьобычная"},{"$f":"COUNTIF(Таблица3[Столбец14],Таблица3[[#This Row],[Столбец14]])","v":3}]
["2016-12-11T16:09:48","\\/","2016-12-11T21:12:47","/\\","Синяя Вобла","№6","Венера","2 ринг","Перекупалась (1)",0.51,7,"элитная","не продается",{"$f":"Таблица3[[#This Row],[Столбец5]]&Таблица3[[#This Row],[Столбец6]]&Таблица3[[#This Row],[Столбец7]]&Таблица3[[#This Row],[Столбец8]]&Таблица3[[#This Row],[Столбец9]]&Таблица3[[#This Row],[Столбец12]]","v":"Синяя Вобла№6Венера2 рингПерекупалась (1)элитная"},{"$f":"COUNTIF(Таблица3[Столбец14],Таблица3[[#This Row],[Столбец14]])","v":2}]
["2016-12-11T16:10:56","\\/","2016-12-11T21:13:58","/\\","Звезданутые облачка","№6","Римма","1 ринг","Перекупалась (2)",0.66,28,"обычная","не продается",{"$f":"Таблица3[[#This Row],[Столбец5]]&Таблица3[[#This Row],[Столбец6]]&Таблица3[[#This Row],[Столбец7]]&Таблица3[[#This Row],[Столбец8]]&Таблица3[[#This Row],[Столбец9]]&Таблица3[[#This Row],[Столбец12]]","v":"Звезданутые облачка№6Римма1 рингПерекупалась (2)обычная"},{"$f":"COUNTIF(Таблица3[Столбец14],Таблица3[[#This Row],[Столбец14]])","v":3}]
["2016-12-11T16:17:09","\\/","2016-12-11T20:42:47","/\\","Игра с Огнем","№4","Зина","1 ринг","Перекупалась (2)",0.47,8,"обычная","не продается",{"$f":"Таблица3[[#This Row],[Столбец5]]&Таблица3[[#This Row],[Столбец6]]&Таблица3[[#This Row],[Столбец7]]&Таблица3[[#This Row],[Столбец8]]&Таблица3[[#This Row],[Столбец9]]&Таблица3[[#This Row],[Столбец12]]","v":"Игра с Огнем№4Зина1 рингПерекупалась (2)обычная"},{"$f":"COUNTIF(Таблица3[Столбец14],Таблица3[[#This Row],[Столбец14]])","v":3}]
["2016-12-11T16:25:23","\\/","2016-12-11T20:45:11","/\\","Белый Лебедь","№3","Альбина","2 ринг","Перекупалась (2)",0.56000000000000005,20,"элитная","не продается",{"$f":"Таблица3[[#This Row],[Столбец5]]&Таблица3[[#This Row],[Столбец6]]&Таблица3[[#This Row],[Столбец7]]&Таблица3[[#This Row],[Столбец8]]&Таблица3[[#This Row],[Столбец9]]&Таблица3[[#This Row],[Столбец12]]","v":"Белый Лебедь№3Альбина2 рингПерекупалась (2)элитная"},{"$f":"COUNTIF(Таблица3[Столбец14],Таблица3[[#This Row],[Столбец14]])","v":4}]
["2016-12-11T16:28:56","\\/","2016-12-11T20:48:41","/\\","Зоопарк","№5","Тоня","1 ринг","Перекупалась (1)",0.47,10,"обычная","не продается",{"$f":"Таблица3[[#This Row],[Столбец5]]&Таблица3[[#This Row],[Столбец6]]&Таблица3[[#This Row],[Столбец7]]&Таблица3[[#This Row],[Столбец8]]&Таблица3[[#This Row],[Столбец9]]&Таблица3[[#This Row],[Столбец12]]","v":"Зоопарк№5Тоня1 рингПерекупалась (1)обычная"},{"$f":"COUNTIF(Таблица3[Столбец14],Таблица3[[#This Row],[Столбец14]])","v":3}]
["2016-12-11T17:16:39","\\/","2016-12-11T20:53:28","/\\","MaD Alliance","№6","Алёна","1 ринг","Перекупалась (1)",0.72,7,"обычная","не продается",{"$f":"Таблица3[[#This Row],[Столбец5]]&Таблица3[[#This Row],[Столбец6]]&Таблица3[[#This Row],[Столбец7]]&Таблица3[[#This Row],[Столбец8]]&Таблица3[[#This Row],[Столбец9]]&Таблица3[[#This Row],[Столбец12]]","v":"MaD Alliance№6Алёна1 рингПерекупалась (1)обычная"},{"$f":"COUNTIF(Таблица3[Столбец14],Таблица3[[#This Row],[Столбец14]])","v":2}]
["2016-12-11T17:21:30","\\/","2016-12-11T20:58:14","/\\","RockDiva","№2","Лида","1 ринг","Перекупалась (2)",0.62,9,"обычная","не продается",{"$f":"Таблица3[[#This Row],[Столбец5]]&Таблица3[[#This Row],[Столбец6]]&Таблица3[[#This Row],[Столбец7]]&Таблица3[[#This Row],[Столбец8]]&Таблица3[[#This Row],[Столбец9]]&Таблица3[[#This Row],[Столбец12]]","v":"RockDiva№2Лида1 рингПерекупалась (2)обычная"},{"$f":"COUNTIF(Таблица3[Столбец14],Таблица3[[#This Row],[Столбец14]])","v":3}]
["2016-12-11T17:21:45","\\/","2016-12-11T20:58:29","/\\","RockDiva","№4","Руслана","1 ринг","Перекупалась (1)",0.54,26,"обычная","не продается",{"$f":"Таблица3[[#This Row],[Столбец5]]&Таблица3[[#This Row],[Столбец6]]&Таблица3[[#This Row],[Столбец7]]&Таблица3[[#This Row],[Столбец8]]&Таблица3[[#This Row],[Столбец9]]&Таблица3[[#This Row],[Столбец12]]","v":"RockDiva№4Руслана1 рингПерекупалась (1)обычная"},{"$f":"COUNTIF(Таблица3[Столбец14],Таблица3[[#This Row],[Столбец14]])","v":4}]
["2016-12-11T17:22:17","\\/","2016-12-11T19:33:09","/\\","The Bling Ring","№1","Настя","1 ринг","Перекупалась (1)",0.56999999999999995,9,"обычная","не продается",{"$f":"Таблица3[[#This Row],[Столбец5]]&Таблица3[[#This Row],[Столбец6]]&Таблица3[[#This Row],[Столбец7]]&Таблица3[[#This Row],[Столбец8]]&Таблица3[[#This Row],[Столбец9]]&Таблица3[[#This Row],[Столбец12]]","v":"The Bling Ring№1Настя1 рингПерекупалась (1)обычная"},{"$f":"COUNTIF(Таблица3[Столбец14],Таблица3[[#This Row],[Столбец14]])","v":3}]
["2016-12-11T17:22:25","\\/","2016-12-11T20:59:22","/\\","The Bling Ring","№3","Оксана","1 ринг","Перекупалась (1)",0.54,8,"обычная","не продается",{"$f":"Таблица3[[#This Row],[Столбец5]]&Таблица3[[#This Row],[Столбец6]]&Таблица3[[#This Row],[Столбец7]]&Таблица3[[#This Row],[Столбец8]]&Таблица3[[#This Row],[Столбец9]]&Таблица3[[#This Row],[Столбец12]]","v":"The Bling Ring№3Оксана1 рингПерекупалась (1)обычная"},{"$f":"COUNTIF(Таблица3[Столбец14],Таблица3[[#This Row],[Столбец14]])","v":3}]
["2016-12-11T17:24:21","\\/","2016-12-11T21:01:12","/\\","ВеЧеРнИе ЗвЕзДы","№2","Наташа","1 ринг","Перекупалась (1)",0.48,17,"обычная","не продается",{"$f":"Таблица3[[#This Row],[Столбец5]]&Таблица3[[#This Row],[Столбец6]]&Таблица3[[#This Row],[Столбец7]]&Таблица3[[#This Row],[Столбец8]]&Таблица3[[#This Row],[Столбец9]]&Таблица3[[#This Row],[Столбец12]]","v":"ВеЧеРнИе ЗвЕзДы№2Наташа1 рингПерекупалась (1)обычная"},{"$f":"COUNTIF(Таблица3[Столбец14],Таблица3[[#This Row],[Столбец14]])","v":3}]
["2016-12-11T17:28:37","\\/","2016-12-11T21:05:36","/\\","Волча стая","№5","Роза","1 ринг","Перекупалась (2)",0.51,20,"обычная","не продается",{"$f":"Таблица3[[#This Row],[Столбец5]]&Таблица3[[#This Row],[Столбец6]]&Таблица3[[#This Row],[Столбец7]]&Таблица3[[#This Row],[Столбец8]]&Таблица3[[#This Row],[Столбец9]]&Таблица3[[#This Row],[Столбец12]]","v":"Волча стая№5Роза1 рингПерекупалась (2)обычная"},{"$f":"COUNTIF(Таблица3[Столбец14],Таблица3[[#This Row],[Столбец14]])","v":3}]
["2016-12-11T17:29:10","\\/","2016-12-11T21:06:10","/\\","Лиловый Шар","№2","Карина","1 ринг","Перекупалась (1)",0.51,13,"обычная","не продается",{"$f":"Таблица3[[#This Row],[Столбец5]]&Таблица3[[#This Row],[Столбец6]]&Таблица3[[#This Row],[Столбец7]]&Таблица3[[#This Row],[Столбец8]]&Таблица3[[#This Row],[Столбец9]]&Таблица3[[#This Row],[Столбец12]]","v":"Лиловый Шар№2Карина1 рингПерекупалась (1)обычная"},{"$f":"COUNTIF(Таблица3[Столбец14],Таблица3[[#This Row],[Столбец14]])","v":2}]
["2016-12-11T17:33:17","\\/","2016-12-11T21:10:12","/\\","Малавита","№5","Яна","1 ринг","Перекупалась (2)",0.6,20,"обычная","не продается",{"$f":"Таблица3[[#This Row],[Столбец5]]&Таблица3[[#This Row],[Столбец6]]&Таблица3[[#This Row],[Столбец7]]&Таблица3[[#This Row],[Столбец8]]&Таблица3[[#This Row],[Столбец9]]&Таблица3[[#This Row],[Столбец12]]","v":"Малавита№5Яна1 рингПерекупалась (2)обычная"},{"$f":"COUNTIF(Таблица3[Столбец14],Таблица3[[#This Row],[Столбец14]])","v":2}]
["2016-12-11T17:34:14","\\/","2016-12-11T21:11:07","/\\","НеРеАлЬнЫе","№3","Фаина","2 ринг","Не перекупалась",0.32,22,"элитная","не продается",{"$f":"Таблица3[[#This Row],[Столбец5]]&Таблица3[[#This Row],[Столбец6]]&Таблица3[[#This Row],[Столбец7]]&Таблица3[[#This Row],[Столбец8]]&Таблица3[[#This Row],[Столбец9]]&Таблица3[[#This Row],[Столбец12]]","v":"НеРеАлЬнЫе№3Фаина2 рингНе перекупаласьэлитная"},{"$f":"COUNTIF(Таблица3[Столбец14],Таблица3[[#This Row],[Столбец14]])","v":3}]
["2016-12-11T17:42:37","\\/","2016-12-11T20:42:09","/\\","Темная сторона силы","№5","Аня","1 ринг","Перекупалась (1)",0.4,18,"обычная","не продается",{"$f":"Таблица3[[#This Row],[Столбец5]]&Таблица3[[#This Row],[Столбец6]]&Таблица3[[#This Row],[Столбец7]]&Таблица3[[#This Row],[Столбец8]]&Таблица3[[#This Row],[Столбец9]]&Таблица3[[#This Row],[Столбец12]]","v":"Темная сторона силы№5Аня1 рингПерекупалась (1)обычная"},{"$f":"COUNTIF(Таблица3[Столбец14],Таблица3[[#This Row],[Столбец14]])","v":2}]
["2016-12-11T17:53:36","\\/","2016-12-11T17:53:36","/\\","World of Shadows","№4","Марго","1 ринг","Перекупалась (1)",0.34,22,"обычная","не продается",{"$f":"Таблица3[[#This Row],[Столбец5]]&Таблица3[[#This Row],[Столбец6]]&Таблица3[[#This Row],[Столбец7]]&Таблица3[[#This Row],[Столбец8]]&Таблица3[[#This Row],[Столбец9]]&Таблица3[[#This Row],[Столбец12]]","v":"World of Shadows№4Марго1 рингПерекупалась (1)обычная"},{"$f":"COUNTIF(Таблица3[Столбец14],Таблица3[[#This Row],[Столбец14]])","v":3}]
["2016-12-11T17:56:39","\\/","2016-12-11T20:50:01","/\\","Тинг","№4","Лина","1 ринг","Перекупалась (1)",0.51,12,"обычная","не продается",{"$f":"Таблица3[[#This Row],[Столбец5]]&Таблица3[[#This Row],[Столбец6]]&Таблица3[[#This Row],[Столбец7]]&Таблица3[[#This Row],[Столбец8]]&Таблица3[[#This Row],[Столбец9]]&Таблица3[[#This Row],[Столбец12]]","v":"Тинг№4Лина1 рингПерекупалась (1)обычная"},{"$f":"COUNTIF(Таблица3[Столбец14],Таблица3[[#This Row],[Столбец14]])","v":2}]
["2016-12-11T18:05:57","\\/","2016-12-11T20:59:10","/\\","The Bling Ring","№2","Вера","1 ринг","Перекупалась (1)",1,7,"обычная","не продается",{"$f":"Таблица3[[#This Row],[Столбец5]]&Таблица3[[#This Row],[Столбец6]]&Таблица3[[#This Row],[Столбец7]]&Таблица3[[#This Row],[Столбец8]]&Таблица3[[#This Row],[Столбец9]]&Таблица3[[#This Row],[Столбец12]]","v":"The Bling Ring№2Вера1 рингПерекупалась (1)обычная"},{"$f":"COUNTIF(Таблица3[Столбец14],Таблица3[[#This Row],[Столбец14]])","v":1}]
["2016-12-11T18:23:17","\\/","2016-12-11T20:39:46","/\\","Termitongi","№4","Констанция","2 ринг","Перекупалась (1)",1,11,"элитная","не продается",{"$f":"Таблица3[[#This Row],[Столбец5]]&Таблица3[[#This Row],[Столбец6]]&Таблица3[[#This Row],[Столбец7]]&Таблица3[[#This Row],[Столбец8]]&Таблица3[[#This Row],[Столбец9]]&Таблица3[[#This Row],[Столбец12]]","v":"Termitongi№4Констанция2 рингПерекупалась (1)элитная"},{"$f":"COUNTIF(Таблица3[Столбец14],Таблица3[[#This Row],[Столбец14]])","v":1}]
["2016-12-11T18:37:21","\\/","2016-12-11T20:46:57","/\\","World of Shadows","№4","Марго","1 ринг","Перекупалась (1)",0.64,25,"обычная","не продается",{"$f":"Таблица3[[#This Row],[Столбец5]]&Таблица3[[#This Row],[Столбец6]]&Таблица3[[#This Row],[Столбец7]]&Таблица3[[#This Row],[Столбец8]]&Таблица3[[#This Row],[Столбец9]]&Таблица3[[#This Row],[Столбец12]]","v":"World of Shadows№4Марго1 рингПерекупалась (1)обычная"},{"$f":"COUNTIF(Таблица3[Столбец14],Таблица3[[#This Row],[Столбец14]])","v":3}]
["2016-12-11T18:37:56","\\/","2016-12-11T20:47:39","/\\","Короли Топа","№6","Валя","1 ринг","Перекупалась (1)",0.48,17,"обычная","не продается",{"$f":"Таблица3[[#This Row],[Столбец5]]&Таблица3[[#This Row],[Столбец6]]&Таблица3[[#This Row],[Столбец7]]&Таблица3[[#This Row],[Столбец8]]&Таблица3[[#This Row],[Столбец9]]&Таблица3[[#This Row],[Столбец12]]","v":"Короли Топа№6Валя1 рингПерекупалась (1)обычная"},{"$f":"COUNTIF(Таблица3[Столбец14],Таблица3[[#This Row],[Столбец14]])","v":3}]
["2016-12-11T18:45:08","\\/","2016-12-11T20:54:51","/\\","Music Ghoul","№6","Тамара","1 ринг","Перекупалась (1)",0.66,11,"обычная","не продается",{"$f":"Таблица3[[#This Row],[Столбец5]]&Таблица3[[#This Row],[Столбец6]]&Таблица3[[#This Row],[Столбец7]]&Таблица3[[#This Row],[Столбец8]]&Таблица3[[#This Row],[Столбец9]]&Таблица3[[#This Row],[Столбец12]]","v":"Music Ghoul№6Тамара1 рингПерекупалась (1)обычная"},{"$f":"COUNTIF(Таблица3[Столбец14],Таблица3[[#This Row],[Столбец14]])","v":3}]
["2016-12-11T18:52:40","\\/","2016-12-11T18:52:40","/\\","Духи Витязей","№4","Агния","1 ринг","Перекупалась (1)",null,null,null,"не продается",{"$f":"Таблица3[[#This Row],[Столбец5]]&Таблица3[[#This Row],[Столбец6]]&Таблица3[[#This Row],[Столбец7]]&Таблица3[[#This Row],[Столбец8]]&Таблица3[[#This Row],[Столбец9]]&Таблица3[[#This Row],[Столбец12]]","v":"Духи Витязей№4Агния1 рингПерекупалась (1)"},{"$f":"COUNTIF(Таблица3[Столбец14],Таблица3[[#This Row],[Столбец14]])","v":1}]
["2016-12-11T18:54:13","\\/","2016-12-11T21:03:51","/\\","CLOSED SCHOOL","№3","Леся","1 ринг","Перекупалась (2)",1,7,"обычная","не продается",{"$f":"Таблица3[[#This Row],[Столбец5]]&Таблица3[[#This Row],[Столбец6]]&Таблица3[[#This Row],[Столбец7]]&Таблица3[[#This Row],[Столбец8]]&Таблица3[[#This Row],[Столбец9]]&Таблица3[[#This Row],[Столбец12]]","v":"CLOSED SCHOOL№3Леся1 рингПерекупалась (2)обычная"},{"$f":"COUNTIF(Таблица3[Столбец14],Таблица3[[#This Row],[Столбец14]])","v":1}]
["2016-12-11T19:37:01","\\/","2016-12-11T21:02:48","/\\","Крепкий орешек","№3","Глория","2 ринг","Перекупалась (1)",0.37,24,"элитная","не продается",{"$f":"Таблица3[[#This Row],[Столбец5]]&Таблица3[[#This Row],[Столбец6]]&Таблица3[[#This Row],[Столбец7]]&Таблица3[[#This Row],[Столбец8]]&Таблица3[[#This Row],[Столбец9]]&Таблица3[[#This Row],[Столбец12]]","v":"Крепкий орешек№3Глория2 рингПерекупалась (1)элитная"},{"$f":"COUNTIF(Таблица3[Столбец14],Таблица3[[#This Row],[Столбец14]])","v":4}]
["2016-12-11T19:37:33","\\/","2016-12-11T19:37:33","/\\","ШПАНА1","№1","Валерия","1 ринг","Перекупалась (2)",0.35,18,"обычная","не продается",{"$f":"Таблица3[[#This Row],[Столбец5]]&Таблица3[[#This Row],[Столбец6]]&Таблица3[[#This Row],[Столбец7]]&Таблица3[[#This Row],[Столбец8]]&Таблица3[[#This Row],[Столбец9]]&Таблица3[[#This Row],[Столбец12]]","v":"ШПАНА1№1Валерия1 рингПерекупалась (2)обычная"},{"$f":"COUNTIF(Таблица3[Столбец14],Таблица3[[#This Row],[Столбец14]])","v":3}]
["2016-12-11T19:44:40","\\/","2016-12-11T21:10:40","/\\","Неончики","№4","Анжела","3 ринг","Не перекупалась",0.57999999999999996,28,"элитная","не продается",{"$f":"Таблица3[[#This Row],[Столбец5]]&Таблица3[[#This Row],[Столбец6]]&Таблица3[[#This Row],[Столбец7]]&Таблица3[[#This Row],[Столбец8]]&Таблица3[[#This Row],[Столбец9]]&Таблица3[[#This Row],[Столбец12]]","v":"Неончики№4Анжела3 рингНе перекупаласьэлитная"},{"$f":"COUNTIF(Таблица3[Столбец14],Таблица3[[#This Row],[Столбец14]])","v":3}]
["2016-12-11T19:50:28","\\/","2016-12-11T20:39:29","/\\","Termitongi","№1","Вера","1 ринг","Перекупалась (1)",0.79,7,"обычная","не продается",{"$f":"Таблица3[[#This Row],[Столбец5]]&Таблица3[[#This Row],[Столбец6]]&Таблица3[[#This Row],[Столбец7]]&Таблица3[[#This Row],[Столбец8]]&Таблица3[[#This Row],[Столбец9]]&Таблица3[[#This Row],[Столбец12]]","v":"Termitongi№1Вера1 рингПерекупалась (1)обычная"},{"$f":"COUNTIF(Таблица3[Столбец14],Таблица3[[#This Row],[Столбец14]])","v":2}]
["2016-12-11T19:51:55","\\/","2016-12-11T20:40:52","/\\","MASTRO ROkA","№3","Наташа","1 ринг","Перекупалась (1)",0.32,12,"обычная","не продается",{"$f":"Таблица3[[#This Row],[Столбец5]]&Таблица3[[#This Row],[Столбец6]]&Таблица3[[#This Row],[Столбец7]]&Таблица3[[#This Row],[Столбец8]]&Таблица3[[#This Row],[Столбец9]]&Таблица3[[#This Row],[Столбец12]]","v":"MASTRO ROkA№3Наташа1 рингПерекупалась (1)обычная"},{"$f":"COUNTIF(Таблица3[Столбец14],Таблица3[[#This Row],[Столбец14]])","v":2}]
["2016-12-11T20:01:53","\\/","2016-12-11T20:44:19","/\\","Барбоссы","№5","Нона","1 ринг","Не перекупалась",0.84,4,"обычная","не продается",{"$f":"Таблица3[[#This Row],[Столбец5]]&Таблица3[[#This Row],[Столбец6]]&Таблица3[[#This Row],[Столбец7]]&Таблица3[[#This Row],[Столбец8]]&Таблица3[[#This Row],[Столбец9]]&Таблица3[[#This Row],[Столбец12]]","v":"Барбоссы№5Нона1 рингНе перекупаласьобычная"},{"$f":"COUNTIF(Таблица3[Столбец14],Таблица3[[#This Row],[Столбец14]])","v":2}]
["2016-12-11T20:03:24","\\/","2016-12-11T20:45:52","/\\","Sing for the Moment","№3","Настя","1 ринг","Перекупалась (2)",0.37,7,"обычная","не продается",{"$f":"Таблица3[[#This Row],[Столбец5]]&Таблица3[[#This Row],[Столбец6]]&Таблица3[[#This Row],[Столбец7]]&Таблица3[[#This Row],[Столбец8]]&Таблица3[[#This Row],[Столбец9]]&Таблица3[[#This Row],[Столбец12]]","v":"Sing for the Moment№3Настя1 рингПерекупалась (2)обычная"},{"$f":"COUNTIF(Таблица3[Столбец14],Таблица3[[#This Row],[Столбец14]])","v":2}]
["2016-12-11T20:10:11","\\/","2016-12-11T20:52:53","/\\","Green Hip Hop","№5","Анфиса","1 ринг","Не перекупалась",0.38,15,"обычная","не продается",{"$f":"Таблица3[[#This Row],[Столбец5]]&Таблица3[[#This Row],[Столбец6]]&Таблица3[[#This Row],[Столбец7]]&Таблица3[[#This Row],[Столбец8]]&Таблица3[[#This Row],[Столбец9]]&Таблица3[[#This Row],[Столбец12]]","v":"Green Hip Hop№5Анфиса1 рингНе перекупаласьобычная"},{"$f":"COUNTIF(Таблица3[Столбец14],Таблица3[[#This Row],[Столбец14]])","v":2}]
["2016-12-11T20:13:39","\\/","2016-12-11T20:56:16","/\\","Pufystiki","№5","Земфира","3 ринг","Не перекупалась",0.56000000000000005,4,"элитная","не продается",{"$f":"Таблица3[[#This Row],[Столбец5]]&Таблица3[[#This Row],[Столбец6]]&Таблица3[[#This Row],[Столбец7]]&Таблица3[[#This Row],[Столбец8]]&Таблица3[[#This Row],[Столбец9]]&Таблица3[[#This Row],[Столбец12]]","v":"Pufystiki№5Земфира3 рингНе перекупаласьэлитная"},{"$f":"COUNTIF(Таблица3[Столбец14],Таблица3[[#This Row],[Столбец14]])","v":2}]
["2016-12-11T20:16:27","\\/","2016-12-11T20:59:01","/\\","The Bling Ring","№1","Настя","1 ринг","Перекупалась (1)",0.48,9,"обычная","не продается",{"$f":"Таблица3[[#This Row],[Столбец5]]&Таблица3[[#This Row],[Столбец6]]&Таблица3[[#This Row],[Столбец7]]&Таблица3[[#This Row],[Столбец8]]&Таблица3[[#This Row],[Столбец9]]&Таблица3[[#This Row],[Столбец12]]","v":"The Bling Ring№1Настя1 рингПерекупалась (1)обычная"},{"$f":"COUNTIF(Таблица3[Столбец14],Таблица3[[#This Row],[Столбец14]])","v":3}]
["2016-12-11T20:20:38","\\/","2016-12-11T21:03:20","/\\","ШПАНА1","№1","Валерия","1 ринг","Перекупалась (2)",0.55000000000000004,20,"обычная","не продается",{"$f":"Таблица3[[#This Row],[Столбец5]]&Таблица3[[#This Row],[Столбец6]]&Таблица3[[#This Row],[Столбец7]]&Таблица3[[#This Row],[Столбец8]]&Таблица3[[#This Row],[Столбец9]]&Таблица3[[#This Row],[Столбец12]]","v":"ШПАНА1№1Валерия1 рингПерекупалась (2)обычная"},{"$f":"COUNTIF(Таблица3[Столбец14],Таблица3[[#This Row],[Столбец14]])","v":3}]
["2016-12-11T20:27:03","\\/","2016-12-11T21:09:55","/\\","Малавита","№2","Ася","1 ринг","Перекупалась (1)",0.32,26,"обычная","не продается",{"$f":"Таблица3[[#This Row],[Столбец5]]&Таблица3[[#This Row],[Столбец6]]&Таблица3[[#This Row],[Столбец7]]&Таблица3[[#This Row],[Столбец8]]&Таблица3[[#This Row],[Столбец9]]&Таблица3[[#This Row],[Столбец12]]","v":"Малавита№2Ася1 рингПерекупалась (1)обычная"},{"$f":"COUNTIF(Таблица3[Столбец14],Таблица3[[#This Row],[Столбец14]])","v":3}]
["2016-12-11T20:28:55","\\/","2016-12-11T20:28:55","/\\","Рванина","№3","Алёна","1 ринг","Перекупалась (1)",null,null,null,"не продается",{"$f":"Таблица3[[#This Row],[Столбец5]]&Таблица3[[#This Row],[Столбец6]]&Таблица3[[#This Row],[Столбец7]]&Таблица3[[#This Row],[Столбец8]]&Таблица3[[#This Row],[Столбец9]]&Таблица3[[#This Row],[Столбец12]]","v":"Рванина№3Алёна1 рингПерекупалась (1)"},{"$f":"COUNTIF(Таблица3[Столбец14],Таблица3[[#This Row],[Столбец14]])","v":1}]
["2016-12-11T20:36:01","\\/","2016-12-11T20:41:34","/\\","Запретная Территория","№2","Полина","1 ринг","Не перекупалась",0.6,10,"обычная","не продается",{"$f":"Таблица3[[#This Row],[Столбец5]]&Таблица3[[#This Row],[Столбец6]]&Таблица3[[#This Row],[Столбец7]]&Таблица3[[#This Row],[Столбец8]]&Таблица3[[#This Row],[Столбец9]]&Таблица3[[#This Row],[Столбец12]]","v":"Запретная Территория№2Полина1 рингНе перекупаласьобычная"},{"$f":"COUNTIF(Таблица3[Столбец14],Таблица3[[#This Row],[Столбец14]])","v":2}]
["2016-12-11T20:55:24","\\/","2016-12-11T20:55:24","/\\","NEUROPUNK","№6","Валерия","1 ринг","Перекупалась (2)",0.38,28,"обычная","не продается",{"$f":"Таблица3[[#This Row],[Столбец5]]&Таблица3[[#This Row],[Столбец6]]&Таблица3[[#This Row],[Столбец7]]&Таблица3[[#This Row],[Столбец8]]&Таблица3[[#This Row],[Столбец9]]&Таблица3[[#This Row],[Столбец12]]","v":"NEUROPUNK№6Валерия1 рингПерекупалась (2)обычная"},{"$f":"COUNTIF(Таблица3[Столбец14],Таблица3[[#This Row],[Столбец14]])","v":2}]
["2016-12-11T20:58:37","\\/","2016-12-11T20:58:37","/\\","RockDiva","№6","Кира","1 ринг","Перекупалась (2)",0.55000000000000004,9,"обычная","не продается",{"$f":"Таблица3[[#This Row],[Столбец5]]&Таблица3[[#This Row],[Столбец6]]&Таблица3[[#This Row],[Столбец7]]&Таблица3[[#This Row],[Столбец8]]&Таблица3[[#This Row],[Столбец9]]&Таблица3[[#This Row],[Столбец12]]","v":"RockDiva№6Кира1 рингПерекупалась (2)обычная"},{"$f":"COUNTIF(Таблица3[Столбец14],Таблица3[[#This Row],[Столбец14]])","v":2}]
["2016-12-11T21:00:41","\\/","2016-12-11T21:00:41","/\\","АнархистЪ","№4","Юля","1 ринг","Перекупалась (1)",0.39,16,"обычная","не продается",{"$f":"Таблица3[[#This Row],[Столбец5]]&Таблица3[[#This Row],[Столбец6]]&Таблица3[[#This Row],[Столбец7]]&Таблица3[[#This Row],[Столбец8]]&Таблица3[[#This Row],[Столбец9]]&Таблица3[[#This Row],[Столбец12]]","v":"АнархистЪ№4Юля1 рингПерекупалась (1)обычная"},{"$f":"COUNTIF(Таблица3[Столбец14],Таблица3[[#This Row],[Столбец14]])","v":3}]
["2016-12-11T21:01:27","\\/","2016-12-11T21:01:27","/\\","ВеЧеРнИе ЗвЕзДы","№4","Слава","1 ринг","Перекупалась (2)",0.67,11,"обычная","не продается",{"$f":"Таблица3[[#This Row],[Столбец5]]&Таблица3[[#This Row],[Столбец6]]&Таблица3[[#This Row],[Столбец7]]&Таблица3[[#This Row],[Столбец8]]&Таблица3[[#This Row],[Столбец9]]&Таблица3[[#This Row],[Столбец12]]","v":"ВеЧеРнИе ЗвЕзДы№4Слава1 рингПерекупалась (2)обычная"},{"$f":"COUNTIF(Таблица3[Столбец14],Таблица3[[#This Row],[Столбец14]])","v":2}]

{"sheet":"Лист4","index":3,"n_rows":0,"n_cols":0,"rows_kept":0,"cut":false,"hidden":false,"merged":[]}